Workbook

Sheet Overblik
B2: Protein produceret på saft fra kløvergræs
B4: Case 1: Etablering af et bioraffineringsanlæg samme med 4 gårde
B6: Denne model er beregnet til at danne sig et overblik over hvilke produkter
B7: der kan produceres ved presning og raffinering af saft fra pirmært kløvergræs
B9: Modellen består af en række ark der hver især har sit investring og produktins-
B10: område.
B11: De blå ark er resultatark.
B12: De pink ark erinvestering/etabeling, drift og økonoisk rentabiletes beregninger
B13: De tre grønne ark er basisoplysninger og beretninger der overføres til de tre pink ark
B14: De røde ark indeholder kalkuer inden for græsafgrøden, biogasproduktion på biprodukterne og
B15: forventede gødningsindhold i biproduktet benævnt brunsaft.
B16: Det røde ark "Model" er masseflow beregning der ligger til grund for hvor meget der
B17: kan produceres af protein, presserest dvs græsresten samt vand og brunsaft fra
B18: inddampningen af proteinmassen til en tør protein produkt.
B19: Det sidste røde ark er en samling af notater og analyser der ligger til grund for
B20: massebalancen og foderudnyttelsen af fiberfraktionen/presseresten.
B22: Forudsætninger for en økologisk beregning
B23: Udnyttelse af fiberfraktionen fra presning af græsset til kvægfoder hos
B24: mælkeproducenterne i området (låne græsset til bioraffineringsanlægget)
B25: =CONCATENATE("a) Økologisk græs pris på ",Kalkule!D14," kr./FE. b) Økologisk N er sat til ",Kalkule!H135," kr./kg") -> a) Økologisk græs pris på 1,27 kr./FE. b) Økologisk N er sat til 6 kr./kg
B26: Indhente græs/kløvergræs i en radius på 20 km fra raffineringsanlægget
B27: Brunsaften til f.eks. Ribe Biogas, Holsted Biogas eller udbringes direkte som gødning?
B28: Arealgrundlag: Ca. 1000 hektar?
B30: Resultat oversigt vedr. år 1
B31: Græs leverancer
B32: Antal hektar der høstes | H32: =Drift!F5 -> 500
B33: Årlig græsmængde der er anvedet i produktionen, tons | H33: ='Masse flow'!C36 -> 41500
B34: Høstudbytter af græs pr. ha, tons | H34: ='Data omkn'!C156 -> 83
B35: Tørstofprocent i græsset, % | H35: ='Masse flow'!C8 -> 0.18
B37: Produktion
B38: Protein, tons | H38: =IF(Drift!$F$4,'Model 2'!U131,'Model 2'!U122) -> 16.63982595
B39: Fibermængde efter presning, tons | H39: =IF(Drift!$F$4,'Model 2'!U132,'Model 2'!U123) -> 108
B40: Vand, tons | H40: =IF(Drift!$F$4,'Model 2'!U133,'Model 2'!U124) -> 194.4
B41: Brunsaft, tons | H41: =IF(Drift!$F$4,'Model 2'!U130,'Model 2'!U121) -> 931.4285714
B42: Rest og tab i produktionen, tons | H42: =IF(Drift!$F$4,'Model 2'!U134,'Model 2'!U125) -> 40.96017405
B44: Økonomisk resultat
B45: Årlig resultat, kr. | H45: =Drift!F11 -> 9233962.524
B46: Salgspris på protein kr./kg | E46: =Drift!#REF! ->  | F46: samlede salg, kr. | H46: =Drift!F17+Drift!F18 -> 2914698.738
B47: Salg biprodukter, kr. | H47: =SUM(Drift!F19:F25) -> 13670657.56
B48: Variable omkostninger, kr. | H48: =Drift!F27*-1 -> -6098268.773
B49: Faste omkostninger, kr. | H49: =Drift!F50*-1 -> -668125
B50: Renteomkostninger, kr. | H50: =Drift!F60*-1 -> -585000
B52: Anlægsinvestering, kr. | H52: =Etablering!E6 -> 15000000
B53: Rentebærende gæld ultimo år 1, kr. | H53: =Økonomi!D41 -> -8205931.719
B54: Rentebærende gæld ultimo år 2, kr. | H54: =Økonomi!E41 -> -5326002.488

Sheet Grafik
B2: =Overblik!B2 -> Protein produceret på saft fra kløvergræs
B3: =Overblik!B4 -> Case 1: Etablering af et bioraffineringsanlæg samme med 4 gårde
B5: Fiber -kage | C5: =IF(Drift!$F$4=2,'Model 2'!V132,'Model 2'!V123) -> 0.2389380531
B6: Brundsaft | C6: =IF(Drift!$F$4=2,'Model 2'!V130,'Model 2'!V121) -> 0.3960176991
B7: Protein | C7: =IF(Drift!$F$4=2,'Model 2'!V131,'Model 2'!V122) -> 0.01043848478
B8: Vand | C8: =IF(Drift!$F$4=2,'Model 2'!V133,'Model 2'!V124) -> 0.1115044248
B9: Tab | C9: =IF(Drift!$F$4=2,'Model 2'!V134,'Model 2'!V125) -> 0.2431013382
B41: Kilde: Ark "Model"

Sheet Etablering
B2: Projekt: | C2: =Overblik!B4 -> Case 1: Etablering af et bioraffineringsanlæg samme med 4 gårde
B3: Anlægstype: | C3: Bioraffinering af græs til proteinkoncentrat
B5: Anlægsinvestering | C5: Vælg størrelse /antal | D5: Enhedspris | E5: Pris | K5: Basis værdier | L5: Størrelse/antal | M5: Enhedspris
B6: Samlede anlægspris | E6: 15000000 | G6: overskrevet | Y6: til 3000 ha - nedskallere til 500 ha
B7: Bygnings del | K7: Bygnings del
B8: Grund (m2) | C8: 15000 | D8: 250 | E8: =C8*D8 -> 3750000 | K8: Grund (m2) | L8: 15000 | M8: 250 | N8: kr./m2 | P8: 100*150 meter
B9: Brovægt | C9: 1 | D9: 150000 | E9: =C9*D9 -> 150000 | K9: Brovægt | L9: 1 | M9: 150000 | N9: kr./stk.
B10: Gummiged- brugtpris | C10: 1 | D10: 300000 | E10: 300000 | K10: Gummiged- brug pris | L10: 1 | M10: 300000 | N10: kr./stk. | O10: jf
B11: Bygning -hald, m2 | C11: 1200 | D11: 1000 | E11: 1200000 | K11: Bygning, m2 | L11: 1200 | M11: 1000 | N11: kr./m2 | O11: Ribe anlægget Dangrøn Gredstedbro
B12: Kontor/toilet/mandskabsrum/laboratorie, m2 | C12: 200 | D12: 10000 | E12: 2000000 | K12: Kontor/toilet/mandskabsrum/laboratorie, m2 | L12: 200 | M12: 10000 | N12: kr./m2
B13: Aflæsseareal / asfaltering / siloelementer, m2 | C13: 7500 | D13: 200 | E13: 1500000 | K13: Aflæsseareal / asfaltering / siloelementer, m2 | L13: =$L$8/2 -> 7500 | M13: 200 | N13: kr./m2 | O13: 50% af grunden
B14: Dosering / indfødning af græs | C14: 1 | D14: 250000 | E14: 250000 | K14: Dosering / indfødning af græs | L14: 1 | M14: 250000 | N14: kr/stk.
B15: Afdrægning af plansilo, meter | C15: 1 | D15: 300 | E15: 300 | K15: Afdrægning af plansilo, meter | L15: 1 | M15: 300 | N15: kr./meter
B17: Presning af græs | K17: Presning af græs
B18: Skruepresser | C18: 1 | D18: 1500000 | E18: =C18*D18 -> 1500000 | K18: Skruepresser, | L18: 1 | M18: 1500000 | N18: kr./stk. | O18: 200.000 kr. til en der tager 2-2½ m3 pr. time- tilbud fra Stjernholm
B19: Højtrykspresser | C19: 1 | D19: 1200000 | E19: =C19*D19 -> 1200000 | K19: Højtrykspresser | L19: 1 | M19: 1200000 | N19: kr./stk.
B20: Filtersi | C20: 1 | D20: 20000 | E20: 20000 | K20: Filtersi | L20: 1 | M20: 20000 | N20: kr./stk.
B21: Grønsaftsiloer | C21: 3850 | D21: 300 | E21: 1155000 | K21: Grønsaftsiloer | L21: =ROUNDUP('Masse flow'!$C$68,-1)*$Q$21 -> 3900 | M21: 300 | N21: kr./m3 | O21: ='Masse flow'!C68 -> 772.8 | P21: tons/dag | Q21: 5 | R21: dags opbevaring- Assentoft silo glasemaljeret, isolering
B22: Plansilo til fiberdelen/container ?? | C22: 1 | D22: 500 | E22: 500 | K22: Plansilo til fiberdelen | L22: 1 | M22: 500 | N22: kr./pr. styk | O22: Container leje af disse 2 stk
B23: Transportbånd til /fra skruepresser | C23: 1 | D23: 25000 | E23: 25000 | K23: Transportbånd til /fra skruepresser | L23: 1 | M23: 25000 | N23: kr./stk.
B25: Grønsaft centrifugering | K25: Grønsaft centrifugering
B26: Trommesi | C26: 2 | D26: 1500000 | E26: =C26*D26 -> 3000000 | K26: Trommesi | L26: 2 | M26: 1500000 | N26: kr./stk.
B27: Decantercentrifuge | C27: 1 | D27: 3000000 | E27: =C27*D27 -> 3000000 | K27: Decantercentrifuge | L27: 1 | M27: 3000000 | N27: kr./stk.
B28: Pastasilo | C28: 1400 | D28: 300 | E28: 420000 | K28: Pastasilo | L28: =ROUNDUP('Masse flow'!$C$71*$Q$28,-1) -> 2020 | M28: 300 | N28: kr./m3 | O28: ='Masse flow'!C71 -> 201.183024 | P28: tons/dag | Q28: 10 | R28: dags opbevaring før tørring
B29: Brunsaftsilo | C29: 3120 | D29: 300 | E29: 936000 | K29: Brunsaftsilo | L29: =ROUNDUP('Masse flow'!$C$72*$Q$29,-1) -> 2860 | M29: 300 | N29: kr./m3 | O29: ='Masse flow'!C72 -> 571.616976 | P29: tons pr. dag | Q29: 5 | R29: dags opbevaring Assentoft silo glasemaljeret, isolering
B31: Tørring | K31: Tørring
B32: Tørreri af pasterdelen | C32: 1 | D32: 5000000 | E32: =C32*D32 -> 5000000 | K32: Tørreri af pasterdelen | L32: 1 | M32: 5000000 | N32: kr./enhed
B33: Plastcontainere | C33: 100 | D33: 500 | E33: =C33*D33 -> 50000 | K33: Plastcontainere | L33: 100 | M33: 500 | N33: kr./m3
B34: Vacumpakker | C34: 1 | D34: 200000 | E34: 200000 | K34: Vacumpakker | L34: 1 | M34: 200000 | N34: kr.Stk
B35: Varmeveksler | C35: 1 | D35: 500000 | E35: =C35*D35 -> 500000 | K35: Varmeveksler | L35: 1 | M35: 500000 | N35: kr./stk.
B37: Udstyr til proces | K37: Udstyr til proces
B38: Rør og pumper til saft | C38: 1 | D38: 250000 | E38: =C38*D38 -> 250000 | K38: Rør og pumper til saft | L38: 1 | M38: 250000
B39: Varmeforsyning | C39: 1 | D39: 100000 | E39: =C39*D39 -> 100000 | K39: Varmeforsyning | L39: 1 | M39: 100000 | N39: kr./enhed
B40: Elanlæg og styreskab | C40: 1 | D40: 500000 | E40: 500000 | K40: Elanlæg og styreskab | L40: 1 | M40: 500000 | N40: kr./enhed
B41: Gaffeltruck | C41: 1 | D41: 200000 | E41: 200000 | K41: Gaffeltruck | L41: 1 | M41: 200000 | N41: kr./stk. | P41: Brugt pris på 8 tons truck
B43: Inventar | K43: Inventar
B44: Inventar kontor og mandskabsrum | D44: 50000 | E44: =D44 -> 50000 | K44: Inventar kontor og mandskabsrum | M44: 50000 | N44: kr.
B45: Ustyr laboratorium | D45: 200000 | E45: =D45 -> 200000 | K45: Ustyr laboratorium | M45: 200000 | N45: kr.
B46: Værksted | D46: 500000 | E46: 500000 | K46: Værksted | M46: 500000 | N46: kr.
B47: Sikkerhedsudstyr | D47: 200000 | E47: 200000 | K47: Sikkerhedsudstyr | M47: 200000 | N47: kr.
B49: Projektering | K49: Projektering
B50: Rådgivning | D50: 300000 | E50: 300000 | K50: Rådgivning | M50: 300000 | N50: kr.
B51: Kontrakter | D51: 150000 | E51: 150000 | K51: Kontrakter | M51: 150000 | N51: kr.
B52: Miljøgodkendelser | D52: 80000 | E52: 80000 | K52: Miljøgodkendelser | M52: 80000 | N52: kr. | P52: Eksisterende anlæg. Nyt anlæg ca 400.00,- kr.
B53: Byggerådgivning | D53: 250000 | E53: 250000 | K53: Byggerådgivning | M53: 250000 | N53: kr.
B54: Finansieringsomkostninger | D54: 150000 | E54: 150000 | K54: Finansieringsomkostninger | M54: 150000 | N54: kr.
B55: Tinglysning | D55: 500000 | E55: 500000 | K55: Tinglysning | M55: 500000 | N55: kr.
B57: Behandling af presset græs | K57: Behandling af presset græs
B58: Wrapnings udstyr (presser og wrapper) | D58: 250000 | E58: 250000 | K58: Wapnings udstyr | M58: 250000 | N58: kr.
B59: Pillepresser | D59: 3500000 | E59: 3500000 | K59: Pillepresser | M59: 3500000 | N59: kr.
B62: Cip-rengøring af tanke dysser i tankene der renser tankene

Sheet Drift
B2: =Etablering!B2 -> Projekt: | C2: =Etablering!C2 -> Case 1: Etablering af et bioraffineringsanlæg samme med 4 gårde
B3: =Etablering!B3 -> Anlægstype: | C3: =Etablering!C3 -> Bioraffinering af græs til proteinkoncentrat
C4: Antal presninger enten 1 eller 2 | F4: 1
B5: Udgifter og indtægter i drift | E5: ha | F5: 500
B11: Årlig Resultat | F11: =F15-F27-F50-F60 -> 9233962.524
C14: Mængder (kg/m3/stk) | D14: Enhedspris | F14: Beløb | L14: Mængder (kg/m3/stk) | M14: Enhedspris- basisoplysniner
B15: Indtægter | F15: =SUM(F17:F25) -> 16585356.3
B17: Solgt protein- total produceret kg protein | C17: ='Masse flow'!$M$50 -> 559443.1359 | D17: 5.21 | E17: kr/kg | F17: =C17*D17 -> 2914698.738 | L17: ='Masse flow'!$M$50 -> 559443.1359 | M17: =2.5/0.48 -> 5.208333333 | N17: kr/kg
B18: Solgt protein-pulver inddampet | E18: kr/kg | F18: =C18*D17 -> 0 | N18: kr/kg
C19: ='Masse flow'!$M$45 -> 12805.655 | D19: =VLOOKUP($O$19,'Bi pris'!$A$4:$C$8,3) -> 347.375 | E19: Kr/ton | F19: =C19*D19 -> 4448364.406 | L19: ='Masse flow'!$M$45 -> 12805.655 | M19: =VLOOKUP($O$19,'Bi pris'!$A$4:$C$8,3) -> 347.375 | N19: Kr/ton | O19: ='Bi pris'!A4 -> 1
C20: ='Masse flow'!$M$45 -> 12805.655 | D20: =VLOOKUP($O$20,'Bi pris'!$A$11:$C$15,3) -> 262.5012153 | E20: kr/ton | F20: 3361500 | L20: ='Masse flow'!$M$45 -> 12805.655 | M20: =VLOOKUP($O$20,'Bi pris'!$A$11:$C$15,3) -> 262.5012153 | N20: Kr/ton | O20: ='Bi pris'!A11 -> 2
C21: ='Masse flow'!$M$45 -> 12805.655 | D21: =VLOOKUP($O$21,'Bi pris'!$A$18:$C$22,3) -> 262.5012153 | F21: 3361500 | L21: ='Masse flow'!$M$45 -> 12805.655 | M21: =VLOOKUP($O$21,'Bi pris'!$A$18:$C$22,3) -> 262.5012153 | N21: Kr/ton | O21: ='Bi pris'!A18 -> 2
C22: ='Masse flow'!$M$48 -> 21180.45045 | D22: =VLOOKUP($O$22,'Bi pris'!$A$29:$C$33,3) -> 102 | E22: Kr/ton | F22: 2160405.946 | L22: ='Masse flow'!$M$48 -> 21180.45045 | M22: =VLOOKUP($O$22,'Bi pris'!$A$29:$C$33,3) -> 102 | N22: Kr/ton | O22: ='Bi pris'!A29 -> 1
C23: ='Masse flow'!$M$48 -> 21180.45045 | D23: =VLOOKUP($O$23,'Bi pris'!$A$36:$C$40,3) -> 8 | E23: Kr/ton | F23: 169443.6036 | L23: ='Masse flow'!$M$48 -> 21180.45045 | M23: =VLOOKUP($O$23,'Bi pris'!$A$36:$C$40,3) -> 8 | N23: Kr/ton | O23: ='Bi pris'!A36 -> 2
C24: ='Masse flow'!$M$48 -> 21180.45045 | D24: =VLOOKUP($O$24,'Bi pris'!$A$43:$C$47,3) -> 8 | F24: 169443.6036 | L24: ='Masse flow'!$M$48 -> 21180.45045 | M24: =VLOOKUP($O$24,'Bi pris'!$A$43:$C$47,3) -> 8 | N24: Kr/ton | O24: ='Bi pris'!A43 -> 2
B25: Solgt knowhow | D25: 0 | F25: 0 | M25: 0 | N25: kr
B27: Udgifter - variable | F27: =SUM(F29:F48) -> 6098268.773 | H27: =F27/'Masse flow'!D36 -> 816.3679749
B29: Indkøbt græs | C29: ='Masse flow'!$C$36 -> 41500 | D29: =ROUNDUP(Kalkule!$K$37,0) -> 69 | E29: kr./tons | F29: =C29*D29 -> 2863500 | L29: ='Masse flow'!$C$36 -> 41500 | M29: =ROUNDUP(Kalkule!$K$37,0) -> 69 | N29: kr./tons | P29: =Kalkule!D14 -> 1.27 | Q29: FE | R29: økologisk
B30: Høst af græs | C30: ='Masse flow'!$C$7 -> 500 | D30: =ROUNDUP(Kalkule!$E$44,-1)*-1 -> 540 | E30: kr./ha | F30: =D30*C30 -> 270000 | L30: ='Masse flow'!$C$7 -> 500 | M30: =ROUNDUP(Kalkule!$E$44,-1)*-1 -> 540 | N30: kr./ha
B31: Kørsel græs | C31: =$L$29 -> 41500 | D31: 8 | E31: km i gns | F31: =IF(D31=0,0,IF(D31<=Kørsel!$F$34,Kørsel!$F$37,IF(Drift!D31<=Kørsel!$G$34,Kørsel!$G$37,IF(Drift!D31<=Kørsel!$H$34,Kørsel!$H$37,Kørsel!$I$37)))) -> 896400 | H31: =SUM(F29:F31) -> 4029900 | I31: =H31/'Masse flow'!D36/1000 -> 0.5394779116 | L31: =$L$29 -> 41500 | M31: 8 | N31: km i gns
B32: Tørring af pasta- vand bortdampet | C32: ='Masse flow'!$M$46 -> 4969.6997 | D32: 0 | E32: kr./tons | F32: =D32*C32 -> 0 | L32: ='Masse flow'!$M$46 -> 4969.6997 | M32: ='Data omkn'!$C$126/'Data omkn'!$C$121 -> 35 | N32: kr./tons vand | O32: Omkostninger i forhold til vand der skal fjenes
B33: Elforbrug (kWh) ved presning og dekanter | C33: =IF($F$4=2,'Data omkn'!$C$64+'Data omkn'!$C$75,'Data omkn'!$C$64) -> 370232.3529 | D33: ='Data omkn'!$E$126 -> 0.75 | E33: kr./kWh | F33: =D33*C33 -> 277674.2647 | L33: =IF($F$4=2,'Data omkn'!$C$64+'Data omkn'!$C$75,'Data omkn'!$C$64) -> 370232.3529 | M33: ='Data omkn'!$E$126 -> 0.75 | N33: kr./kWh
B34: Gasforbrug (opvarm - grønsaft) | C34: ='Data omkn'!$C$83 -> 85905 | D34: ='Data omkn'!$E$134 -> 3.5 | E34: kr./m3 | F34: 300667.5 | L34: ='Data omkn'!$C$83 -> 85905 | M34: ='Data omkn'!$E$134 -> 3.5 | N34: kr./m3 naturgas
B35: Drivstof - gummiged | C35: ='Data omkn'!$C$90 -> 7720.588235 | D35: 8.5 | E35: kr./liter | F35: 65625 | L35: ='Data omkn'!$C$90 -> 7720.588235 | M35: 8.5 | N35: kr./liter
B36: Drifstof - gaffeltruck | C36: ='Data omkn'!$C$94 -> 459.5588235 | D36: 8.5 | E36: kr./liter | F36: 3906.25 | L36: =ROUND('Data omkn'!$C$94,0) -> 460 | M36: 8.5 | N36: kr./liter
B37: Reparationer i alt | C37: 1 | D37: ='Data omkn'!$C$115 -> 755650 | E37: kr./år | F37: 755650 | L37: 1 | M37: ='Data omkn'!$C$115 -> 755650 | N37: kr./år
B38: Emballage til protein | C38: =IF($F$18>0,C18/1000,$L$17/1000) -> 559.4431359 | D38: 10 | E38: kr./ton | F38: 5594.431359 | L38: =IF($F$18>0,C18/1000,$L$17/1000) -> 559.4431359 | M38: 10 | N38: kr./ton | O38: Vacuumposer
B39: Arbejdsløn - produktionenpr. Hold | C39: 2 | D39: 250 | E39: kr./time/mand | F39: =D39*C39*'Masse flow'!C28*'Data omkn'!D181+(C39*D39*40) -> 452000 | L39: 2 | M39: 250 | N39: kr./time/mand | O39: Driftsdage | P39: ='Masse flow'!C27 -> 36.76470588 | Q39: plus oprydning for 2 personer 40 timer.
B40: Rettighedsgebyr | C40: ='Masse flow'!$M$50/1000 -> 559.4431359 | D40: 50 | E40: kr./ton | F40: 27972.15679 | L40: ='Masse flow'!$M$50/1000 -> 559.4431359 | M40: 50 | N40: kr./ton tørt koncentrat
B41: Affaldsvand gebyr | C41: =ROUND(0.5*'Masse flow'!$M$46,0) -> 2485 | D41: 0 | E41: kr./m3 | F41: 0 | H41: =SUM(F32:F41) -> 1889089.603 | L41: =ROUND(0.5*'Masse flow'!$M$46,0) -> 2485 | M41: 0 | N41: kr/m3
B42: Slutprodukter
B43: Kørsel af presserest =fiber | C43: ='Masse flow'!$M$45 -> 12805.655 | D43: 5 | E43: km i gns | F43: =IF(D43=0,0,IF(D43<=Kørsel!$F$42,Kørsel!$F$45,IF(Drift!D43<=Kørsel!$G$42,Kørsel!$G$45,IF(Drift!D43<=Kørsel!$H$42,Kørsel!$H$45,Kørsel!$I$45))))/2 -> 179279.17 | I43: =F43/C46/0.7 -> 14 | L43: ='Masse flow'!$M$45 -> 12805.655 | M43: 5 | N43: km i gns
B44: Kørsel brunsaft | C44: ='Masse flow'!$M$48 -> 21180.45045 | D44: 0 | E44: km i gns | F44: =IF(D44=0,0,IF(D44<=Kørsel!$F$4,Kørsel!$F$15,IF(D44<=Kørsel!$G$4,Kørsel!$G$15,IF(D44<=Kørsel!$H$4,Kørsel!$H$15,IF(D44<=Kørsel!$I$4,Kørsel!$I$15,IF(D44<=Kørsel!$J$4,Kørsel!$J$15,IF(D44<=Kørsel!$K$4,Kørsel!$K$15,IF(D44<=Kørsel!$L$4,Kørsel!$L$15,Kørsel!M15)))))))) -> 0 | L44: ='Masse flow'!$M$48 -> 21180.45045 | M44: 5 | N44: km i gns
B45: Kørsel af pasta til tørring | C45: ='Masse flow'!$M$47 -> 7454.54955 | E45: km i gns | F45: =IF(D45=0,0,IF(D45<=Kørsel!$F$18,Kørsel!$F$29,IF(D45<=Kørsel!$G$18,Kørsel!$G$29,IF(D45<=Kørsel!$H$18,Kørsel!$H$29,IF(D45<=Kørsel!$I$18,Kørsel!$I$29,IF(D45<=Kørsel!$J$18,Kørsel!$J$29,IF(D45<=Kørsel!$K$18,Kørsel!$K$29,IF(D45<=Kørsel!$L$18,Kørsel!$L$29,IF(D45>Kørsel!L18,Kørsel!M29,0))))))))) -> 0 | H45: =SUM(F43:F45) -> 179279.17 | L45: ='Masse flow'!$M$47 -> 7454.54955 | N45: km i gns
B46: Wrapning af presset græs | C46: ='Masse flow'!$M$45/0.7 -> 18293.79286 | D46: 0 | E46: kr./styk | F46: =C46*D46 -> 0 | L46: ='Masse flow'!$M$45/0.7 -> 18293.79286 | M46: 70 | N46: kr./styk | O46: wapningsplast | P46: 700 kg baller | R46: 150,- kr/700 balle ved fuld maskinpris
B47: Tørring af presset græs- energi | C47: ='Data omkn'!$C$131 -> 7657.817143 | E47: kr./tons | F47: =C47*D47 -> 0 | L47: ='Data omkn'!$C$131 -> 7657.817143 | M47: ='Data omkn'!$C$136/'Data omkn'!$C$131 -> 35
B48: Presning til piller- energi | C48: ='Data omkn'!$C$142 -> 580864.5108 | E48: kr./kWh | F48: =C48*D48 -> 0 | H48: =SUM(F46:F48) -> 0 | L48: ='Data omkn'!$C$142 -> 580864.5108 | M48: ='Data omkn'!$E$143 -> 0.75 | O48: energi til pillepresning
H49: =SUM(H41:H48) -> 2068368.773
B50: Udgifter - faste | F50: =SUM(F52:F58) -> 668125
B52: offentlig skat - Ejendomsskat | C52: =Etablering!$E$8 -> 3750000 | D52: 0.0035 | F52: =C52*D52 -> 13125 | L52: =Etablering!$E$8 -> 3750000 | M52: 0.0035 | N52: % af grundværdi
B53: Forsikring | D53: 100000 | F53: =D53 -> 100000 | M53: 100000
B54: Løn - administration | C54: 1 | D54: 350000 | F54: =C54*D54 -> 350000 | L54: 1 | M54: 350000 | N54: kr./person/år | O54: Driftsleder
B55: Afskrivning = afdrag
B56: Møder | D56: 25000 | F56: =D56 -> 25000 | M56: 25000
B57: Revision | D57: 80000 | F57: =D57 -> 80000 | M57: 80000
B58: leje af GSB | D58: 100000 | F58: =D58 -> 100000 | M58: 100000
B60: Finansiering pr. år | F60: =SUM(F61:F69) -> 585000
B61: Realkreditfinansiering | C61: =Etablering!$E$6 -> 15000000 | D61: 0.6 | E61: =D61*C61 -> 9000000 | L61: =Etablering!$E$6 -> 15000000 | M61: 0.6
B62: Rente inkl. administration, % | D62: 0.025 | M62: 0.025
B63: Løbetid på lån, år | D63: 15 | E63: år | M63: 15 | N63: år
B64: Rente på lån år 1, kr/år | F64: =E61*D62 -> 225000
B66: Anden finansiering | C66: =C61 -> 15000000 | D66: 0.3 | E66: =D66*C66 -> 4500000 | L66: =L61 -> 15000000 | M66: 0.3
B67: =B62 -> Rente inkl. administration, % | D67: 0.08 | M67: 0.08
B68: =B63 -> Løbetid på lån, år | D68: 10 | E68: år | M68: 10 | N68: år
B69: Rente på lån år 1, kr/år | F69: =E66*D67 -> 360000
B71: Egenkapital/anparts indskud, kr. | C71: =C61 -> 15000000 | D71: =100%-D61-D66 -> 0.1 | E71: =D71*C71 -> 1500000 | L71: =L61 -> 15000000 | M71: =100%-M61-M66 -> 0.1 | N71: af investering

Sheet Økonomi
B2: =Etablering!B2 -> Projekt: | C2: =Etablering!C2 -> Case 1: Etablering af et bioraffineringsanlæg samme med 4 gårde
B3: =Etablering!B3 -> Anlægstype: | C3: =Etablering!C3 -> Bioraffinering af græs til proteinkoncentrat
B5: Rentabilitet og likviditet
D6: 2017 | E6: 2018 | F6: 2019 | G6: 2020 | H6: 2021 | I6: 2022 | J6: 2023 | K6: 2024 | L6: 2025 | M6: 2026
B7: Pastaproduktion, tons | D7: =ROUND(Drift!C17/1000,0) -> 559 | E7: =D7 -> 559 | F7: =E7 -> 559 | G7: 559 | H7: 559 | I7: 559 | J7: 559 | K7: 559 | L7: 559 | M7: 559
B8: Proteinproduktion, tons | D8: =Drift!C18/1000 -> 0 | E8: =D8 -> 0 | F8: =E8 -> 0 | G8: 0 | H8: 0 | I8: 0 | J8: 0 | K8: 0 | L8: 0 | M8: 0
B9: Pasta pris kr./tons | D9: =Drift!D17 -> 5.21 | E9: =D9 -> 5.21 | F9: 5.21 | G9: 5.21 | H9: 5.21 | I9: 5.21 | J9: 5.21 | K9: 5.21 | L9: 5.21
B10: Protein pris kr./tons | D10: =Drift!D17*1000 -> 5210 | E10: 5210 | F10: =E10 -> 5210 | G10: 5210 | H10: =G10+(G10*$C$20) -> 5314.2 | I10: =H10 -> 5314.2 | J10: =I10 -> 5314.2 | K10: =J10 -> 5314.2 | L10: =K10+(K10*$C$20) -> 5420.484 | M10: =L10+(L10*$C$20) -> 5528.89368
B11: Biprodukter, fiber tons | D11: =Drift!C19 -> 12805.655 | E11: 12805.655 | F11: =E11 -> 12805.655 | G11: 12805.655 | H11: 12805.655 | I11: 12805.655 | J11: 12805.655 | K11: 12805.655 | L11: 12805.655 | M11: 12805.655
B12: Pris på fiber kr/tons | D12: =Drift!D19 -> 347.375 | E12: 347.375 | F12: =E12 -> 347.375 | G12: =F12 -> 347.375 | H12: =G12+(G12*$C$20) -> 354.3225 | I12: =H12 -> 354.3225 | J12: 354.3225 | K12: 354.3225 | L12: =K12+(K12*$C$20) -> 361.40895 | M12: =L12 -> 361.40895
B13: Biprodukter, fiber tons | D13: =Drift!C20 -> 12805.655 | E13: 12805.655 | F13: =E13 -> 12805.655 | G13: =F13 -> 12805.655 | H13: =G13 -> 12805.655 | I13: =H13 -> 12805.655 | J13: 12805.655 | K13: 12805.655 | L13: =K13 -> 12805.655 | M13: =L13 -> 12805.655
B14: Pris på fiber kr/tons | D14: =Drift!D20 -> 262.5012153 | E14: 262.5012153 | F14: =E14 -> 262.5012153 | G14: 262.5012153 | H14: =G14+(G14*$C$20) -> 267.7512396 | I14: =H14 -> 267.7512396 | J14: =I14 -> 267.7512396 | K14: =J14 -> 267.7512396 | L14: =K14+(K14*$C$20) -> 273.1062644 | M14: =L14 -> 273.1062644
B15: Biprodukter, brunsaft, tons | D15: =Drift!C22 -> 21180.45045 | E15: 21180.45045 | F15: =E15 -> 21180.45045 | G15: 21180.45045 | H15: 21180.45045 | I15: 21180.45045 | J15: 21180.45045 | K15: 21180.45045 | L15: 21180.45045 | M15: 21180.45045
B16: Pris på brunsaft, kr/tons | D16: =Drift!D22 -> 102 | E16: 102 | F16: 102 | G16: 102 | H16: =G16+(G16*$C$20) -> 104.04 | I16: =H16+(H16*$C$20) -> 106.1208 | J16: 108.243216 | K16: 110.4080803 | L16: 112.6162419 | M16: 114.8685668
B17: Biprodukter, brunsaft, tons | D17: =Drift!C23 -> 21180.45045 | E17: 21180.45045 | F17: =E17 -> 21180.45045 | G17: =F17 -> 21180.45045 | H17: =G17+(G17*$C$20) -> 21604.05946 | I17: =H17+(H17*$C$20) -> 22036.14065 | J17: =I17+(I17*$C$20) -> 22476.86346 | K17: =J17+(J17*$C$20) -> 22926.40073 | L17: =K17+(K17*$C$20) -> 23384.92874 | M17: =L17+(L17*$C$20) -> 23852.62732
B18: Pris på brunsaft, kr/tons | D18: =Drift!D23 -> 8 | E18: 8 | F18: 8 | G18: 8 | H18: 8.16 | I18: 8.3232 | J18: 8.489664 | K18: 8.65945728 | L18: 8.832646426 | M18: 9.009299354
B20: Indeksering | C20: 0.02 | H20: 0.02
D21: =CONCATENATE("% prod.af ",D6) -> % prod.af 2017 | E21: =E6 -> 2018 | F21: =F6 -> 2019 | G21: 2020 | H21: 2021 | I21: 2022 | J21: 2023 | K21: 2024 | L21: 2025 | M21: 2026
B22: Bioraffineringsanlæg anlægspris, kr. | C22: =Etablering!E6*-1 -> -15000000 | D22: 1
B23: =CONCATENATE("Renteudgifter realkreditlån,",Drift!D63," år") -> Renteudgifter realkreditlån,15 år | C23: =Drift!D62 -> 0.025 | D23: =C39*$C$23 -> -225000 | E23: -136765.5286 | F23: -88766.70813 | G23: -40872.06799 | H23: 6874.806039 | I23: 57521.60188 | J23: 108814.4486 | K23: 160754.138 | L23: 213341.0928 | M23: 268965.1662
B24: =CONCATENATE("Forrentning af banklån,",Drift!D68," år") -> Forrentning af banklån,10 år | C24: =Drift!D67 -> 0.08 | D24: =C40*$C$24 -> -360000 | E24: =D40*$C$24 -> -218824.8458 | F24: -142026.733 | G24: -65395.30879 | H24: 10999.68966 | I24: 92034.56301 | J24: 174103.1177 | K24: 257206.6208 | L24: 341345.7485 | M24: 430344.266
B26: Forrentning af anlæg = overskud af produktionen
B27: Driftsomkostninger, variable | C27: =SUM(Drift!F29:F40)*-1 -> -5918989.603 | D27: =C27*D22 -> -5918989.603 | E27: =C27 -> -5918989.603 | F27: =E27+(E27*$C$20) -> -6037369.395 | G27: =F27+(F27*$C$20) -> -6158116.783 | H27: =G27+(G27*$H$20) -> -6281279.118 | I27: =H27+(H27*$H$20) -> -6406904.701 | J27: -6535042.795 | K27: -6665743.651 | L27: -6799058.524 | M27: -6935039.694
B28: Driftsomkostninger, faste | C28: =SUM(Drift!F52:F58)*-1 -> -668125 | D28: =C28*D22 -> -668125 | E28: =C28 -> -668125 | F28: =E28+(E28*$C$20) -> -681487.5 | G28: =F28+(F28*$C$20) -> -695117.25 | H28: =G28+(G28*$H$20) -> -709019.595 | I28: =H28+(H28*$H$20) -> -723199.9869 | J28: -737663.9866 | K28: -752417.2664 | L28: -767465.6117 | M28: -782814.9239
B29: Samlede udgifter | C29: =C27+C28 -> -6587114.603 | D29: =D27+D28 -> -6587114.603 | E29: -6587114.603 | F29: -6718856.895 | G29: -6853234.033 | H29: -6990298.713 | I29: -7130104.688 | J29: -7272706.781 | K29: -7418160.917 | L29: -7566524.135 | M29: -7717854.618
B31: Salg af protein | C31: =Drift!F17+Drift!$F$18 -> 2914698.738 | D31: =C31*$D$22 -> 2914698.738 | E31: =(E8*E10)+(E7*E9) -> 2912.39 | F31: 2912.39 | G31: 2912.39 | H31: 2912.39 | I31: 2912.39 | J31: 2912.39 | K31: 2912.39 | L31: 2912.39 | M31: 0
B32: Salg af biprodukter fiber delen | C32: =SUM(Drift!F19:F20) -> 7809864.406 | D32: =C32*$D$22 -> 7809864.406 | E32: =(E11*E12)+E13*E14 -> 7809864.406 | F32: 7809864.406 | G32: 7809864.406 | H32: 7966061.694 | I32: 7966061.694 | J32: 7966061.694 | K32: 7966061.694 | L32: 8125382.928 | M32: 8125382.928
B33: Salg af biprodukter brungsaft delen | C33: =Drift!$F$22+Drift!F23 -> 2329849.55 | D33: 2329849.55 | E33: =(E15*E16)+E17*E18 -> 2329849.55 | F33: 2329849.55 | G33: 2329849.55 | H33: 2379903.19 | I33: 2431097.552 | J33: 2483461.092 | K33: 2537023.062 | L33: 2591813.539 | M33: 2647863.447
B34: Andet salg | C34: =Drift!F25 -> 0 | D34: 0 | E34: =D34 -> 0 | F34: =E34 -> 0 | G34: 0 | H34: 0 | I34: 0 | J34: 0 | K34: 0 | L34: 0 | M34: 0
B35: Samlede indtægter | C35: =SUM(C31:C33) -> 13054412.69 | D35: =SUM(D31:D33) -> 13054412.69 | E35: 10142626.35 | F35: 10142626.35 | G35: 10142626.35 | H35: 10348877.27 | I35: 10400071.64 | J35: 10452435.18 | K35: 10505997.15 | L35: 10720108.86 | M35: 10773246.37
B37: Overskud unden afdrag på lån | D37: =D29+D35+D23+D24+D25 -> 5882298.09 | E37: 3199921.368 | F37: 3192976.009 | G37: 3183124.936 | H37: 3376453.056 | I37: 3419523.113 | J37: 3462645.96 | K37: 3505796.988 | L37: 3708271.563 | M37: 3754701.188
B39: Saldo rentebærende gæld realkredit | C39: =(Drift!E61)*-1 -> -9000000 | D39: =IF(D37>0,D37*Drift!$D$61+Økonomi!C39,C39) -> -5470621.146 | E39: =IF(E37>0,E37*Drift!$D$61+Økonomi!D39,D39) -> -3550668.325 | F39: =IF(F37>0,F37*Drift!$D$61+Økonomi!E39,E39) -> -1634882.72 | G39: =IF(G37>0,G37*Drift!$D$61+Økonomi!F39,F39) -> 274992.2416 | H39: =IF(H37>0,H37*Drift!$D$61+Økonomi!G39,G39) -> 2300864.075 | I39: =IF(I37>0,I37*Drift!$D$61+Økonomi!H39,H39) -> 4352577.943 | J39: =IF(J37>0,J37*Drift!$D$61+Økonomi!I39,I39) -> 6430165.519 | K39: =IF(K37>0,K37*Drift!$D$61+Økonomi!J39,J39) -> 8533643.711 | L39: =IF(L37>0,L37*Drift!$D$61+Økonomi!K39,K39) -> 10758606.65 | M39: =IF(M37>0,M37*Drift!$D$61+Økonomi!L39,L39) -> 13011427.36
B40: Saldo rentebærende gæld banklån | C40: =Drift!E66*-1 -> -4500000 | D40: =IF(D37>0,D37*Drift!$D$66+Økonomi!C40,C40+D37) -> -2735310.573 | E40: =IF(E37>0,E37*Drift!$D$66+Økonomi!D40,D40+E37) -> -1775334.163 | F40: =IF(F37>0,F37*Drift!$D$66+Økonomi!E40,E40+F37) -> -817441.3599 | G40: =IF(G37>0,G37*Drift!$D$66+Økonomi!F40,F40+G37) -> 137496.1208 | H40: =IF(H37>0,H37*Drift!$D$66+Økonomi!G40,G40+H37) -> 1150432.038 | I40: =IF(I37>0,I37*Drift!$D$66+Økonomi!H40,H40+I37) -> 2176288.971 | J40: =IF(J37>0,J37*Drift!$D$66+Økonomi!I40,I40+J37) -> 3215082.759 | K40: =IF(K37>0,K37*Drift!$D$66+Økonomi!J40,J40+K37) -> 4266821.856 | L40: =IF(L37>0,L37*Drift!$D$66+Økonomi!K40,K40+L37) -> 5379303.325 | M40: =IF(M37>0,M37*Drift!$D$66+Økonomi!L40,L40+M37) -> 6505713.681
B41: Samlede rentebærende gæld | C41: =SUM(C39:C40) -> -13500000 | D41: =SUM(D39:D40) -> -8205931.719 | E41: =SUM(E39:E40) -> -5326002.488 | F41: -2452324.08 | G41: 412488.3624 | H41: 3451296.113 | I41: 6528866.914 | J41: 9645248.278 | K41: 12800465.57 | L41: 16137909.97 | M41: 19517141.04
B43: Kontrol | D43: =Drift!F11 -> 9233962.524

Sheet Masse flow
B2: =Etablering!B2 -> Projekt: | C2: =Etablering!C2 -> Case 1: Etablering af et bioraffineringsanlæg samme med 4 gårde
B3: =Etablering!B3 -> Anlægstype: | C3: =Etablering!C3 -> Bioraffinering af græs til proteinkoncentrat
B5: Produktion af biomasse | C5: Data fra "Model2" | I5: Data fra "Model2"
B6: Beregningsdata: | C6: 1. presn. | D6: 2. presn. | I6: 1. presn. | J6: 2. presn.
B7: Leveringsareal (ha) i alt | C7: 500 | I7: =Drift!F5 -> 500
B8: Tørstofprocent i græsset | C8: 0.18 | D8: 0.18 | I8: ='Model 2'!C13/100 -> 0.18 | J8: ='Model 2'!$C$13/100 -> 0.18
B9: Spild ved høst af grøn masse | C9: 0 | I9: 0
B10: Spild ved presserest | C10: 0 | I10: 0
B11: Andel saft % af total | C11: 0.69 | I11: ='Model 2'!$I$33/100 -> 0.6914285714 | L11: I33
B12: Andel fiber-rest % af total | C12: 0.30857 | D12: 0.6 | I12: ='Model 2'!$C$54/100 -> 0.3085714286 | J12: ='Model 2'!$C$122/100 -> 0.6 | L12: c54
B13: Andel fiber-rest, TS % | C13: 0.35 | D13: 0.3 | I13: ='Model 2'!$C$57/100 -> 0.35 | J13: ='Model 2'!$O$100/100 -> 0.3 | L13: c57
B14: Andel grøn saft, TS % | C14: 0.1 | I14: ='Model 2'!$I$36/100 -> 0.1041322314 | L14: I36
B15: Andel af vådvægt til protein-pasta | C15: 0.26033 | D15: 0.5 | I15: ='Model 2'!$O$33/100 -> 0.2603305785 | J15: ='Model 2'!$O$99/100 -> 0.5 | L15: O33
B16: Andel protein-pasta TS % | C16: 0.0749 | D16: 0.05265447438 | I16: ='Model 2'!$U$46/100 -> 0.07489198606 | J16: ='Model 2'!$U$111/100 -> 0.04387872865 | L16: U46
B18: Antal slæt pr. år | C18: 3 | I18: 3
K19: Data fra "Data omkn."
B20: Høstareal max (ha) pr. dag | C20: 40.8 | I20: ='Data omkn'!$D$177 -> 40.8
B21: Udbytte gennem/ ha- tons/ha | C21: 27.66666667 | I21: ='Data omkn'!$C$157 -> 27.66666667
B22: Tons TS pr. ha i gennemsnit | C22: 4.98 | I22: ='Data omkn'!$E$157/1000 -> 4.98
B23: Antal arbejdsdage pr. seson | C23: 12.25490196 | I23: ='Data omkn'!$F$168 -> 12.25490196
B24: Leveringshastighed (tons FM/time) | C24: 85.6 | I24: ='Data omkn'!$D$175 -> 85.6
B25: Leveret grønt pr. dag (tons FM) | C25: =ROUND(C20*C21,-1) -> 1130
B26: Pressetid pr. dag (timer)fabrik | C26: =CEILING(C25/C24,2) -> 14 | D26: Timer | G26: 45 | H26: =G26*30% -> 13.5 | I26: =H26*0.85*1000 -> 11475
B27: Driftsdage pr. år | C27: =C23*C18 -> 36.76470588 | D27: dage
B28: Driftstid pr. dag | C28: 24 | D28: timer
C31: 1 presning | I31: 2 presning- højtrykpresser
B32: Masseflow pr. år | C32: i Tons | D32: i Tons | I32: i Tons | J32: i Tons | K32: i Tons | R32: Fra artikel xx
C33: FM | D33: TS | E33: % | F33: TS % | G33: kg FE | I33: FM | J33: TS | K33: Vand | L33: TS % | M33: Produkt tons | N33: Produkter TS-tons | R33: % | S33: Frisk | T33: Pressekage | U33: Brunsaft
B34: Leveret grønt (tons)/år | C34: =C7*'Data omkn'!C155 -> 41500 | D34: =C34*C8 -> 7470 | F34: =D34/C34 -> 0.18 | G34: =D34*'Data omkn'!$C$149*1000 -> 5751900 | I34: =J34/D8 -> 24899.88472 | J34: =D39 -> 4481.97925 | K34: =I34-J34 -> 20417.90547 | R34: TS | S34: 18.7 | T34: 35.6 | U34: 4.4
B35: Spild | C35: =C34*$E$35 -> 0 | D35: =D34*$E$35 -> 0 | E35: =C9 -> 0 | G35: =D35*'Data omkn'!$C$149 -> 0 | R35: VS | S35: 17 | T35: 33.8 | U35: 3.3
B36: Til presning | C36: =C34-C35 -> 41500 | D36: =D34-D35 -> 7470 | G36: =(D36*'Data omkn'!$C$149)*1000 -> 5751900
B38: Andel grønsaft | C38: =C36*E38 -> 28635 | D38: =C38*C14 -> 2863.5 | E38: =C11 -> 0.69 | F38: =D38/C38 -> 0.1 | I38: =I34-I39 -> 20417.90547 | J38: =J34-J39 -> 1792.7917 | L38: =J38/I38 -> 0.08780487805
B39: Andel presse-rest = fiber del | C39: =C36*$E$39 -> 12805.655 | D39: =C39*C13 -> 4481.97925 | E39: =C12 -> 0.30857 | F39: =D39/C39 -> 0.35 | I39: =J39/D12 -> 4481.97925 | J39: =J34*D12 -> 2689.18755 | L39: =J39/I39 -> 0.6
B41: Spild - grønsaft | C41: =ROUND(C38*E41,0) -> 0 | D41: =ROUND(D38*E41,0) -> 0 | E41: =E35 -> 0
B42: Spild - presserest =fiber del | C42: =ROUND(C39*$E$42,0) -> 0 | D42: =ROUND(D39*$E$42,0) -> 0 | E42: =C10 -> 0
G43: Vand-tons
B44: Grønsaft produceret | C44: =C38-C41 -> 28635 | D44: =D38-D41 -> 2863.5 | G44: =C44-D44 -> 25771.5 | I44: =I38 -> 20417.90547 | J44: =J38 -> 1792.7917 | K44: =K34-K45 -> 18625.11377 | M44: =IF(Drift!F4=2,'Masse flow'!I44,'Masse flow'!C44) -> 28635 | N44: =IF(Drift!F4=2,'Masse flow'!J44,'Masse flow'!D44) -> 2863.5
B45: Presserest (fiber) produceret | C45: =C39-C42 -> 12805.655 | D45: =D39-D42 -> 4481.97925 | I45: =I39 -> 4481.97925 | J45: =J39 -> 2689.18755 | K45: =I45-J45 -> 1792.7917 | M45: =IF(Drift!$F$4=2,'Masse flow'!I45,'Masse flow'!C45) -> 12805.655 | N45: =IF(Drift!$F$4=2,'Masse flow'!J45,'Masse flow'!D45) -> 4481.97925 | O45: Presse- kage til rest
M46: =IF(Drift!$F$4=2,'Masse flow'!K47+G47,'Masse flow'!G47) -> 4969.6997 | O46: Vand fra proteinproduktion
B47: Andel protein-pasta | C47: =C44*E47 -> 7454.54955 | D47: =C47*F47 -> 2236.364865 | E47: =C15 -> 0.26033 | F47: 0.3 | G47: =C47-D47/0.9 -> 4969.6997 | I47: =J47/D13 -> 2987.986167 | J47: =J44*D15 -> 896.39585 | K47: =I47-J47/0.9 -> 1991.990778 | M47: =IF(Drift!$F$4=2,'Masse flow'!I47+C47,'Masse flow'!C47) -> 7454.54955 | N47: =IF(Drift!$F$4=2,'Masse flow'!J47+D47,'Masse flow'!D47) -> 2236.364865 | O47: Protein paster
B48: Andel brunsaft | C48: =C44*E48 -> 21180.45045 | D48: =D44-D47 -> 627.135135 | E48: =1-E47 -> 0.73967 | F48: =D48/C48 -> 0.02960915003 | G48: =G44-G47 -> 20801.8003 | I48: =I44-I47 -> 17429.91931 | J48: =J44-J47 -> 896.39585 | K48: =K44-K47 -> 16633.12299 | M48: =IF(Drift!$F$4=2,('Masse flow'!I48+C48),'Masse flow'!C48) -> 21180.45045 | N48: =IF(Drift!$F$4=2,('Masse flow'!J48+D48),'Masse flow'!D48) -> 627.135135 | O48: brunsaft
B49: Protein kg TS | C49: ='Model 2'!U35 -> 36 | I49: ='Model 2'!U100 -> 21.6 | M49: =IF(Drift!$F$4=2,('Masse flow'!I49+C49),'Masse flow'!C49) -> 36
B50: Kg rent protein | C50: ='Model 2'!U44*C34 -> 559443.1359 | D50: =C16 -> 0.0749 | I50: ='Model 2'!U109*C34 -> 131109.6412 | J50: =D16 -> 0.05265447438 | M50: =IF(Drift!$F$4=2,('Masse flow'!I50+C50),'Masse flow'!C50) -> 559443.1359 | O50: Ren protein kg
M53: ='Model 2'!F79*C36/1000 -> 12094.28571 | N53: Ekstra vand tilsat ved 2 presning
B56: Masseflow pr. dag | C56: =C32 -> i Tons | D56: =D32 -> i Tons | G56: Ton pr.
C57: =C33 -> FM | D57: =D33 -> TS | E57: % | F57: TS % | G57: time
B58: Leveret grønt (tons) | C58: ='Data omkn'!D178 -> 1120 | D58: =C58*F58 -> 201.6 | F58: =F34 -> 0.18
B59: Spild | C59: =C58*E59 -> 0 | D59: =D58*E59 -> 0 | E59: =E35 -> 0
B60: Til presning | C60: =C58-C59 -> 1120 | D60: =D58-D59 -> 201.6
B62: Andel saft | C62: =C60*E62 -> 772.8 | D62: =C62*F62 -> 77.28 | E62: =E38 -> 0.69 | F62: =F38 -> 0.1 | G62: =C62/C26 -> 55.2
B63: Andel presse-rest | C63: =C60*E63 -> 345.5984 | D63: =C63*F63 -> 120.95944 | E63: =E39 -> 0.30857 | F63: =F39 -> 0.35 | G63: =C63/C26 -> 24.6856
B65: Spild - saft | C65: =C62*E65 -> 0 | D65: =D62*E65 -> 0 | E65: =E41 -> 0
B66: Spild - presserest | C66: =C63*E66 -> 0 | D66: =D63*E66 -> 0 | E66: =E42 -> 0
B68: =B44 -> Grønsaft produceret | C68: =C62-C65 -> 772.8 | D68: =D62-D65 -> 77.28
B69: =B45 -> Presserest (fiber) produceret | C69: =C63-C66 -> 345.5984 | D69: =D63-D66 -> 120.95944
B71: Andel protein-pasta | C71: =C68*E71 -> 201.183024 | D71: =C71*F71 -> 60.3549072 | E71: =E47 -> 0.26033 | F71: =F47 -> 0.3
B72: Andel brunsaft | C72: =C68*E72 -> 571.616976 | D72: =D68-12 -> 65.28 | E72: =E48 -> 0.73967 | F72: =D72/C72 -> 0.1142023466

Sheet Data omkn
B2: ='Masse flow'!B2 -> Projekt: | C2: =Etablering!C2 -> Case 1: Etablering af et bioraffineringsanlæg samme med 4 gårde
B3: ='Masse flow'!B3 -> Anlægstype: | C3: =Etablering!C3 -> Bioraffinering af græs til proteinkoncentrat
D5: 2
B7: DB-beregning Mark- Niels Tvedegaard
B8: ER ikke gennemregnet | K8: For 2017 er der beregnet følgende vejledende interne grovfoderpriser:
B9: Høstmængde | D9: =C156 -> 83 | E9: tons friks masse | K9: Konventionel produktion: Majs 101, græsensilage 125 og afgræsning 83 øre pr. FEN. Den gen-nemsnitlige interne pris er beregnet til 113 øre pr. FEN.
B10: Indtægter | H10: kr/FM | K10: Økologisk produktion: Majs 137, græsensilage 154 og afgræsning 85 øre pr. FEN. Den gennem-snitlige interne pris er beregnet til 149 øre pr. FEN.
B11: Salg af grønt på roden | D11: =Kalkule!D14 -> 1.27 | E11: kr/FE* | F11: =D156*D11 -> 14609.826 | H11: =F11/C156/1000 -> 0.176022
B12: Forfrugtsværdi** Niels Tvedegaard | F12: 2000
B13: N-værdi afgasset gødning | E13: ?
B14: Indtægter i alt | F14: =SUM(F11:F13) -> 16609.826
B16: Udgifter | C16: kg/gang | D16: kr
B17: Såsæd-græs- 2 år | C17: 0.5 | D17: 1040 | F17: =C17*D17 -> 520
B18: Såning og tromling | C18: 0.5 | D18: 400 | F18: =C18*D18 -> 200
B19: Høst (skårl. + snitn)* | C19: 3 | D19: =(1400+1200+1200) -> 3800 | F19: =D19/D166*C19 -> 5588.235294
B20: Køb af husdyrgødning, fosfor | C20: 38 | D20: 12 | F20: =C20*D20 -> 456
B21: Køb af husdyrgødning, kalium | C21: 257 | D21: 6 | F21: =C21*D21 -> 1542
B22: Udbringning gødning | D22: 140 | F22: 920
B23: Plast til ensilering | F23: 0
B24: Transport afgasset gødning | F24: 1286.417967
B26: Udgifter i alt | F26: =SUM(F17:F24) -> 10512.65326
B28: DB pr. ha | F28: =F14-F26 -> 6097.172739
B30: *Vejledende grovfoderpriser for 2017
S31: =Drift!F20 -> 3361500
B32: DB-Biogas- pressekage og brungsaft | H32: Bånlev giver 1 kr / FE | J32: =Kalkule!B228*Kalkule!B224*'Masse flow'!C7/'Masse flow'!C39 -> 262.5012153 | K32: kr/tons pressekage | M32: foder ved 1 presning | O32: Salgspris contro produktionsværdi på | S32: =Kalkule!B96*Kalkule!B224*'Data omkn'!C39*'Masse flow'!C7 -> 4437180
J33: =J32*(1-0.25)*1 -> 196.8759115 | M33: foder ved 2 presninger skønnet
B34: Tons pressekage = fiber | C34: =(IF(Drift!$F$4=2,'Model 2'!$W$132,'Model 2'!$W$123))*'Masse flow'!C36/1000 -> 4482 | D34: =IF(Drift!$F$4=2,'Model 2'!$U$132,'Model 2'!$U$123)*'Masse flow'!C36/1000 -> 12805.71429 | E34: tons TS og tons FM | J34: =ROUND(Kalkule!E249,0) -> 102 | M34: brunsaft biogas
B35: Tons brunsaft | C35: =IF(Drift!$F$4=2,'Model 2'!$W$130,'Model 2'!$W$121)*'Masse flow'!C36/1000 -> 1494 | D35: =IF(Drift!$F$4=2,'Model 2'!$U$130,'Model 2'!$U$121)*'Masse flow'!C36/1000 -> 21224.28571 | E35: tons TS og tons FM | J35: =ROUND(Kalkule!E249,0) -> 102 | M35: brunsaft biogas
B36: Indtægter | F36: kr. | H36: Båndlev: Omkostninger 100 kr/tons indkøbt biomasse
B37: Kage - Salg af biogas, m3 metan 98% | C37: =IF(Drift!$F$4=2,Kalkule!B107,Kalkule!B74)*'Masse flow'!C36 -> 1109295 | D37: 0.6 | F37: =C37*C39 -> 4437180
B38: Saft - Salg af biogas, m3 metan 98% | C38: =IF(Drift!$F$4=2,Kalkule!H107,Kalkule!H74)*'Masse flow'!C36 -> 542322 | D38: 0.75 | F38: =C38*C39 -> 2169288
B39: Metanpris | C39: 4 | D39: kr./m3 CH4-98%
B40: Indtægter i alt | F40: =SUM(F36:F38) -> 6606468
B42: Udgifter
B43: Indkøb af presserest | C43: =IF(Drift!$F$4=2,'Data omkn'!J33,'Data omkn'!J32) -> 262.5012153 | D43: =D34 -> 12805.71429 | E43: Tons FM | F43: =C43*D43 -> 3361515.563
B44: Indkøb af restvæske brunsaft | C44: =IF(Drift!$F$4=2,'Data omkn'!J35,'Data omkn'!J34) -> 102 | D44: =D35 -> 21224.28571 | E44: Tons FM | F44: =C44*D44 -> 2164877.143
B45: Hentning af (Transport) presserest | C45: =C34 -> 4482 | D45: 10 | E45: km | F45: =IF(D45=0,0,IF(D45<=Kørsel!F42,Kørsel!F45,IF(D45<=Kørsel!G42,Kørsel!G45,IF(D45<=Kørsel!H42,Kørsel!H45,Kørsel!I45)))) -> 537837.51
B46: Hentning af (Transport) restvæske brunsaft | C46: =D35 -> 21224.28571 | D46: 10 | E46: km | F46: =IF(D46=0,0,IF(D46<=Kørsel!F4,Kørsel!F15,IF(D46<=Kørsel!G4,Kørsel!G15,IF(D46<=Kørsel!H4,Kørsel!H15,Kørsel!I15)))) -> 402428.5586
B47: Håndteringsudgift for presserest | C47: =D34 -> 12805.71429 | D47: 80 | E47: kr/ton | F47: =C47*D47 -> 1024457.143
B48: Håndteringsudgift for brunsaft | C48: =C46 -> 21224.28571 | D48: 60 | E48: kr/ton | F48: =C48*D48 -> 1273457.143
B50: Udgifter i alt | F50: =SUM(F43:F49) -> 8764573.06
B52: DB-Biogas | C52: 0 | F52: =F40-F50 -> -2158105.06
B55: Elforbrug ved 1 presning
B57: Skruepresse | C57: 2 | D57: kWh/ ton frisk græs
B58: Decanter centrifugering | C58: 10 | D58: kWh/ ton saft
B59: Diverse | C59: 1 | D59: kWh/time
B61: Saftpresning (trin 1) | C61: =C57*Drift!C29 -> 83000 | D61: kWh | E61: =Drift!C29 -> 41500 | F61: ton FM
B62: Pasta-fremstilling v/ centrifugering | C62: =C58*'Masse flow'!C44 -> 286350 | D62: kWh | E62: ='Masse flow'!C44 -> 28635 | F62: Ton FM
B63: Øvrigt el-forbrug | C63: =C59*'Masse flow'!C27*'Masse flow'!C28 -> 882.3529412 | D63: kWh | E63: ='Masse flow'!C27*'Masse flow'!C28 -> 882.3529412 | F63: timer
B64: Elforbrug i alt | C64: =SUM(C61:C63) -> 370232.3529 | D64: kWh
B66: Elforbrug ved 2 presninger
B68: Højtrykpresser | C68: 4 | D68: kWh/ tons pressekage
B69: Centrifugering | C69: 10 | D69: kWh /tons saft
B70: Diverse | C70: 1 | D70: kWh/time
B72: Saftpresning (trin 2) | C72: =E72*C68 -> 99600 | D72: kWh | E72: =ROUND('Masse flow'!I34,0) -> 24900 | F72: tons vand + pressekage fra 1 presning
B73: Pasta fremstilling | C73: =E73*C69 -> 204180 | D73: kWh | E73: =ROUND('Masse flow'!I38,0) -> 20418 | F73: tons pressesaft
B74: Diverse | C74: =C70*E74 -> 882.3529412 | D74: kWh | E74: ='Masse flow'!C27*'Masse flow'!C28 -> 882.3529412 | F74: timer
B75: Elforbrug i alt ved 2 presning | C75: =SUM(C72:C74) -> 304662.3529 | D75: kWh
B78: Opvarming af grønsaft
B79: Grønsaft mængde efter presning | C79: =IF(Drift!F4=2,'Masse flow'!I44+'Masse flow'!C44,'Masse flow'!C44) -> 28635 | D79: Ton FM
B80: Opvarmning grønsaft | C80: =E80*C79 -> 859050 | D80: kWh | E80: 30 | F80: kWh/ton
B83: Gasforbrug i alt | C83: =SUM(C80:C81)/E83 -> 85905 | D83: m3 | E83: 10 | F83: kWh/m3 natur
B86: Dieselforbrug
B88: Gummiged | C88: 15 | D88: liter/time | E88: ='Masse flow'!C27 -> 36.76470588 | F88: dage
B89: Driftstid pr. år | C89: ='Masse flow'!C27*'Masse flow'!C26 -> 514.7058824 | D89: timer | E89: ='Masse flow'!C26 -> 14 | F89: timer
B90: Liter/år | C90: =C88*C89 -> 7720.588235 | D90: liter/år
B92: Gaffeltruck | C92: 2.5 | D92: liter/time | H92: http://www.still.dk/1518+M5a5b90ecdad.0.0.html
B93: Arbejdstid pr. dag | C93: 5 | D93: timer
B94: Liter pr år | C94: =C92*C93*'Masse flow'!C27 -> 459.5588235 | D94: liter | E94: ='Masse flow'!C27 -> 36.76470588 | F94: dage
B97: Reparationer
B99: Skruepressere | C99: 0.07 | D99: af anskaffelsespris
B100: Højtrykspresser | C100: 0.07 | D100: af anskaffelsespris
B101: Decanter | C101: 0.07 | D101: af anskaffelsespris
B102: Læsse-maskiner | C102: 0.07 | D102: af anskaffelsespris
B103: Bånd og pumper | C103: 0.07 | D103: af anskaffelsespris
B104: Diverse | C104: 0.02 | D104: af anskaffelsespris
C106: Kr/år
B107: Skruepressere | C107: =Etablering!E18*'Data omkn'!C99 -> 105000
B108: Højtrykspresser | C108: =Etablering!E19*'Data omkn'!C100 -> 84000
B109: Decanter | C109: =Etablering!E27*'Data omkn'!C101 -> 210000
B110: Læsse-maskiner | C110: =(Etablering!E10+Etablering!E41)*'Data omkn'!C102 -> 35000
B111: Bånd og pumper | C111: =(Etablering!E14+Etablering!E20+Etablering!E23+Etablering!E38)*C103 -> 38150
B112: waper | C112: =Etablering!D58*'Data omkn'!$C$103 -> 17500
B113: pillepresser | C113: =Etablering!D59*'Data omkn'!$C$103 -> 245000
B114: Diverse | C114: =(Etablering!E9+Etablering!E39+Etablering!E39+Etablering!E40+Etablering!E45)*C104 -> 21000
B115: Reparation i alt | C115: =SUM(C107:C114) -> 755650
B119: Tørring af pasta ved gas
B121: Vand tørret væk | C121: ='Masse flow'!M46 -> 4969.6997 | D121: tons
B122: Energiforbrug | E122: 100 | F122: kWh / ton vand fordampet
B123: Energiforbrug i alt | C123: =C121*E122 -> 496969.97 | D123: kWh
B124: Gaspris | C124: =C123/E125 -> 49696.997 | D124: m3 | E124: 3.5 | F124: kr/m3 | I124: Naturgaspris leveret
B125: Gasforbrug | E125: =E83 -> 10 | F125: kWh/m3 natur
B126: Pris i alt, kr. | C126: =C123/E125*E124 -> 173939.4895 | D126: =C123*E126 -> 372727.4775 | E126: 0.75 | F126: kr/kWh
B129: Tørring afgræs til piller | I129: Presning af piller: 120 kWh/1000 kg grønpiller eksempel 100 tons giver 32 tons piller se model fra Torben Hansen
E130: 1. presning | F130: 2 presning
B131: Vand tørret væk | C131: =IF(Drift!F4=2,'Data omkn'!F131,'Data omkn'!E131) -> 7657.817143 | D131: tons | E131: ='Model 2'!C72*0.92*'Masse flow'!C36/1000 -> 7657.817143 | F131: ='Model 2'!C137*0.92*'Masse flow'!C36/1000 -> 1649.376 | G131: vand i græsset | I131: 92% TS i piller
B132: Energiforbrug | E132: 100 | F132: kWh / ton vand fordampet | J132: Dangrøn energirapport 2011
B133: Energiforbrug i alt | C133: =C131*E132 -> 765781.7143 | D133: kWh
B134: Gaspris | E134: 3.5 | F134: kr/m3
B135: Gasforbrug | C135: =C133/E135 -> 76578.17143 | D135: m3 | E135: =E83 -> 10 | F135: kWh/m3 natur
B136: Pris i alt | C136: =C133/E135*E134 -> 268023.6 | D136: kr.
B139: Presning af græs til piller
B140: Energiforbrug | C140: 120 | D140: kWh/ tons tørret græs fiber | E140: ='Masse flow'!M45*'Masse flow'!F39*(1+0.08) -> 4840.53759 | F140: tons piller
B141: Mængde græs | C141: =E140 -> 4840.53759 | D141: tons
B142: Samlede energiforbrug | C142: =C141*C140 -> 580864.5108 | D142: kWh
C143: =C142*E143 -> 435648.3831 | D143: kr. | E143: 0.75 | F143: kr/kWh
B146: Kløvergræs beregningsgrundlag
B148: Tørstof | C148: ='Masse flow'!C8 -> 0.18
B149: FE/Tørstof | C149: 0.77 | F149: NFE- fodertabel | G149: kløvergræs | I149: ændres normalvis ikke
B151: Udbytte | C151: Friskvægt t/ha | D151: FE | E151: kg TS
B152: 1 slæt | C152: 32 | D152: =$C$148*$C$149*C152*1000 -> 4435.2 | E152: =C152*$C$148*1000 -> 5760 | G152: 500 ha
B153: 2 slæt | C153: 27 | D153: =$C$148*$C$149*C153*1000 -> 3742.2 | E153: =C153*$C$148*1000 -> 4860 | G153: 500 ha
B154: 3 slæt | C154: 24 | D154: 3326.4 | E154: 4320 | G154: 500 ha
B155: I alt | C155: =SUM(C152:C154) -> 83 | D155: =SUM(D152:D154) -> 11503.8 | E155: 14940
B156: =CONCATENATE("ved ",'Masse flow'!C9*100," % tab") -> ved 0 % tab | C156: =IF('Masse flow'!C9=0,'Data omkn'!C155,C155*'Masse flow'!C9) -> 83 | D156: =C156*C148*C149*1000 -> 11503.8 | E156: =C156*C148*1000 -> 14940
B157: I gennemsnit | C157: =AVERAGEA(C152:C154) -> 27.66666667 | D157: =AVERAGEA(D152:D154) -> 3834.6 | E157: 4980
B160: Høst af græs pr. time
B162: Slåning, opsamling
B163: Bredde skårlægger | D163: 2 | E163: m | H163: 16 | I163: En multigrees -hel ny
B164: Arbejdshastighed | D164: 12 | E164: km/t | H164: 8
B165: Effektivitet | D165: 0.85 | H165: 50
B166: Kapacitet pr time | D166: =D163*D164*D165/10 -> 2.04 | E166: ha
B167: Antal slæt pr år | D167: 3 | H167: 3
B168: Friskvægt 1 slæt | D168: =$D$166*C152 -> 65.28 | E168: tons pr time | F168: =D180/D166/D176 -> 12.25490196
B169: Friskvægt 2. slæt | D169: =$D$166*C153 -> 55.08 | E169: tons pr time
B170: Friskvægt 3. slæt | D170: 48.96 | E170: tons pr time
B172: Gennemsnit | D172: =FLOOR(AVERAGEA(D168:D170),1) -> 56 | E172: tons pr time
B175: Leveringshastighed (tons FM/time) | D175: 85.6 | H175: 85.6
B176: Høsttimer pr. dag | D176: 20 | E176: timer | H176: 20
B177: Ha pr. dag | D177: =D166*D176 -> 40.8 | E177: ha
B178: Tons pr. dag | D178: =ROUND(D176*D172,-1) -> 1120 | E178: tons
D180: ='Masse flow'!C7 -> 500 | E180: ha
B181: Arbejdsdage pr. total høst areal | D181: =ROUND(D180/'Data omkn'!D177,0)*3 -> 36 | E181: dage
B183: Produktion pr. time
B184: Leverance fra mark | E184: Grønsaft/time | F184: Presserest/time
B185: Friskvægt 1 slæt | C185: =D168 -> 65.28 | D185: tons pr time | E185: =C185*'Masse flow'!$E$38 -> 45.0432 | F185: =C185*'Masse flow'!$E$39 -> 20.1434496
B186: Friskvægt 2. slæt | C186: =D169 -> 55.08 | D186: tons pr time | E186: =C186*'Masse flow'!$E$38 -> 38.0052 | F186: =C186*'Masse flow'!$E$39 -> 16.9960356
B187: Friskvægt 3. slæt | C187: 48.96 | D187: tons pr time | E187: =C187*'Masse flow'!$E$38 -> 33.7824 | F187: =C187*'Masse flow'!$E$39 -> 15.1075872
B188: Gennemsnit | C188: =SUM(C185:C187) -> 169.32 | E188: =AVERAGEA(E185:E187) -> 38.9436 | F188: =AVERAGEA(F185:F187) -> 17.4156908
C191: Brunsaft/ha | D191: Presserest/ha | E191: Pressesaft/ha
B192: 1. slæt | C192: =E192*'Masse flow'!$E$48 -> 16.3319136 | D192: =C152*'Masse flow'!$E$39 -> 9.87424 | E192: ='Masse flow'!$E$38*'Data omkn'!C152 -> 22.08 | F192: tons
B193: 2. slæt | C193: =E193*'Masse flow'!$E$48 -> 13.7800521 | D193: =C153*'Masse flow'!$E$39 -> 8.33139 | E193: ='Masse flow'!$E$38*'Data omkn'!C153 -> 18.63 | F193: tons
B194: 3. slæt | C194: =E194*'Masse flow'!$E$48 -> 12.2489352 | D194: =C154*'Masse flow'!$E$39 -> 7.40568 | E194: ='Masse flow'!$E$38*'Data omkn'!C154 -> 16.56 | F194: tons
B195: I alt | C195: =SUM(C192:C194) -> 42.3609009 | D195: =SUM(D192:D194) -> 25.61131 | E195: =SUM(E192:E194) -> 57.27 | F195: tons
B202: Silokapacitet i forhold til produktionsmasse

Sheet Kørsel
A1: =Grafik!C3 -> 0
A3: eksempler | F3: km | G3: km | H3: km | I3: km | J3: km | K3: km | L3: km | M3: km
A4: Transport af brunsaft til Ribe biogas | E4: Lastbil | F4: 5 | G4: 10 | H4: 20 | I4: 25 | J4: 30 | K4: 40 | L4: 50 | M4: 60
A5: Timepris for lastbil / tankvogn / blokvogn | B5: 750 | C5: kr/time | F5: =$B$5 -> 750 | G5: =$B$5 -> 750 | H5: 750 | I5: 750 | J5: 750 | K5: 750 | L5: 750 | M5: 750
A6: Transporthastighed for lastbiler | B6: 52 | C6: km/time | F6: =$B$6 -> 52 | G6: =$B$6 -> 52 | H6: 52 | I6: 52 | J6: 52 | K6: 52 | L6: 52 | M6: 52
A7: Afstand fra bioraf til biogas | B7: 0 | C7: km | F7: =F4 -> 5 | G7: =G4 -> 10 | H7: 20 | I7: 25 | J7: 30 | K7: 40 | L7: 50 | M7: 60
A8: Kapacitet tankvogn | B8: 35 | C8: t/ læs | F8: =$B$8 -> 35 | G8: =$B$8 -> 35 | H8: 35 | I8: 35 | J8: 35 | K8: 35 | L8: 35 | M8: 35
A9: Læsning | B9: 0.25 | C9: time | F9: =$B$9 -> 0.25 | G9: =$B$9 -> 0.25 | H9: 0.25 | I9: 0.25 | J9: 0.25 | K9: 0.25 | L9: 0.25 | M9: 0.25
A10: Transporttid, tur-retur | B10: =B7/B6*2 -> 0 | C10: time | F10: =F7/F6*2 -> 0.1923076923 | G10: 0.3846153846 | H10: 0.7692307692 | I10: 0.9615384615 | J10: 1.153846154 | K10: 1.538461538 | L10: 1.923076923 | M10: 2.307692308
A11: Aflæsning | B11: 0.25 | C11: time | F11: =$B$11 -> 0.25 | G11: =$B$11 -> 0.25 | H11: 0.25 | I11: 0.25 | J11: 0.25 | K11: 0.25 | L11: 0.25 | M11: 0.25
A12: Transport pr læs | C12: time | F12: =SUM(F9:F11) -> 0.6923076923 | G12: 0.8846153846 | H12: 1.269230769 | I12: 1.461538462 | J12: 1.653846154 | K12: 2.038461538 | L12: 2.423076923 | M12: 2.807692308
A13: Transport, kr pr tons | F13: =ROUND(F12/F8*F5,0) -> 15 | G13: =ROUND(G12/G8*G5,0) -> 19 | H13: 27 | I13: 31 | J13: 35 | K13: 44 | L13: 52 | M13: 60
A14: Tons brunsaft | F14: ='Masse flow'!$M$48 -> 21180.45045 | G14: =F14 -> 21180.45045 | H14: =G14 -> 21180.45045 | I14: 21180.45045 | J14: 21180.45045 | K14: 21180.45045 | L14: 21180.45045 | M14: 21180.45045
A15: Kr. i alt | F15: =F13*F14 -> 317706.7568 | G15: =G13*G14 -> 402428.5586 | H15: 571872.1621 | I15: 656593.964 | J15: 741315.7658 | K15: 931939.8198 | L15: 1101383.423 | M15: 1270827.027
F17: km | G17: km | H17: km | I17: km | J17: km | K17: km | L17: km | M17: km
A18: Transport af pasta til Egtved | E18: Lastbil | F18: 5 | G18: 10 | H18: 20 | I18: 25 | J18: 30 | K18: 40 | L18: 50 | M18: 60
A19: Timepris for lastbil / tankvogn / blokvogn | B19: 750 | C19: kr/time | F19: =$B$19 -> 750 | G19: =$B$19 -> 750 | H19: 750 | I19: 750 | J19: 750 | K19: 750 | L19: 750 | M19: 750
A20: Transporthastighed for lastbiler | B20: 52 | C20: km/time | F20: =$B$20 -> 52 | G20: =$B$20 -> 52 | H20: 52 | I20: 52 | J20: 52 | K20: 52 | L20: 52 | M20: 52
A21: Afstand fra bioraf til virksomhed | B21: 10 | C21: km | F21: =F18 -> 5 | G21: =G18 -> 10 | H21: 20 | I21: 25 | J21: 30 | K21: 40 | L21: 50 | M21: 60
A22: Kapacitet tankvogn | B22: 35 | C22: t/ læs | F22: =$B$22 -> 35 | G22: =$B$22 -> 35 | H22: 35 | I22: 35 | J22: 35 | K22: 35 | L22: 35 | M22: 35
A23: Læsning | B23: 0.25 | C23: time | F23: =$B$23 -> 0.25 | G23: =$B$23 -> 0.25 | H23: 0.25 | I23: 0.25 | J23: 0.25 | K23: 0.25 | L23: 0.25 | M23: 0.25
A24: Transporttid, tur-retur | B24: =B21/B20*2 -> 0.3846153846 | C24: time | F24: =F21/F20*2 -> 0.1923076923 | G24: =G21/G20*2 -> 0.3846153846 | H24: 0.7692307692 | I24: 0.9615384615 | J24: 1.153846154 | K24: 1.538461538 | L24: 1.923076923 | M24: 2.307692308
A25: Aflæsning- rengøring og podning | B25: 0.5 | C25: time | F25: =$B$25 -> 0.5 | G25: =$B$25 -> 0.5 | H25: 0.5 | I25: 0.5 | J25: 0.5 | K25: 0.5 | L25: 0.5 | M25: 0.5
A26: Transport pr læs | C26: time | F26: =SUM(F23:F25) -> 0.9423076923 | G26: =SUM(G23:G25) -> 1.134615385 | H26: 1.519230769 | I26: 1.711538462 | J26: 1.903846154 | K26: 2.288461538 | L26: 2.673076923 | M26: 3.057692308
A27: Transport, kr pr tons | F27: =F26/F22*F19 -> 20.19230769 | G27: 24.31318681 | H27: 32.55494505 | I27: 36.67582418 | J27: 40.7967033 | K27: 49.03846154 | L27: 57.28021978 | M27: 65.52197802
A28: Tons pasta | F28: ='Masse flow'!$M$47 -> 7454.54955 | G28: ='Masse flow'!$M$47 -> 7454.54955 | H28: ='Masse flow'!$M$47 -> 7454.54955 | I28: ='Masse flow'!$M$47 -> 7454.54955 | J28: ='Masse flow'!$M$47 -> 7454.54955 | K28: ='Masse flow'!$M$47 -> 7454.54955 | L28: ='Masse flow'!$M$47 -> 7454.54955 | M28: ='Masse flow'!$M$47 -> 7454.54955
A29: kr. I alt | F29: =F27*F28 -> 150524.5582 | G29: =G27*G28 -> 181243.8558 | H29: 242682.451 | I29: 273401.7486 | J29: 304121.0462 | K29: 365559.6414 | L29: 426998.2366 | M29: 488436.8318
A33: Kørsel af græs fra marken til fabrik | F33: =F3 -> km | G33: =G3 -> km | H33: km | I33: km | J33: km | K33: km | L33: km | M33: km
A34: Data fra DME | E34: Lastbil | F34: =F4 -> 5 | G34: =G4 -> 10 | H34: 20 | I34: 25 | J34: 30 | K34: 40 | L34: 50 | M34: 60
A35: Kr/ton TS | F35: =0.08*1000 -> 80 | G35: 120 | H35: =0.15*1000 -> 150 | I35: =0.17*1000 -> 170 | J35: =0.197*1000 -> 197 | K35: 210 | L35: 220 | M35: 230 | O35: Blå tal er usikker da disse ikke er valuderet fra branchen side af
A36: Tons TS | F36: ='Masse flow'!$D$36 -> 7470 | G36: ='Masse flow'!$D$36 -> 7470 | H36: ='Masse flow'!$D$36 -> 7470 | I36: ='Masse flow'!$D$36 -> 7470 | J36: ='Masse flow'!$D$36 -> 7470 | K36: ='Masse flow'!$D$36 -> 7470 | L36: ='Masse flow'!$D$36 -> 7470 | M36: ='Masse flow'!$D$36 -> 7470
A37: Kr i alt | F37: =F36*F35 -> 597600 | G37: =G36*G35 -> 896400 | H37: 1120500 | I37: 1269900 | J37: 1471590 | K37: 1568700 | L37: 1643400 | M37: 1718100
A41: Kørsel af presse rest fiber del | F41: =F3 -> km | G41: km | H41: km | I41: km | J41: km | K41: km | L41: km | M41: km
A42: Data fra DME | E42: Lastbil | F42: 5 | G42: 10 | H42: 20 | I42: 25 | J42: 30 | K42: 40 | L42: 50 | M42: 60
A43: Kr/ton TS | F43: =F35 -> 80 | G43: =G35 -> 120 | H43: 150 | I43: 170 | J43: 197 | K43: 210 | L43: 220 | M43: 230 | O43: Blå tal er usikker da disse ikke er valuderet fra branchen side af
A44: Tons TS | F44: ='Masse flow'!$N$45 -> 4481.97925 | G44: ='Masse flow'!$N$45 -> 4481.97925 | H44: ='Masse flow'!$N$45 -> 4481.97925 | I44: ='Masse flow'!$N$45 -> 4481.97925 | J44: ='Masse flow'!$N$45 -> 4481.97925 | K44: ='Masse flow'!$N$45 -> 4481.97925 | L44: ='Masse flow'!$N$45 -> 4481.97925 | M44: ='Masse flow'!$N$45 -> 4481.97925
A45: Kr i alt | F45: =F43*F44 -> 358558.34 | G45: =G43*G44 -> 537837.51 | H45: 672296.8875 | I45: 761936.4725 | J45: 882949.9122 | K45: 941215.6425 | L45: 986035.435 | M45: 1030855.227

Sheet Kalkule
A1: =Etablering!B2 -> Projekt: | B1: =Etablering!C2 -> Case 1: Etablering af et bioraffineringsanlæg samme med 4 gårde
A2: =Etablering!B3 -> Anlægstype: | B2: =Etablering!C3 -> Bioraffinering af græs til proteinkoncentrat
A4: Sædskiftegræs til slæt | B4: Kilde Farmtal online budgtkalkuel for 2018
A5: Kalkulebeskrivelse: | B5: Sædskiftegræs med 4 slæt omlægges efter 3 år
A6: Kalkulen gælder for: | B6: 2018
A7: Produktionsform: | B7: Konventionel
A8: Jordbonitet: | B8: JB 1-3
A9: Gødning: | B9: Med husdyrgødning | H9: 8.574FEN /18, %/0,77%=54000
H10: =54000*0.18 -> 9720 | I10: kg TS/ha
A11: Emne | B11: Kvantum | D11: Pris/ha | E11: Beløb | F11: kg TS | G11: kvantum | H11: =E37/H10 -> -0.4980452675
A12: Udbytte
A13: Høstet udbytte | B13: 11400 | C13: FEN | F13: =B13/0.77 -> 14805.19481 | G13: =B13/'Masse flow'!C8/'Data omkn'!C149 -> 82251.08225 | H13: kg FM/ha | I13: =E14/G13 -> 0.1672209 | J13: kr/kg FM
A14: Opfodret/solgt udbytte | B14: 10830 | C14: FEN | D14: 1.27 | E14: =B14*D14 -> 13754.1 | F14: =B14/0.77 -> 14064.93506 | G14: =B14/'Masse flow'!C8/'Data omkn'!C149 -> 78138.52814 | H14: kg FM/ha | I14: =E14/G14 -> 0.176022 | J14: kr/kg FM
A15: Økologi tilskud | C15: Ha | E15: 870
A16: Bruttoudbytte | E16: =SUM(E13:E15) -> 14624.1
A18: Stykomkostninger
A19: Græsfrø udsæd | B19: -9 | C19: Kg | D19: 38 | E19: =B19*D19 -> -342
A20: Handelsgødning | B20: -289 | C20: kg | D20: 6.5 | E20: =B20*D20 -> -1878.5
A21: Kalium kg | B21: -257 | C21: kg | D21: 6 | E21: -1542
A22: Fosfor, kg | B22: -38 | C22: kg | D22: 12 | E22: -456
A23: Husdyrgødning Uspecifiseret | B23: -40 | C23: Tons | D23: 0 | E23: =B23*D23 -> 0 | G23: Ca pris fra maskinstation | H23: 35
A24: Ekstra linje | E24: =B24*D24 -> 0
A25: Stykomkostninger i alt | E25: =SUM(E18:E24) -> -4218.5
A26: Dækningsbidrag I pr ha | E26: =SUM(E16,E25) -> 10405.6 | G26: =E26/B14 -> 0.9608125577 | H26: kr/FE
A28: Maskin- og arbejdsomkostninger
A29: Pløjning | B29: -0.3 | D29: 675 | E29: =D29*B29 -> -202.5
A30: Havning | B30: -0.3 | D30: 200 | E30: =D30*B30 -> -60
A31: Spredning af husdyrgødning | B31: 0 | D31: 21 | E31: =B31*D31 -> 0
A32: Gødningsspredning | B32: -3 | D32: 140 | E32: =B32*D32 -> -420
A33: Såning | B33: 0.3 | D33: 350 | E33: =B33*D33 -> 105
A34: Spredning af kaliumvinasse | B34: 0 | D34: 140 | E34: =B34*D34 -> 0
A35: Tromling | B35: -0.3 | D35: 150 | E35: =B35*D35 -> -45
A36: Diverse | E36: 0 | K36: Fortjeneste | L36: 10 | M36: %
A37: Styk- og etablerings -Omkostninger | E37: =E25+SUM(E29:E36) -> -4841 | G37: =E37/B14 -> -0.4469990766 | H37: kr/FE | I37: =E37/G14*-1 -> 0.06195407202 | J37: kr/kg FM | K37: =I37*1000*(1+L36/100) -> 68.14947922 | L37: kr/tons FM | N37: =E37/F13 -> -0.3269798246 | O37: kr/kg TS | P37: =N37*(1+L36/100) -> -0.359677807 | Q37: kr/kg TS
A38: Dækningsbidrag II pr ha | E38: =E26+E31+E33+E36 -> 10510.6 | G38: =E38/B14 -> 0.9705078486 | H38: kr/FE | I38: =E38/G14 -> 0.1345123878 | J38: kr/kg | K38: =I38*1000*(1+L36/100) -> 147.9636266 | L38: kr/tons
A40: Skårlægning | B40: -4 | E40: =B40*D40 -> 0 | F40: fabrikken høster, men i det her tilfælde landmændene dvs deres tid
A41: Sammenrivning | B41: -4 | E41: =B41*D41 -> 0 | F41: fabrikken høster, men i det her tilfælde landmændene dvs deres tid
A42: Snitning, uden hjemkørsel til aflæstning til anden transport | B42: -4 | D42: 135 | E42: =B42*D42 -> -540 | F42: fabrikken høster, men i det her tilfælde landmændene dvs deres tid
A43: Øvrige opgaver
A44: I alt maskin- og arbejdsomkostninger | E44: =SUM(E40:E43) -> -540 | G44: Tjekkes med maskinsation da det kan være et for højt tal
A45: DB efter maskin- og arbejdsomkostninger | E45: =E38+E44 -> 9970.6 | G45: =E45/B14 -> 0.9206463527 | H45: kr/FE | I45: =E45/G14 -> 0.1276015845 | J45: kr/kg | K45: =E45/F13 -> 0.673452807 | L45: kr/kg TS
A48: Opdater gasdata
A49: Gasberegning ud fra lab-resultat- pressekage ved 1 presning | G49: Gasberegning ud fra lab-resultat- brunsaft ved 1 presning
A50: Biogaspotentiale | G50: =A50 -> Biogaspotentiale | O50: 40 | P50: græs
A51: Frisk masse som udgangspunkt | B51: ='Model 2'!C11 -> 1000 | C51: kg FM | G51: =A51 -> Frisk masse som udgangspunkt | H51: =B51 -> 1000 | I51: =C51 -> kg FM | O51: 97 | P51: majs
A52: Tørstof % i grønmassen se model 2 | B52: ='Model 2'!C57 -> 35 | C52: % | D52: ='Model 2'!C56 -> 108 | E52: kg | G52: Tørstof % i brunsaft se model 2 | H52: ='Model 2'!O57 -> 7.039106145 | I52: =C52 -> % | J52: ='Model 2'!O56 -> 36 | K52: kg
A53: Aske andel se model 2 | B53: ='Model 2'!C59 -> 2.625 | C53: % | G53: Aske andel se model 2 | H53: ='Model 2'!O59 -> 0.7918994413 | I53: %
A54: % VS | B54: =B52-B53 -> 32.375 | C54: % VS | D54: ='Model 2'!C60 -> 99.9 | E54: kg | G54: % VS | H54: =H52-H53 -> 6.247206704 | I54: % VS | J54: ='Model 2'!O60 -> 31.95 | K54: kg
A55: Pressekage Kg TS/tons FM | B55: ='Model 2'!C56 -> 108 | C55: kg TS | G55: Brunsaft kg TS/tons FM | H55: ='Model 2'!O56 -> 36 | I55: kg TS
A57: Biogaspotentiale ved 100 pct omsætning | G57: =A57 -> Biogaspotentiale ved 100 pct omsætning
A59: kg TS/tons FM | B59: =B55 -> 108 | C59: =C55 -> kg TS | G59: =A59 -> kg TS/tons FM | H59: =H55 -> 36 | I59: =I55 -> kg TS
A60: Biogaspotentialet er sat til | B60: 0.75 | C60: m3 biogas/kg TS | E60: 0.8 | G60: =A60 -> Biogaspotentialet er sat til | H60: 0.88 | I60: m3 biogas/kg TS | K60: 0.85
A61: m3 biogas/tons FM | B61: =B59*B60 -> 81 | C61: m3 | G61: m3 biogas/tons FM | H61: =H59*H60 -> 31.68 | I61: m3
A62: % CH4 | B62: 55 | C62: % | G62: % CH4 | H62: 55 | I62: %
A63: m3 metan pr. tons FM v/ 100 % | B63: =B61*B62/100 -> 44.55 | C63: m3 | G63: m3 metan pr. tons FM v/ 100 % | H63: =H61*H62/100 -> 17.424 | I63: m3
A65: Foderværdi ca 1 FE/ kg TS sv. Til korn
A66: Omsætningsrate 60-70 % af VS
A67: =CONCATENATE("Omsætning af værdi i biogasanlægget ved henholdsvis ",B70," og ",D70," %") -> Omsætning af værdi i biogasanlægget ved henholdsvis 60 og 70 % | G67: =CONCATENATE("Omsætning af værdi i biogasanlægget ved henholdsvis ",H70," og ",J70," %") -> Omsætning af værdi i biogasanlægget ved henholdsvis 75 og 85 %
A69: =A61 -> m3 biogas/tons FM | B69: =B61 -> 81 | C69: m3 | D69: =B61 -> 81 | E69: m3 | G69: m3 biogas/tons FM | H69: =H61 -> 31.68 | I69: m3 | J69: =H61 -> 31.68 | K69: m3
A70: Biogas ved omsætning | B70: ='Data omkn'!D37*100 -> 60 | C70: % | D70: 70 | E70: % | G70: Biogas ved omsætning | H70: ='Data omkn'!D38*100 -> 75 | I70: % | J70: 85 | K70: %
A71: m3 biogas /tons FM | B71: =B69*B70/100 -> 48.6 | C71: m3 | D71: =D69*D70/100 -> 56.7 | E71: m3 | G71: m3 biogas /tons FM | H71: =H69*H70/100 -> 23.76 | I71: m3 | J71: =J69*J70/100 -> 26.928 | K71: m3
A73: =A63 -> m3 metan pr. tons FM v/ 100 % | B73: =B63 -> 44.55 | C73: =C63 -> m3 | D73: =B63 -> 44.55 | E73: m3 | G73: m3 metan pr. tons FM v/ 100 % | H73: =H63 -> 17.424 | I73: m3 | J73: =H63 -> 17.424 | K73: m3
A74: =CONCATENATE("m3 metan pr. tons FM v/ ",B70," eller ",D70," % omsætning ") -> m3 metan pr. tons FM v/ 60 eller 70 % omsætning | B74: =B73*B70/100 -> 26.73 | C74: m3 | D74: =D73*D70/100 -> 31.185 | E74: m3 | G74: =CONCATENATE("m3 metan pr. tons FM v/ ",H70," eller ",J70," % omsætning ") -> m3 metan pr. tons FM v/ 75 eller 85 % omsætning | H74: =H73*H70/100 -> 13.068 | I74: m3 | J74: =J73*J70/100 -> 14.8104 | K74: m3
A76: M3 biogas / kg VS | B76: =B71/B59 -> 0.45 | C76: m3 | D76: =D71/B59 -> 0.525 | E76: m3 | G76: M3 biogas / kg VS | H76: =H71/H55 -> 0.66 | I76: m3 | J76: =J71/H55 -> 0.748 | K76: m3
A77: M3 metan / kg VS | B77: =B74/B59 -> 0.2475 | C77: m3 | D77: =D74/B59 -> 0.28875 | E77: m3 | G77: M3 metan / kg VS | H77: =H74/H55 -> 0.363 | I77: m3 | J77: =J74/H55 -> 0.4114 | K77: m3
A79: kun ret gulefelter
B80: med i økonomimodel | D80: for at se forskelle | H80: økonomimodel
A82: Gasberegning ud fra lab-resultat- pressekage ved 2 presning | G82: Gasberegning ud fra lab-resultat- brunsaft ved 2 presning
A83: Biogaspotentiale | G83: =A83 -> Biogaspotentiale
A84: Frisk masse som udgangspunkt | B84: ='Model 2'!C11 -> 1000 | C84: kg FM | D84: ='Model 2'!C120 -> 108 | E84: kg efter presning | G84: =A84 -> Frisk masse som udgangspunkt | H84: =B84 -> 1000 | I84: =C84 -> kg FM
A85: Tørstof % i grønmassen se model 2 | B85: ='Model 2'!C122 -> 60 | C85: % | D85: ='Model 2'!C121 -> 64.8 | E85: kg | G85: Tørstof % i brunsaften se model 2 | H85: =('Model 2'!O55*'Model 2'!O57+'Model 2'!O120*'Model 2'!O122)/('Model 2'!O120+'Model 2'!O55) -> 6.18404908 | I85: =C85 -> % | J85: ='Model 2'!O121+'Model 2'!O56 -> 57.6 | K85: kg
A86: Aske andel se model 2 | B86: ='Model 2'!C124 -> 3.75 | C86: % | G86: Aske andel se model 2 | I86: %
A87: % VS | B87: ='Model 2'!C126 -> 56.25 | C87: % VS | D87: ='Model 2'!C125 -> 60.75 | E87: kg | G87: % VS | H87: =('Model 2'!O60*'Model 2'!O61+'Model 2'!O125*'Model 2'!O126)/('Model 2'!O125+'Model 2'!O60) -> 5.644478143 | I87: % VS | J87: ='Model 2'!O60+'Model 2'!O125 -> 51.525 | K87: kg
A88: Pressekage Kg TS/ton FM | B88: ='Model 2'!C121 -> 64.8 | C88: kg TS | G88: Brunsaft kg TS/tons FM | H88: ='Model 2'!O121+'Model 2'!O56 -> 57.6 | I88: kg TS
A90: Biogaspotentiale ved 100 pct omsætning | G90: =A90 -> Biogaspotentiale ved 100 pct omsætning
A92: kg TS/tons FM | B92: =B88 -> 64.8 | C92: =C88 -> kg TS | G92: =A92 -> kg TS/tons FM | H92: =H88 -> 57.6 | I92: =I88 -> kg TS
A93: Biogaspotentialet er sat til | B93: =B60 -> 0.75 | C93: m3 biogas/kg TS | G93: =A93 -> Biogaspotentialet er sat til | H93: =H60 -> 0.88 | I93: m3 biogas/kg TS | K93: Korrigeret for 30% vand
A94: m3 biogas/ et tons FM | B94: =B92*B93 -> 48.6 | C94: m3 biogas pr. et tons FM | G94: m3 biogas/ et tons FM | H94: =H92*H93 -> 50.688 | I94: m3
A95: % CH4 (metan konsentration) | B95: 55 | C95: % | G95: % CH4 (metan konsentration) | H95: 55 | I95: %
A96: m3 metan-98% pr. tons FM v/ 100 % udnyttelse | B96: =B94*B95/100 -> 26.73 | C96: m3 | G96: m3 metan-98% pr. tons FM v/ 100 % udnyttelse | H96: =H94*H95/100 -> 27.8784 | I96: m3
A98: Foderværdi ca 1 FE/ kg TS sv. Til korn
A99: Omsætningsrate 60-70 % af VS
A100: =CONCATENATE("Omsætning af værdi i biogasanlægget ved henholdsvis ",B103," og ",D103," %") -> Omsætning af værdi i biogasanlægget ved henholdsvis 60 og 70 % | G100: =CONCATENATE("Omsætning af værdi i biogasanlægget ved henholdsvis ",H103," og ",J103," %") -> Omsætning af værdi i biogasanlægget ved henholdsvis 75 og 85 %
A102: =A94 -> m3 biogas/ et tons FM | B102: =B94 -> 48.6 | C102: m3 biogas pr. et tons FM | D102: =B94 -> 48.6 | E102: m3 | G102: =A102 -> m3 biogas/ et tons FM | H102: =H94 -> 50.688 | I102: m3 | J102: =H94 -> 50.688 | K102: m3
A103: Biogas ved omsætning | B103: ='Data omkn'!D37*100 -> 60 | C103: % | D103: 70 | E103: % | G103: Biogas ved omsætning | H103: ='Data omkn'!D38*100 -> 75 | I103: % | J103: 85 | K103: %
A104: m3 biogas /tons FM | B104: =B102*B103/100 -> 29.16 | C104: m3 | D104: =D102*D103/100 -> 34.02 | E104: m3 | G104: m3 biogas /tons FM | H104: =H102*H103/100 -> 38.016 | I104: m3 | J104: =J102*J103/100 -> 43.0848 | K104: m3
A106: =A96 -> m3 metan-98% pr. tons FM v/ 100 % udnyttelse | B106: =B96 -> 26.73 | C106: m3 | D106: =B96 -> 26.73 | E106: m3 | G106: =A106 -> m3 metan-98% pr. tons FM v/ 100 % udnyttelse | H106: =H96 -> 27.8784 | I106: m3 | J106: =H96 -> 27.8784 | K106: m3
A107: =CONCATENATE("m3 metan pr. tons FM v/ ",B103," eller ",D103," % omsætning ") -> m3 metan pr. tons FM v/ 60 eller 70 % omsætning | B107: =B106*B103/100 -> 16.038 | C107: m3 | D107: =D106*D103/100 -> 18.711 | E107: m3 | G107: =CONCATENATE("m3 metan pr. tons FM v/ ",H103," eller ",J103," % omsætning ") -> m3 metan pr. tons FM v/ 75 eller 85 % omsætning | H107: =H106*H103/100 -> 20.9088 | I107: m3 | J107: =J106*J103/100 -> 23.69664 | K107: m3
A109: M3 biogas / kg VS | B109: =B104/D87 -> 0.48 | C109: m3 | D109: =D104/B92 -> 0.525 | E109: m3 | G109: =A109 -> M3 biogas / kg VS | H109: =H104/J87 -> 0.7378165939 | I109: m3 | J109: =J104/H88 -> 0.748 | K109: m3
A110: M3 metan / kg VS | B110: =B107/D87 -> 0.264 | C110: m3 | D110: =D107/B92 -> 0.28875 | E110: m3 | G110: M3 metan / kg VS | H110: =H107/J87 -> 0.4057991266 | I110: m3 | J110: =J107/H88 -> 0.4114 | K110: m3
A113: Biogas udbytte | B113: =B107 -> 16.038 | C113: =H107 -> 20.9088 | D113: m3/tons FM
B114: ='Masse flow'!C36 -> 41500 | C114: ='Masse flow'!C36 -> 41500 | D114: tons fm | G114: Gødningsværdi på brunsaft
B115: ='Data omkn'!C39 -> 4 | C115: ='Data omkn'!C39 -> 4 | D115: pris/m3 CH4-98% | G115: Gødningsværdi andel N | H115: 16 | I115: % | J115: af protein mængden | N115: 6,25 kg
B116: =B113*B114*B115 -> 2662308 | C116: =C113*C114*C115 -> 3470860.8 | D116: kr | G116: Kg protein ved 1 presning | H116: =ROUND('Model 2'!O65,2) -> 4.52 | I116: kg | J116: protein pr. 1 tons FM
B117: =B116/B114 -> 64.152 | C117: =C116/C114 -> 83.6352 | D117: kr/tons | G117: Kg N ved 1 presning | H117: =H115/100*H116 -> 0.7232 | I117: kg N | J117: =ROUND(H117,2) -> 0.72 | K117: kg N i alt pr. 1 tons FM
B118: 100 | C118: =B118/B117*C117 -> 130.3703704 | G118: Kg protein ved 2 presning | H118: =ROUND('Model 2'!O65+'Model 2'!O130,2) -> 5.76 | I118: kg | J118: protein pr. 1 tons FM
G119: Kg N ved 2 presninger | H119: =H115/100*H118 -> 0.9216 | I119: kg N | J119: =ROUND(H119,2) -> 0.92 | K119: Kg N i alt
G122: Gødningsværdi andel P | H122: 0 | I122: =I115 -> %
G123: Kg protein ved 1 presning | H123: =H116 -> 4.52 | I123: =I116 -> kg | J123: =J116 -> protein pr. 1 tons FM
G124: Kg P ved 1 presning | H124: =H122/100*H123 -> 0 | I124: kg P | J124: =ROUND(H124,2) -> 0 | K124: Kg P
G125: Kg protein ved 2 presning | H125: =H118 -> 5.76 | I125: kg | J125: =J118 -> protein pr. 1 tons FM
G126: Kg P ved 2 presninger | H126: =H122/100*H125 -> 0 | I126: kg P | J126: =ROUND(H126,2) -> 0 | K126: Kg P
G129: Gødningsværdi andel K | H129: 0 | I129: =I115 -> %
G130: Kg protein ved 1 presning | H130: =H116 -> 4.52 | I130: =I116 -> kg | J130: =J116 -> protein pr. 1 tons FM
G131: Kg K ved 1 presning | H131: =H129/100*H130 -> 0 | I131: kg K | J131: =ROUND(H131,2) -> 0 | K131: Kg K
G132: Kg protein ved 2 presning | H132: =H118 -> 5.76 | I132: kg | J132: =J118 -> protein pr. 1 tons FM
G133: Kg K ved 2 presninger | H133: =H129/100*H132 -> 0 | I133: kg K | J133: =ROUND(H133,2) -> 0 | K133: kg K
G135: Pris på N pr. kg- konventionel pris | H135: 6 | I135: kr./kg | J135: Konventionel pris 6 kr./kg N | M135: Økologisk pris er sat til 40 kr/kg
G136: Pris på P pr. kg | H136: 12 | I136: kr./kg
G137: Pris på K pr. kg | H137: 6 | I137: kr./kg
J138: Gennemsnit pris pr. 1 tons FM
G139: Samlede pris ved 1 presning | J139: =ROUND(H135*J117+H136*J124+H137*J131,2) -> 4.32 | K139: kr./1 tons FM
G140: Samlede pris ved 2 presning | J140: =ROUND(H135*J119+H136*J126+H137*J133,2) -> 5.52 | K140: kr./1 tons FM
A144: Eksempel- måske rigtigt
A145: 1 tons á 200 kg TS/m3
A146: x tons á 450 kg TS/m3+ Y tons á 100 kg TS/m3
A147: X + Y = 1 > X = 1 - Y
A149: 200kg TS/m3 = [(1-y) x 450 kg TS/m3] + [y*100 kg TS/m3]
A150: 200 = 450-450Y + 100Y
A151: 350Y = (450-200)=250
A152: Y = | B152: =250/350 -> 0.7142857143 | C152: m3/kg TS
A153: x = | B153: =1-B152 -> 0.2857142857 | C153: m3/kg TS | E153: eller tons/kg TS
A156: 1 tons græs med 20 % TS= 0,29 tons fiber á 45 TS + 0,71 tons rejektvand á 10% TS
A158: Beregning
A159: Tørstof % i græsset | B159: ='Model 2'!C13/100 -> 0.18 | C159: =$B$162*B159 -> 180 | D159: kg TS/tons
A160: Fiberdelen TS % | B160: 0.5 | C160: =$B$162*B160 -> 500 | D160: kg TS/tons
A161: Vanddelen TS % | B161: 0.1 | C161: 100 | D161: kg TS/tons
A162: Frisk masse kg | B162: =B51 -> 1000
B164: =C160-C161 -> 400 | C164: kg TS/tons
B165: =C160-C159 -> 320 | C165: kg TS/tons
A166: Vand andelen vægt/vægt - enhed | B166: =B165/B164 -> 0.8
A167: Fiber vægt/vægt- enhed | B167: =1-B166 -> 0.2
A170: Eksempel fra Aau
C171: Græs | F171: Fiber | I171: Grøn-Saft | K171: Brunsaft | N171: Paster
A173: 17% TS | B173: Gaspotentiale | C173: 42 m3 metan/ton FM
A174: 30% TS | B174: Gaspotentiale | F174: 76 | G174: m3 metan/ton FM
A175: 6% TS | B175: Gaspotentiale | K175: 15 | L175: m3 metan/ton FM
A178: ton FM | C178: 111000 | F178: 39000 | G178: =F178/C178 -> 0.3513513514 | I178: =C178-F178 -> 72000 | K178: 59000 | L178: =K178/C178 -> 0.5315315315 | N178: 13000
A179: MWH | C179: =C178*0.68 -> 75480 | F179: 45000 | G179: =F179/C179 -> 0.5961844197 | I179: =C179-F179 -> 30480 | K179: 16000 | L179: =K179/C179 -> 0.2119766826 | N179: 14000
A180: MWH/ton FM | C180: =C179/C178 -> 0.68 | F180: =F179/F178 -> 1.153846154 | I180: =I179/I178 -> 0.4233333333 | K180: =K179/K178 -> 0.2711864407 | N180: =N179/N178 -> 1.076923077
A181: Kilde: Green biomas, DCA report no 0,73- feb 2016, Morten Ambye rapport side 11
A182: 1 Fe giver 0,6 m3 metan 98 %
A189: Niels Tvedegaards beregninger efteråret 2016
A190: Gødningsværdi- beregnet | B190: Friskvægt, kg pr hektar | E190: ='Masse flow'!C36*1000/'Masse flow'!C7 -> 83000 | W190: Øko-Værdi pr tons tørstof - dagspris | AB190: Gødningsværdi, kr. | AE190: Brutto
V191: Pris | W191: 40 | X191: 6 | Y191: 12 | Z191: 4 | AB191: I alt pr tons | AC191: I alt pr tons | AE191: Gødningsværdi
F192: % af tørstof | R192: Kg pr hektar | V192: Udnyttelse | W192: 0.75 | X192: 1 | Y192: 1
A193: Parent material/crop | B193: Material | C193: Prøve | D193: Tørstof (%) | E193: Tørstof | F193: N | G193: N | H193: C | I193: C | J193: C:N | K193: S | L193: S | M193: P | N193: P | O193: K | P193: K | Q193: N | R193: P | S193: K | T193: S | W193: N | X193: K | Y193: P | Z193: S | AB193: Tørstof | AC193: Friskvægt | AD193: ton pr hektar | AE193: kr. Pr tons friskvægt
A194: Redclover | B194: Fresh crop (dry) | C194: 1 | D194: 16.4 | E194: =D194/100 -> 0.164 | F194: 3.09792161 | G194: =F194/100 -> 0.0309792161 | H194: 43.25645828 | I194: =H194/100 -> 0.4325645828 | J194: =H194/F194 -> 13.96305773 | K194: =1.5/10 -> 0.15 | L194: =K194/100 -> 0.0015 | M194: =0.27 -> 0.27 | N194: =M194/100 -> 0.0027 | O194: =27/10 -> 2.7 | P194: =O194/100 -> 0.027 | Q194: =$E$190*E194*G194 -> 421.6890895 | R194: =$E$190*E194*N194 -> 36.7524 | S194: =$E$190*E194*P194 -> 367.524 | T194: =$E$190*E194*L194 -> 20.418 | W194: =$W$191*G194*1000*$W$192 -> 929.376483 | X194: =$X$191*P194*1000*$X$192 -> 162 | Y194: =$Y$191*N194*1000*$Y$192 -> 32.4 | Z194: =$Z$191*L194*1000 -> 6 | AB194: =SUM(W194:Z194) -> 1129.776483 | AC194: =AB194/(1/(D194/100)) -> 185.2833432 | AD194: =$E$190*AC194/1000 -> 15378.51749 | AE194: =(W194+X194+Y194+Z194)*E194 -> 185.2833432
A195: Redclover | B195: Fresh crop (dry) | C195: 2 | D195: 16.4 | E195: 0.164 | F195: 3.101037025 | G195: 0.03101037025 | H195: 43.5983696 | I195: 0.435983696 | J195: 14.05928702 | K195: 0.15 | L195: 0.0015 | M195: 0.28 | N195: 0.0028 | O195: 2.9 | P195: 0.029 | Q195: =$E$190*E195*G195 -> 422.1131599 | R195: =$E$190*E195*N195 -> 38.1136 | S195: =$E$190*E195*P195 -> 394.748 | T195: =$E$190*E195*L195 -> 20.418 | W195: 930.3111076 | X195: =$X$191*P195*1000*$X$192 -> 174 | Y195: =$Y$191*N195*1000*$Y$192 -> 33.6 | Z195: 6 | AB195: =SUM(W195:Z195) -> 1143.911108 | AC195: =AB195/(1/(D195/100)) -> 187.6014217 | AD195: =$E$190*AC195/1000 -> 15570.918 | AE195: 187.6014217
A196: Redclover | B196: Press cake (dry) | C196: 1 | D196: 23.6 | E196: 0.236 | F196: 2.797235012 | G196: 0.02797235012 | H196: 44.87124634 | I196: 0.4487124634 | J196: 16.04128582 | K196: 0.13 | L196: 0.0013 | M196: 0.24 | N196: 0.0024 | O196: 2 | P196: 0.02 | W196: 839.1705036 | X196: 120 | Y196: 28.8 | Z196: 5.2 | AB196: =SUM(W196:Z196) -> 993.1705036 | AC196: =AB196/(1/(D196/100)) -> 234.3882389 | AD196: =$E$190*AC196/1000 -> 19454.22382 | AE196: 234.3882389
A197: Redclover | B197: Press cake (dry) | C197: 2 | D197: 23.6 | E197: 0.236 | F197: 2.742223263 | G197: 0.02742223263 | H197: 44.91433716 | I197: 0.4491433716 | J197: 16.37880393 | K197: 0.14 | L197: 0.0014 | M197: 0.26 | N197: 0.0026 | O197: 2.2 | P197: 0.022 | W197: 822.6669788 | X197: 132 | Y197: 31.2 | Z197: 5.6 | AB197: 991.4669788 | AC197: 233.986207 | AD197: 19420.85518 | AE197: 233.986207
A198: Redclover | B198: Protein paste (Freece dry) | C198: 1 | D198: 18.55563855 | E198: 0.1855563855 | F198: 6.28904438 | G198: 0.0628904438 | H198: 50.48778152 | I198: 0.5048778152 | J198: 8.027893981 | K198: 0.31 | L198: 0.0031 | M198: 0.25 | N198: 0.0025 | O198: 2.2 | P198: 0.022 | W198: 1886.713314 | X198: 132 | Y198: 30 | Z198: 12.4 | AB198: 2061.113314 | AC198: 382.4527366 | AD198: 31743.57714 | AE198: 382.4527366
A199: Redclover | B199: Protein paste (Freece dry) | C199: 2 | D199: 18.55563855 | E199: 0.1855563855 | F199: 6.296561241 | G199: 0.06296561241 | H199: 50.4336853 | I199: 0.504336853 | J199: 8.009718856 | K199: 0.3 | L199: 0.003 | M199: 0.24 | N199: 0.0024 | O199: 2 | P199: 0.02 | W199: 1888.968372 | X199: 120 | Y199: 28.8 | Z199: 12 | AB199: 2049.768372 | AC199: 380.3476102 | AD199: 31568.85165 | AE199: 380.3476102
A200: Redclover | B200: Brown juice (BJ) (Freece dry) | C200: 1 | D200: 4.9 | E200: 0.049 | F200: 2.910284281 | G200: 0.02910284281 | H200: 34.63901901 | I200: 0.3463901901 | J200: 11.90228021 | K200: 0.13 | L200: 0.0013 | M200: 0.56 | N200: 0.0056 | O200: 7.2 | P200: 0.072 | W200: 873.0852842 | X200: 432 | Y200: 67.2 | Z200: 5.2 | AB200: 1377.485284 | AC200: 67.49677893 | AD200: 5602.232651 | AE200: 67.49677893
A201: Redclover | B201: Brown juice (BJ) (Freece dry) | C201: 2 | D201: 4.9 | E201: 0.049 | F201: 2.892827988 | G201: 0.02892827988 | H201: 34.78010941 | I201: 0.3478010941 | J201: 12.02287504 | K201: 0.11 | L201: 0.0011 | M201: 0.47 | N201: 0.0047 | O201: 6.2 | P201: 0.062 | W201: 867.8483963 | X201: 372 | Y201: 56.4 | Z201: 4.4 | AB201: 1300.648396 | AC201: 63.73177142 | AD201: 5289.737028 | AE201: 63.73177142
A202: Redclover | B202: Digestate 50BJ:50PC (Freece dry) | C202: 1 | D202: 3.4 | E202: 0.034 | F202: 3.197904825 | G202: 0.03197904825 | H202: 30.38960838 | I202: 0.3038960838 | J202: 9.502974618 | K202: 0.54 | L202: 0.0054 | M202: 1.7 | N202: 0.017 | O202: 5.4 | P202: 0.054 | W202: 959.3714476 | X202: 324 | Y202: 204 | Z202: 21.6 | AB202: 1508.971448 | AC202: 51.30502922 | AD202: 4258.317425 | AE202: 51.30502922
A203: Redclover | B203: Digestate 50BJ:50PC (Freece dry) | C203: 2 | D203: 3.4 | E203: 0.034 | F203: 3.211978674 | G203: 0.03211978674 | H203: 30.36362267 | I203: 0.3036362267 | J203: 9.453245413 | K203: 0.39 | L203: 0.0039 | M203: 1.5 | N203: 0.015 | O203: 5.5 | P203: 0.055 | W203: 963.5936022 | X203: 330 | Y203: 180 | Z203: 15.6 | AB203: 1489.193602 | AC203: 50.63258247 | AD203: 4202.504345 | AE203: 50.63258247
A204: Clovergrass | B204: Fresh crop (dry) | C204: 1 | D204: 18.7 | E204: 0.187 | F204: 1.608607173 | G204: 0.01608607173 | H204: 43.02063751 | I204: 0.4302063751 | J204: 26.74402939 | K204: 0.12 | L204: 0.0012 | M204: 0.21 | N204: 0.0021 | O204: 3 | P204: 0.03 | Q204: =$E$190*E204*G204 -> 249.6719193 | R204: =$E$190*E204*N204 -> 32.5941 | S204: =$E$190*E204*P204 -> 465.63 | T204: =$E$190*E204*L204 -> 18.6252 | W204: 482.5821519 | X204: 180 | Y204: 25.2 | Z204: 4.8 | AB204: =SUM(W204:Z204) -> 692.5821519 | AC204: =AB204/(1/(D204/100)) -> 129.5128624 | AD204: =$E$190*AC204/1000 -> 10749.56758 | AE204: 129.5128624
A205: Clovergrass | B205: Fresh crop (dry) | C205: 2 | D205: 18.7 | E205: 0.187 | F205: 1.574880123 | G205: 0.01574880123 | H205: 43.05691528 | I205: 0.4305691528 | J205: 27.33980488 | K205: 0.13 | L205: 0.0013 | M205: 0.22 | N205: 0.0022 | O205: 2.9 | P205: 0.029 | Q205: =$E$190*E205*G205 -> 244.4371439 | R205: =$E$190*E205*N205 -> 34.1462 | S205: =$E$190*E205*P205 -> 450.109 | T205: =$E$190*E205*L205 -> 20.1773 | W205: 472.4640369 | X205: 174 | Y205: 26.4 | Z205: 5.2 | AB205: =SUM(W205:Z205) -> 678.0640369 | AC205: =AB205/(1/(D205/100)) -> 126.7979749 | AD205: =$E$190*AC205/1000 -> 10524.23192 | AE205: 126.7979749
A206: Clovergrass | B206: Press cake (dry) | C206: 1 | D206: 35.6 | E206: 0.356 | F206: 1.275614023 | G206: 0.01275614023 | H206: 45.14679718 | I206: 0.4514679718 | J206: 35.39220827 | K206: 0.097 | L206: 0.00097 | M206: 0.17 | N206: 0.0017 | O206: 1.6 | P206: 0.016 | W206: 382.684207 | X206: 96 | Y206: 20.4 | Z206: 3.88 | AB206: =SUM(W206:Z206) -> 502.964207 | AC206: =AB206/(1/(D206/100)) -> 179.0552577 | AD206: =$E$190*AC206/1000 -> 14861.58639 | AE206: 179.0552577
A207: Clovergrass | B207: Press cake (dry) | C207: 2 | D207: 35.6 | E207: 0.356 | F207: 1.286121964 | G207: 0.01286121964 | H207: 44.84509277 | I207: 0.4484509277 | J207: 34.86846039 | K207: 0.085 | L207: 0.00085 | M207: 0.15 | N207: 0.0015 | O207: 1.5 | P207: 0.015 | W207: 385.8365893 | X207: 90 | Y207: 18 | Z207: 3.4 | AB207: 497.2365893 | AC207: 177.0162258 | AD207: 14692.34674 | AE207: 177.0162258
A208: Clovergrass | B208: Protein paste (Freece dry) | C208: 1 | D208: 23.8 | E208: 0.238 | F208: 5.964502811 | G208: 0.05964502811 | H208: 50.37132263 | I208: 0.5037132263 | J208: 8.445183819 | K208: 0.36 | L208: 0.0036 | M208: 0.4 | N208: 0.004 | O208: 1.9 | P208: 0.019 | W208: 1789.350843 | X208: 114 | Y208: 48 | Z208: 14.4 | AB208: 1965.750843 | AC208: 467.8487007 | AD208: 38831.44216 | AE208: 467.8487007
A209: Clovergrass | B209: Protein paste (Freece dry) | C209: 2 | D209: 23.8 | E209: 0.238 | F209: 5.997831821 | G209: 0.05997831821 | H209: 50.52237701 | I209: 0.5052237701 | J209: 8.423440089 | K209: 0.37 | L209: 0.0037 | M209: 0.4 | N209: 0.004 | O209: 2.2 | P209: 0.022 | W209: 1799.349546 | X209: 132 | Y209: 48 | Z209: 14.8 | AB209: 1994.149546 | AC209: 474.6075921 | AD209: 39392.43014 | AE209: 474.6075921
A210: Clovergrass | B210: Brown juice (BJ) (Freece dry) | C210: 1 | D210: 5.7 | E210: 0.057 | F210: 1.315568566 | G210: 0.01315568566 | H210: 32.87574005 | I210: 0.3287574005 | J210: 24.98975796 | K210: 0.24 | L210: 0.0024 | M210: 0.39 | N210: 0.0039 | O210: 6.1 | P210: 0.061 | W210: 394.6705699 | X210: 366 | Y210: 46.8 | Z210: 9.6 | AB210: 817.0705699 | AC210: 46.57302248 | AD210: 3865.560866 | AE210: 46.57302248
A211: Clovergrass | B211: Brown juice (BJ) (Freece dry) | C211: 2 | D211: 5.7 | E211: 0.057 | F211: 1.286601901 | G211: 0.01286601901 | H211: 33.20577621 | I211: 0.3320577621 | J211: 25.80889721 | K211: 0.24 | L211: 0.0024 | M211: 0.48 | N211: 0.0048 | O211: 7.7 | P211: 0.077 | W211: 385.9805703 | X211: 462 | Y211: 57.6 | Z211: 9.6 | AB211: 915.1805703 | AC211: 52.16529251 | AD211: 4329.719278 | AE211: 52.16529251
A212: Clovergrass | B212: Digestate UASB HRT:3d (Freece dry) | C212: 1 | D212: 3.3 | E212: 0.033 | F212: 1.172878742 | G212: 0.01172878742 | H212: 21.19010162 | I212: 0.2119010162 | J212: 18.0667454 | K212: 0.18 | L212: 0.0018 | M212: 0.35 | N212: 0.0035 | O212: 6.1 | P212: 0.061 | W212: 351.8636227 | X212: 366 | Y212: 42 | Z212: 7.2 | AB212: 767.0636227 | AC212: 25.31309955 | AD212: 2100.987262 | AE212: 25.31309955
A213: Clovergrass | B213: Digestate UASB HRT:3d (Freece dry) | C213: 2 | D213: 3.3 | E213: 0.033 | G213: 0 | I213: 0 | K213: 0.18 | L213: 0.0018 | M213: 0.33 | N213: 0.0033 | O213: 6.2 | P213: 0.062 | W213: 0 | X213: 372 | Y213: 39.6 | Z213: 7.2 | AB213: 418.8 | AC213: 13.8204 | AD213: 1147.0932 | AE213: 13.8204
A222: Økonomisk værdi af fiberfraktion pr. ha
B223: Foderværdi | D223: Gasværdi | F223: Gødningsværdi
A224: Høstudbytte, pr. ha, tons FM | B224: ='Data omkn'!C156 -> 83 | D224: ='Data omkn'!C156 -> 83 | F224: =B224 -> 83
A225: Pressekage kg TS/ 1000 kg FM | B225: =IF(Drift!F4=2,'Model 2'!C121,'Model 2'!C56) -> 108 | C225: =IF(Drift!F4=2,'Model 2'!C120*B224,'Model 2'!C55*B224) -> 25611.42857
A226: FEN/kg TS | B226: 0.75 | I226: se resultat fra Foulum under Bilag
A227: Pris kr. pr. konventionel FE | B227: =Kalkule!D14 -> 1.27 | H227: 5,55/7,43=0,75 FEN/kg TS
A228: FEN i pressekage ud fra 1 tons FM | B228: =B225*B226 -> 81 | C228: =B229/C225 -> 0.333375 | D228: =B228*D224 -> 6723 | E228: =C225/1000 -> 25.61142857 | F228: =B228*B224 -> 6723 | G228: FE i pressekagen fra en ha
A229: Salgspris kr. pr. ha | B229: =B228*B224*B227 -> 8538.21
A230: Budgetkalkue salgspris | B230: =E16 -> 14624.1
A232: Gasprotentiale m3/ton FM | D232: =IF(Drift!F4=2,Kalkule!B107,Kalkule!B74) -> 26.73
A233: Gaspris, kr./m3 metan | D233: ='Data omkn'!C39 -> 4
A234: Omsætnings % | D234: ='Data omkn'!D37 -> 0.6
A235: Gaspris, kr./ha | D235: =D232*D224*D233 -> 8874.36
A237: Gødningsværdi
A238: Værdi kr. pr. tons FM | F238: =Kalkule!AC206 -> 179.0552577 | G238: usikker tal
A239: Samlede gødningsværdi, kr./ha | F239: =(F238*F224) -> 14861.58639
A243: Økonomisk værdi af brunsaft pr. ha
D244: =D223 -> Gasværdi | F244: =F223 -> Gødningsværdi
A246: =A232 -> Gasprotentiale m3/ton FM | D246: =IF(Drift!F4=2,Kalkule!H107,Kalkule!H74) -> 13.068
A247: =A233 -> Gaspris, kr./m3 metan | D247: =D233 -> 4
A248: =A234 -> Omsætnings % | D248: ='Data omkn'!D38 -> 0.75
A249: =A235 -> Gaspris, kr./ha | D249: =D246*D247*D224 -> 4338.576 | E249: =D249/(D224*'Model 2'!O54/100) -> 102.2078212
A251: =A237 -> Gødningsværdi
A252: =A238 -> Værdi kr. pr. tons FM | F252: =IF(Drift!F4=2,Kalkule!J140,Kalkule!J139) -> 4.32
A253: =A239 -> Samlede gødningsværdi, kr./ha | F253: =F252*F224 -> 358.56 | G253: =ROUND(F253/(D224*'Model 2'!O54/100),0) -> 8

Sheet Bi pris
A1: 1 | B1: 2 | C1: 3
B2: Makro oplysninger | H2: Kørsels omkostninger/tons | K2: =Drift!I43 -> 14 | L2: kr.
A3: ID | B3: Fiber presset græs | C3: L opslag på pris- kr. | H3: Afskrivning | K3: =IF(J4=0,0,80000/Drift!C43) -> 0 | L3: kr. pr. tons presserest
A4: 1 | B4: Solgt presset fiber til foder, tons FM | C4: =Kalkule!C228*1000+J4+K3+K2 -> 347.375 | D4: =Kalkule!C228*1000 -> 333.375 | E4: kr. i foderværdi pr. tons | H4: omkostning til wrapnin | J4: =FLOOR(Drift!D46/0.7,2) -> 0 | K4: maskin afskrivning er en del investeringsomkostningerne beregnet til 450000 kr. forrentet med 8%/8 år svarende til 80.000 kr. pr år/antal tons wrappet græs
A5: 2 | B5: Solgt presset fiber til biogas, tons FM | C5: =F5 -> 262.5012153 | D5: kr/tons presse kagemasse | F5: =IF(Drift!F4=2,'Data omkn'!J33,'Data omkn'!J32) -> 262.5012153 | G5: kr/tons pressekage
A6: 3 | B6: Solgt presset fiber til grønpiller 1, tons FM | C6: ='Model 2'!C121/'Model 2'!C120*2500*0.15 -> 225 | D6: kr/tons FM | F6: pris på økologiske grønpiller ca 2500,- kr./tons i 2017 indkøbspris er sat til 15% af salgspris
A7: 4 | B7: Solgt presset fiber til andet 2, tons FM | C7: 50 | F7: Omregnet til kg FM
A8: 5 | B8: Solgt presset fiber til andet 3, tons FM | C8: 50
A11: 2 | B11: Solgt presset fiber til foder, tons FM | C11: =C4 -> 347.375
A12: 2 | B12: Solgt presset fiber til biogas, tons FM | C12: =F5 -> 262.5012153
A13: 3 | B13: Solgt presset fiber til grønpiller 1, tons FM | C13: =C6 -> 225
A14: 4 | B14: Solgt presset fiber til andet 2, tons FM | C14: =C7 -> 50
A15: 5 | B15: Solgt presset fiber til andet 3, tons FM | C15: 50
A18: 2 | B18: Solgt presset fiber til foder, tons FM | C18: =C4 -> 347.375
A19: 2 | B19: Solgt presset fiber til biogas, tons FM | C19: =F5 -> 262.5012153
A20: 3 | B20: Solgt presset fiber til grønpiller 1, tons FM | C20: =C6 -> 225
A21: 4 | B21: Solgt presset fiber til andet 2, tons FM | C21: 50
A22: 5 | B22: Solgt presset fiber til andet 3, tons FM | C22: 50
B28: Brunsaft | C28: =C3 -> L opslag på pris- kr.
A29: 1 | B29: Solgt brunsaft til biogas, tons FM | C29: =IF(Drift!F4=2,'Data omkn'!J35,'Data omkn'!J34) -> 102
A30: 2 | B30: Solgt brunsaft til gødning 1, tons FM | C30: =Kalkule!G253 -> 8 | D30: kr/tons FM masse
A31: 3 | B31: Solgt brunsaft til andet 2, tons FM | C31: 7 | D31: kr/tons FM
A32: 4 | B32: Solgt brunsaft til andet 3, tons FM | C32: 25
A33: 5 | B33: Solgt brunsaft til andet 3, tons FM | C33: 20
A36: 2 | B36: Solgt brunsaft til biogas, tons FM | C36: =C29 -> 102
A37: 2 | B37: Solgt brunsaft til gødning 1, tons FM | C37: =C30 -> 8
A38: 3 | B38: Solgt brunsaft til andet 2, tons FM | C38: 7 | D38: kr/tons FM
A39: 4 | B39: Solgt brunsaft til andet 3, tons FM | C39: 25
A40: 5 | B40: Solgt brunsaft til andet 3, tons FM | C40: 20
A43: 2 | B43: Solgt brunsaft til biogas, tons FM | C43: =C29 -> 102
A44: 2 | B44: Solgt brunsaft til gødning 1, tons FM | C44: =C30 -> 8
A45: 3 | B45: Solgt brunsaft til andet 2, tons FM | C45: 7
A46: 4 | B46: Solgt brunsaft til andet 3, tons FM | C46: 25
A47: 5 | B47: Solgt brunsaft til andet 3, tons FM | C47: 20

Sheet Model 2
B1: Massebalance
B2: Generelle forventninger til separationsresultater på græs
B3: 2-trins pesning, eluering før pressetrin 2, højtrykspresning | N3: Det vandopløselige protein skal følge vandmængden
B4: se Niels masseflow
B5: Erfaringer med kløvergræs
B6: Udgangspunkt: | E6: Presseresultater fra Pauli Kiel
B8: Det er på eget ansvar at rette i disse tal
B9: Kløvergræs
B10: Vægt | C10: 100 | D10: %
B11: Vådvægt | C11: 1000 | D11: kg | F11: Revision 1 | H11: 2017-04-06 | R11: 83000
B12: Vægt | C12: =C11*C13% -> 180 | D12: kg TS | F12: Røde og grønne tal er inddateringer | J12: Vådvægt, TS, VS og protein mængder
B13: Indhold | C13: 18 | D13: % TS | F13: Sorte tal er beregninger
B14: Vægt | C14: 16.2 | D14: kg aske | F14: Inddateringer må kun ske i råvare og proces
B15: Indhold | C15: =C14/C11% -> 1.62 | D15: % aske | F15: Procesresultater er beregninger !
B16: Vægt | C16: =C12-C14 -> 163.8 | D16: kg VS
B17: Indhold | C17: =C16/C11% -> 16.38 | D17: % VS
B18: % fiber | C18: 50 | D18: % af VS
B19: % vandopl | C19: 50 | D19: % af VS
B20: Protein | C20: 20 | D20: % af TS | F20: 24
B21: Protein | C21: =C12*C20% -> 36 | D21: kg protein
B22: Protein | C22: =C21/C16% -> 21.97802198 | D22: % af VS
B23: Indhold | C23: =C21/C11% -> 3.6 | D23: % protein
B24: Fiberfix | C24: 50 | D24: % af protein
B25: Fiberfix | C25: =C21*C24% -> 18 | D25: kg protein
B26: Vandopl | C26: 50 | D26: % af protein
B27: Vandopl | C27: =C21*C26% -> 18 | D27: kg protein
B28: Vand | C28: =C11-C12 -> 820 | D28: kg vand
C30: ↓
B32: Presse 1, skruepresse | H32: Pressesaft 1 | N32: Centrifugering | T32: Proteinpasta 1
B33: Til kage | C33: =C54 -> 30.85714286 | D33: % vådvægt | H33: Vægt | I33: =C10-C54 -> 69.14285714 | J33: % af græs | N33: Til pasta | O33: =U34/I34% -> 26.03305785 | P33: % vådvægt | T33: Vægt | U33: =U34/C11% -> 18 | V33: % af græs
B34: Til kage | C34: 60 | D34: % af TS | F34: → | H34: Vådvægt | I34: =C11-C55 -> 691.4285714 | J34: kg | L34: → | N34: Til pasta | O34: 50 | P34: % af TS | R34: → | T34: Vådvægt | U34: =U35/U36% -> 180 | V34: kg
B35: I kage | C35: 35 | D35: % TS | H35: Vægt | I35: =C12-C56 -> 72 | J35: kg TS | N35: I pasta | O35: 20 | P35: % TS | T35: Vægt | U35: =I35*O34% -> 36 | V35: kg TS
B36: Til kage | C36: =C60/C16% -> 60.98901099 | D36: % af VS | H36: Indhold | I36: =I35/I34% -> 10.41322314 | J36: % TS | N36: Til pasta | O36: =U39/I39% -> 50 | P36: % af VS | T36: Indhold | U36: =O35 -> 20 | V36: % TS
B37: I kage | C37: =C61 -> 32.375 | D37: % VS | H37: Vægt | I37: =C14-C58 -> 8.1 | J37: kg aske | N37: I pasta | O37: =U39/U34% -> 17.75 | P37: % VS | T37: Vægt | U37: =I37*O38% -> 4.05 | V37: kg aske
B38: Til kage | C38: 50 | D38: % af aske | H38: Indhold | I38: =I37/I34% -> 1.171487603 | J38: % aske | N38: Til pasta | O38: 50 | P38: % af aske | T38: Indhold | U38: =U37/U34% -> 2.25 | V38: % aske
B39: I kage | C39: =C59 -> 2.625 | D39: % aske | H39: Vægt | I39: =I35-I37 -> 63.9 | J39: kg VS | N39: I pasta | O39: =O59 -> 0.7918994413 | P39: % aske | T39: Vægt | U39: =U35-U37 -> 31.95 | V39: kg VS
B40: Til kage | C40: =C65/C21% -> 50 | D40: % af protein | H40: Indhold | I40: =I39/I34% -> 9.241735537 | J40: % VS | N40: Til pasta | O40: =U44/I44% -> 74.89198606 | P40: % af protein | T40: Indhold | U40: =U39/U34% -> 17.75 | V40: % VS
B41: I kage | C41: =C65 -> 18 | D41: % protein | H41: % fiber | I41: =100-I42 -> 24.45993031 | J41: % af VS | N41: I pasta | O41: =O65 -> 4.519442509 | P41: % protein | T41: % fiber | U41: =100-U42 -> 76.75276753 | V41: % af VS
B42: Til kage | C42: =C68 -> 75.54006969 | D42: % af fiberfix protein | H42: % vandopl | I42: =I51/C28% -> 75.54006969 | J42: % af VS | N42: Til pasta | O42: 90 | P42: % af fiberfix protein | T42: % vandopl | U42: =U51/I51% -> 23.24723247 | V42: % af VS
B43: I kage | C43: =C69 -> 13.59721254 | D43: % fiberfix protein | H43: Protein | I43: =I44/I35% -> 25 | J43: % af TS | N43: I pasta | O43: =O69 -> 0.4402787456 | P43: % fiberfix protein | T43: Protein | U43: =U44/U35% -> 37.44599303 | V43: % af TS
B44: Til kage | C44: =C70 -> 24.45993031 | D44: % af vandopl protein | H44: Protein | I44: =I48+I50 -> 18 | J44: kg protein | N44: Til pasta | O44: 70 | P44: % af vandopl protein | T44: Protein | U44: =U48+U50 -> 13.48055749 | V44: kg protein
B45: I kage | C45: =C71 -> 4.402787456 | D45: % vandopl protein | H45: Protein | I45: =I44/I39% -> 28.16901408 | J45: % af VS | N45: I pasta | O45: =U50/U34 -> 0.05287804878 | P45: % vandopl protein | T45: Protein | U45: =U44/U39% -> 42.1926682 | V45: % af VS
B46: Vand | H46: Indhold | I46: =I44/I34% -> 2.603305785 | J46: % protein | N46: Vand | T46: Indhold | U46: =U44/U34% -> 7.489198606 | V46: % protein
H47: Fiberfix | I47: =I41 -> 24.45993031 | J47: % af protein | T47: Fiberfix | U47: =U48/U44% -> 29.39424956 | V47: % af protein
H48: Fiberfix | I48: =C25*I47% -> 4.402787456 | J48: kg protein | T48: Fiberfix | U48: =I48*O42% -> 3.962508711 | V48: kg protein
H49: Vandopl | I49: =I42 -> 75.54006969 | J49: % af protein | T49: Vandopl | U49: =U50/U44% -> 70.60575044 | V49: % af protein
H50: Vandopl | I50: =C27*I51/C28 -> 13.59721254 | J50: kg protein | T50: Vandopl | U50: =I50*O44% -> 9.51804878 | V50: kg protein
C51: ↓ | H51: Vand | I51: =I34-I35 -> 619.4285714 | J51: kg vand | O51: ↓ | T51: Vand | U51: =U34-U35 -> 144 | V51: kg vand
B53: Pressekage 1 | N53: Brunsaft 1
B54: Vægt | C54: =C55/C11% -> 30.85714286 | D54: % af græs | F54: 320,2 kg VM/1000 kg FM | N54: Vægt | O54: =O55/C11% -> 51.14285714 | P54: % af græs | U54: =U44/U34*100 -> 7.489198606
B55: Vådvægt | C55: =C56/C35% -> 308.5714286 | D55: kg | F55: 112,1/35% | N55: Vådvægt | O55: =I34-U34 -> 511.4285714 | P55: kg
B56: Vægt | C56: =C12*C34% -> 108 | D56: kg TS | F56: 186,8 kg TS*60% | N56: Vægt | O56: =I35-U35 -> 36 | P56: kg TS
B57: Indhold | C57: =C56/C55% -> 35 | D57: % TS | F57: 112,1 kg TS/320,2 kg FM | N57: Indhold | O57: =O56/O55% -> 7.039106145 | P57: % TS
B58: Vægt | C58: =C14*C38% -> 8.1 | D58: kg aske | N58: Vægt | O58: =I37-U37 -> 4.05 | P58: kg aske
B59: Indhold | C59: =C58/C55% -> 2.625 | D59: % aske | N59: Indhold | O59: =O58/O55% -> 0.7918994413 | P59: % aske
B60: Vægt | C60: =C56-C58 -> 99.9 | D60: kg VS | N60: Vægt | O60: =O56-O58 -> 31.95 | P60: kg VS
B61: Indhold | C61: =C60/C55% -> 32.375 | D61: % VS | N61: Indhold | O61: =O60/O55% -> 6.247206704 | P61: % VS
B62: % fiber | C62: =100-C63 -> 75.54006969 | D62: % af VS | N62: % fiber | O62: =100-O63 -> 23.24723247 | P62: % af VS
B63: % vandopl | C63: =C72/C28% -> 24.45993031 | D63: % af VS | N63: % vandopl | O63: =O72/I51% -> 76.75276753 | P63: % af VS
B64: Protein | C64: =C65/C56% -> 16.66666667 | D64: % af TS | N64: Protein | O64: =O65/O56% -> 12.55400697 | P64: % af TS
B65: Protein | C65: =C69+C71 -> 18 | D65: kg protein | N65: Protein | O65: =I44-U44 -> 4.519442509 | P65: kg protein | T65: 16% er N | U65: Vil spalte fra som ammonium kvælstof dvs som ajle høj udnyttelse
B66: Protein | C66: =C65/C60% -> 18.01801802 | D66: % af VS | N66: Protein | O66: =O65/O60% -> 14.14535996 | P66: % af VS | U66: Har ikke regnet på fosfor og kalium
B67: Indhold | C67: =C65/C55% -> 5.833333333 | D67: % protein | N67: Indhold | O67: =O65/O55% -> 0.883689876 | P67: % protein | U67: Brunsaften falder meget hurtig fra 7 til 4 i PH værdi
B68: Fiberfix | C68: =C69/C65% -> 75.54006969 | D68: % af protein | N68: Fiberfix | O68: =O69/O65% -> 9.741881765 | P68: % af protein | U68: Det gærer meget hurtig og ved en gæring vil proteinet ikke spalte til ammoniak
B69: Fiberfix | C69: =C25-I48 -> 13.59721254 | D69: kg protein | N69: Fiberfix | O69: =I48-U48 -> 0.4402787456 | P69: kg protein
B70: Vandopl | C70: =C71/C65% -> 24.45993031 | D70: % af protein | N70: Vandopl | O70: =O71/O65% -> 90.25811823 | P70: % af protein
B71: Vandopl | C71: =C27*C72/C28 -> 4.402787456 | D71: kg protein | N71: Vandopl | O71: =O65-O69 -> 4.079163763 | P71: kg protein
B72: Vand | C72: =C55-C56 -> 200.5714286 | D72: kg vand | N72: Vand | O72: =I51-U51 -> 475.4285714 | P72: kg vand
C74: ↓
B76: Eluering til oprindelig TS
B77: Vådvægt | C77: =C78/C79% -> 600 | D77: Vådvægt | F77: Eluering med vand
B78: Mængde | C78: =C56 -> 108 | D78: kg TS
B79: Mix TS | C79: =C13 -> 18 | D79: % TS | E79: ← | F79: =C77-C55 -> 291.4285714 | G79: kg | I79: Måske til en anden TS en de 18,68%
B80: =B58 -> Vægt | C80: =C58 -> 8.1 | D80: kg aske
B81: =B59 -> Indhold | C81: 2.625 | D81: % aske
B82: Vægt | C82: 99.9 | D82: kg VS
B83: Indhold | C83: 32.375 | D83: % VS
B84: % fiber | C84: 75.54006969 | D84: % af VS
B85: % vandopl | C85: 24.45993031 | D85: % af VS
B86: Protein | C86: 16.66666667 | D86: % af TS
B87: Protein | C87: 18 | D87: kg protein
B88: =B67 -> Indhold | C88: 5.833333333 | D88: % protein
B89: Fiberfix | C89: 75.54006969 | D89: % af protein
B90: Fiberfix | C90: 13.59721254 | D90: kg protein
B91: Vandopl | C91: 24.45993031 | D91: % af protein
B92: Vandopl | C92: 4.402787456 | D92: kg protein
B93: =B72 -> Vand | C93: =C77-C78 -> 492 | D93: =D72 -> kg vand
C95: ↓
B97: Presse 2, højtrykspresse | H97: Pressesaft 2 | N97: Centrifugering | T97: Proteinpasta 2
B98: Til kage | C98: =C120/C77% -> 18 | D98: % vådvægt | H98: Vægt | I98: =I99/C11% -> 49.2 | J98: % af græs | N98: Til pasta | O98: =U99/I99% -> 14.63414634 | P98: % vådvægt | T98: Vægt | U98: =U99/C11% -> 7.2 | V98: % af græs
B99: Til kage | C99: 60 | D99: % af TS | F99: → | H99: Vådvægt | I99: =C77-C120 -> 492 | J99: kg | L99: → | N99: Til pasta | O99: 50 | P99: % af TS | R99: → | T99: Vådvægt | U99: =U100/U101% -> 72 | V99: kg
B100: I kage | C100: 60 | D100: % TS | H100: Vægt | I100: =C78-C121 -> 43.2 | J100: kg TS | N100: I pasta | O100: 30 | P100: % TS | T100: Vægt | U100: =I100*O99% -> 21.6 | V100: kg TS
B101: Til kage | C101: =C125/C82% -> 60.81081081 | D101: % af VS | H101: Indhold | I101: =I100/I99% -> 8.780487805 | J101: % TS | N101: Til pasta | O101: =U104/I104% -> 50 | P101: % af VS | T101: Indhold | U101: =O100 -> 30 | V101: % TS
B102: I kage | C102: =C126 -> 56.25 | D102: % VS | H102: Vægt | I102: =C80-C123 -> 4.05 | J102: kg aske | N102: I pasta | O102: =U104/U99% -> 27.1875 | P102: % VS | T102: Vægt | U102: =I102*O103% -> 2.025 | V102: kg aske
B103: Til kage | C103: 50 | D103: % af aske | H103: Indhold | I103: =I102/I99% -> 0.8231707317 | J103: % aske | N103: Til pasta | O103: 50 | P103: % af aske | T103: Indhold | U103: =U102/U99% -> 2.8125 | V103: % aske
B104: I kage | C104: =C124 -> 3.75 | D104: % aske | H104: Vægt | I104: =I100-I102 -> 39.15 | J104: kg VS | N104: I pasta | O104: =O124 -> 0.4821428571 | P104: % aske | T104: Vægt | U104: =U100-U102 -> 19.575 | V104: kg VS
B105: Til kage | C105: =C134/C90% -> 97.15687157 | D105: % af bundet protein | H105: Indhold | I105: =I104/I99% -> 7.957317073 | J105: % VS | N105: Til pasta | O105: =U109/I109% -> 71.75609756 | P105: % af protein | T105: Indhold | U105: =U104/U99% -> 27.1875 | V105: % VS
B106: I kage | C106: =C134/C120% -> 12.23206141 | D106: % bundet protein | H106: % fiber | I106: =100-I107 -> 8.780487805 | J106: % af VS | N106: I pasta | O106: =O130 -> 1.243518994 | P106: % protein | T106: % fiber | U106: =100-U107 -> 88.77005348 | V106: % af VS
B107: Til kage | C107: =C136/C92% -> 8.780487805 | D107: % af vandopl protein | H107: % vandopl | I107: =I116/C93% -> 91.2195122 | J107: % af VS | N107: Til pasta | O107: 90 | P107: % af fiberfix protein | T107: % vandopl | U107: =U116/I116% -> 11.22994652 | V107: % af VS
B108: I kage | C108: =C136/C120% -> 0.3579501997 | D108: % vandopl protein | H108: Protein | I108: =I109/I100% -> 10.19163763 | J108: % af TS | N108: I pasta | O108: =U113/U99% -> 0.4832327696 | P108: % fiberfix protein | T108: Protein | U108: =U109/U100% -> 14.62624288 | V108: % af TS
B109: Vand | H109: Protein | I109: =I113+I115 -> 4.402787456 | J109: kg protein | N109: Til pasta | O109: 70 | P109: % af vandopl protein | T109: Protein | U109: =U115+U113 -> 3.159268463 | V109: kg protein
H110: Protein | I110: =I109/I104% -> 11.24594497 | J110: % af VS | N110: I pasta | O110: =U115/U99% -> 3.904640095 | P110: % vandopl protein | T110: Protein | U110: =U109/U104% -> 16.13930249 | V110: % af VS
H111: Indhold | I111: =I109/I99% -> 0.8948754993 | J111: % protein | N111: Vand | T111: Indhold | U111: =U109/U99% -> 4.387872865 | V111: % protein
H112: Fiberfix | I112: =I106 -> 8.780487805 | J112: % af protein | T112: Fiberfix | U112: =U113/U109% -> 11.01291638 | V112: % af protein
H113: Fiberfix | I113: =C92*I112% -> 0.3865862157 | J113: kg protein | T113: Fiberfix | U113: =I113*O107% -> 0.3479275941 | V113: kg protein
H114: Vandopl | I114: =I107 -> 91.2195122 | J114: % af protein | T114: Vandopl | U114: =U115/U109% -> 88.98708362 | V114: % af protein
H115: Vandopl | I115: =C92*I116/C93 -> 4.016201241 | J115: kg protein | T115: Vandopl | U115: =I115*O109% -> 2.811340869 | V115: kg protein
C116: ↓ | H116: Vand | I116: =C93-C137 -> 448.8 | J116: kg vand | O116: ↓ | T116: Vand | U116: =U99-U100 -> 50.4 | V116: kg vand
B118: Pressekage 2 | N118: Brunsaft 2
B119: Vægt | C119: =C120/C11% -> 10.8 | D119: % af græs | N119: Vægt | O119: =O120/C11% -> 42 | P119: % af græs | T119: Produkter 1
B120: Vådvægt | C120: =C121/C122% -> 108 | D120: kg | F120: 112,6/60% | N120: Vådvægt | O120: =I99-U99 -> 420 | P120: kg | U120: kg FM | W120: Kg TS
B121: Vægt | C121: =C78*C99% -> 64.8 | D121: kg TS | F121: 121/93% | N121: Vægt | O121: =I100-U100 -> 21.6 | P121: kg TS | T121: Brunsaft | U121: =O55 -> 511.4285714 | V121: =U121/$U$126 -> 0.3960176991 | W121: =O56 -> 36
B122: Indhold | C122: =C100 -> 60 | D122: % TS | N122: Indhold | O122: =O121/O120% -> 5.142857143 | P122: % TS | T122: Protein pulve | U122: =U44 -> 13.48055749 | V122: =U122/$U$126 -> 0.01043848478
B123: Vægt | C123: =C80*C103% -> 4.05 | D123: kg aske | N123: Vægt | O123: =I102-U102 -> 2.025 | P123: kg aske | T123: Kage | U123: =C55 -> 308.5714286 | V123: 0.2389380531 | W123: =C56 -> 108
B124: Indhold | C124: =C123/C120% -> 3.75 | D124: % aske | N124: Indhold | O124: =O123/O120% -> 0.4821428571 | P124: % aske | T124: Vand | U124: =U51 -> 144 | V124: 0.1115044248
B125: Vægt | C125: =C121-C123 -> 60.75 | D125: kg VS | N125: Vægt | O125: =O121-O123 -> 19.575 | P125: kg VS | T125: Rest | U125: =C11+F79-SUM(U121:U124) -> 313.9480139 | V125: 0.2431013382
B126: Indhold | C126: =C125/C120% -> 56.25 | D126: % VS | N126: Indhold | O126: =O125/O120% -> 4.660714286 | P126: % VS | U126: =SUM(U121:U125) -> 1291.428571 | V126: =SUM(V121:V125) -> 1
B127: % fiber | C127: =100-C128 -> 91.2195122 | D127: % af VS | N127: % fiber | O127: =100-O128 -> 11.22994652 | P127: % af VS
B128: % vandopl | C128: =C137/C93% -> 8.780487805 | D128: % af VS | N128: % vandopl | O128: =O137/I116% -> 88.77005348 | P128: % af VS | T128: Produkter 2
B129: Protein | C129: =C130/C125% -> 22.38224287 | D129: % af TS | N129: Protein | O129: =O130/O125% -> 6.352587452 | P129: % af TS | U129: kg FM | W129: kg TS
B130: Protein | C130: =C136+C134 -> 13.59721254 | D130: kg protein | N130: Protein | O130: =I109-U109 -> 1.243518994 | P130: kg protein | T130: Brunsaft | U130: =O120+O55 -> 931.4285714 | V130: =U130/$U$135 -> 0.7212389381 | W130: =O56+O121 -> 57.6
B131: Protein | C131: =C130/C125% -> 22.38224287 | D131: % af VS | N131: Protein | O131: =O130/O125% -> 6.352587452 | P131: % af VS | T131: Protein pulve | U131: =U109+U44 -> 16.63982595 | V131: =U131/$U$135 -> 0.01288482098
B132: Indhold | C132: =C130/C120% -> 12.59001161 | D132: % protein | N132: Indhold | O132: =O130/O120% -> 0.2960759509 | P132: % protein | T132: Kage | U132: =C120 -> 108 | V132: =U132/$U$135 -> 0.08362831858 | W132: =C121 -> 64.8
B133: Fiberfix | C133: =C130-C134 -> 0.3865862157 | D133: % af protein | N133: Fiberfix | O133: =O134/O130% -> 3.10880829 | P133: % af protein | T133: Vand | U133: =U116+U51 -> 194.4 | V133: =U133/$U$135 -> 0.1505309735
B134: Fiberfix | C134: =C90-I113 -> 13.21062633 | D134: kg protein | N134: Fiberfix | O134: =I113-U113 -> 0.03865862157 | P134: kg protein | T134: Rest | U134: =C11+F79-SUM(U130:U133) -> 40.96017405 | V134: =U134/$U$135 -> 0.03171694893
B135: Vandopl | C135: =C136/C130% -> 2.843128431 | D135: % af protein | N135: Vandopl | O135: =O136/O130% -> 96.89119171 | P135: % af protein | U135: =SUM(U130:U134) -> 1291.428571 | V135: =SUM(V130:V134) -> 1
B136: Vandopl | C136: =C92-I115 -> 0.3865862157 | D136: kg protein | N136: Vandopl | O136: =I115-U115 -> 1.204860372 | P136: kg protein
B137: Vand | C137: =C120-C121 -> 43.2 | D137: kg vand | N137: Vand | O137: =I116-U116 -> 398.4 | P137: kg vand

Sheet Bilag
B643: =0.75*0.282 -> 0.2115 | C643: FEN/kg FM
B644: =0.282*0.168 -> 0.047376 | C644: kg protein/FM
B670: Teori
B672: Temperaturen er afgørende for hvilken form vandet er i, som f.eks. Er vandets smeltepunkt 0∘ C og vandets kogepunkt er 100 oC. Opvarmning og afkøling
B673: Den specifikke smeltevarme for at smelte is til vand, Lsmelt= 334kJkg . der skal 334kJ til at smelte et kg is til vand.
B674: Den specifikke fordampningsvarme for vand (så meget ernergi der skal til at fordampe vand), Lfordamp= 2,260kJkg dvs. at der skal 2,260 kJ for at få et kg vand til at fordampe.
B675: Læs mere om vandets faser Termisk energi
B676: Der skal 2257 kJ/Kg til for at få 1 kg vand til at fordampe, og formlen er: . Lfordamp er 2257kJ/kg. m = vandets masse.
B677: vi bruger 1,537 som et eksamepl på en masse og Lfordamp, 2257kJ7kg så får vi denne ligning: 1,537kg*2257kJkJkg = Delta E. delta E er så den energi det kræves at fordampe 1.537kg vand.

Sheet Forrentning
A1: =IF(B11="S","Realkredit Låneberegning serielån",IF(B11="A","Realkredit Låneberegning annuitetslån","Låneberegning")) -> Realkredit Låneberegning annuitetslån
A2: 1 | B2: 2 | C2: 3 | D2: 4 | E2: 5 | F2: 6 | G2: 7 | H2: 8 | I2: 9 | J2: 10 | K2: 11 | L2: 12 | M2: 13 | N2: 14 | O2: 15
A3: Ejendomsnr.: | G3: Dato: | H3: =NOW() -> 2018-03-07T07:36:15.100
A4: Navn: | G4: Udarbejdet af: | H4: Karen Jørgensen
A5: Adresse:
A6: By:
A8: Lånedata: | D8: =IF(AND(B12>0,B13>0,B15>0,B16>0),"Låneoplysninger:",0) -> Låneoplysninger:
A9: Lånetype: | B9: =IF(OR(B11="A",B11="S")," ","(skal tastes)") ->  | D9: =IF(AND(B12>0,B13>0,B15>0,B16>0),"Antal terminer"," ") -> Antal terminer | F9: =IF(AND(B12>0,B13>0,B15>0,B16>0),B15*B16,0) -> 15
A10: A=annuitetslån | D10: =IF(AND(B12>0,B15>0,B16>0,B13>0),"Rente% pr. term."," ") -> Rente% pr. term. | F10: =IF(OR(B13=0,B13=" ",B16=0,B16=" "),0,B13/B16) -> 2.5
A11: S=serielån | B11: a | D11: =IF(AND(B12>0,B11="S",B13>0,B15>0,B16>0),"Afdrag pr. termin",IF(AND(B12>0,B11="A",B13>E11,B15>0,B16>0),"Ydelse pr. termin"," ")) -> Ydelse pr. termin | F11: =IF(AND(B12>0,B11="A",B13>0,B15>0,B16>0),PMT(F10/100,F9,B12)*-1,IF(AND(B12>0,B11="S",B13>0,B15>0,B16>0),B12/F9," ")) -> 726898.1045
A12: Hovedstol | B12: =Drift!E61 -> 9000000 | D12: =IF(AND(B14>0,B11="A",B12>0,B13>0,B15>0,B16>0),"Incl. bidrag",IF(AND(B14>0,B11="S",B12>0,B13>0,B15>0,B16>0),"Bidrag pr. term."," ")) ->  | F12: =IF(AND(B14>0,B13>0,B15>0,B16>0,B11="A"),F11+D24,IF(AND(B14>0,B13>0,B15>0,B16>0,B11="S"),(B12*B14/100)/B16," ")) ->  | H12: 800000
A13: Rente% p.a. | B13: =Drift!D62*100 -> 2.5 | D13: =IF(AND(B11="a",B12>0,B13>0,B15>0,B16>0),"Årlig ydelse",IF(AND(B11="s",B12>0,B13>0,B15>0,B16>0),"Årligt afdrag"," ")) -> Årlig ydelse | F13: =IF(AND(B12>0,B13>0,B15>0,B16>0,B11="A"),F11*B16,IF(AND(B12>0,B13>0,B15>0,B16>0,B11="S"),F11*B16,0)) -> 726898.1045 | H13: 94.6
A14: Bidrag % | B14: 0 | D14: =IF(AND(B12>0,B14>0,B11="S",B13>0,B15>0,B16>0),"Årligt bidrag",IF(AND(B12>0,B14>0,B11="A",B13>0,B15>0,B16>0),"Incl. bidrag"," ")) ->  | F14: =IF(AND(B14>0,B11="A",B12>0,B13>0,B15>0,B16>0),F12*B16,IF(AND(B14>0,B11="S"),F12*B16,0)) -> 0 | H14: =H12*H13/100 -> 756800
A15: Løbetid, år | B15: =Drift!D63 -> 15 | D15: =IF(AND(B12>0,B13>0,B15>0,B16>0,B11="S"),"Rente hele perioden",IF(AND(B11="A",B12>0,B13>0,B15>0,B16>0),"Rente hele perioden"," ")) -> Rente hele perioden | F15: =IF(AND(B11="A",B12>0,B13>0,B15>0,B16>0),B162,IF(AND(B11="S",B12>0,B13>0,B15>0,B16>0),B162,0)) -> 1903471.567 | H15: 30000
A16: Terminer p.a. | B16: 1 | D16: =IF(AND(B11="S",B12>0,B14>0,B13>0,B15>0,B16>0),"Bidrag hele perioden",IF(AND(B11="a",B12>0,B14>0,B13>0,B15>0,B16>0),"Bigrag hele perioden"," ")) ->  | F16: =IF(AND(B11="A",B12>0,B14>0),D162,IF(AND(B11="S",B12>0,B14>0),D162,0)) -> 0 | H16: =H14-H15 -> 726800
A17: Antal term. i år 1 | B17: 1 | D17: =IF(F15+F16>0,"Fradr. hele perioden"," ") -> Fradr. hele perioden | F17: =IF(SUM(F15:F16)=0,0,SUM(F15:F16)) -> 1903471.567 | H17: 529000
A18: =IF(OR(B11="a",B11="S")," ","Lånetype skal være ''A'' eller ''S''.") ->  | H18: =H16-H17 -> 197800
A19: =IF(OR(B16=1,B16=2,B16=4,B16=12)," ","Terminer p.a. skal være 1, 2, 4 eller 12.") ->  | H19: =H12*0.015 -> 12000
A20: =IF(B17>B16,"For mange terminer i år 1 i forhold til antal terminer pr. år"," ") ->  | D20: =B24+D24 -> 225000
A21: =IF(AND(B12>0,B13>0,B15>0,B16>0),"Ydelsesoversigt"," ") -> Ydelsesoversigt
B22: =IF(B16=1,"Årlig",IF(B16=2,"Halvårlig",IF(B16=4,"Kvartårlig",IF(B16=12,"Månedlig"," ")))) -> Årlig | G22: =IF(OR(B16=1,B17=0)," ","Opsummeret årlig") -> 
A23: =IF(AND(B12>0,B13>0,B15>0,B16>0),"Terminsnr."," ") -> Terminsnr. | B23: =IF(AND(B12>0,B13>0,B15>0,B16>0),"rente","") -> rente | C23: =IF(AND(B13>0,B15>0,B16>0,B12>0),"afdrag"," ") -> afdrag | D23: =IF(AND(B14>0,B12>0,B13>0,B15>0,B16>0),"bidrag"," ") ->  | E23: =IF(AND(B12>0,B13>0,B15>0,B16>0),"ydelse"," ") -> ydelse | F23: =IF(AND(B12>0,B13>0,B15>0,B16>0),"Restgæld"," ") -> Restgæld | G23: =IF(OR($B$16=1,B17=0)," ","rt.+bidr.") ->  | H23: =IF(OR($B$16<1,B17=0)," ","afdrag") -> afdrag | I23: =IF(OR($B$16=1,B17=0)," ","ydelse") -> 
A24: =IF(AND(B12>0,B13>0,B15>0,B16>0),Økonomi!D6,0) -> 2017 | B24: =B12*$F$10/100 -> 225000 | C24: =IF(AND($B$12>0,$B$11="A",$B$13>0,$B$15>0,$B$16>0),$F$11-B24,IF(AND($B$12>0,$B$11="S",$B$13>0,$B$15>0,$B$16>0),$B$12/$F$9,0)) -> 501898.1045 | D24: =B12*A162/100 -> 0 | E24: =IF(AND(B12>0,B11="A",$B$13>0,$B$15>0,$B$16>0),F11+D24,IF(AND(B12>0,B11="S",$B$13>0,$B$15>0,$B$16>0),B24+C24+D24," ")) -> 726898.1045 | F24: =IF(AND(B12>0,B13>0,B15>0,B16>0),B12-C24,IF((B12-C24)<=0,0,0)) -> 8498101.896 | G24: =IF($B$16=4,J24,IF($B$16=2,L24,IF($B$16=12,N24,0))) -> 0 | H24: =IF($B$16=4,K24,IF($B$16=2,M24,IF($B$16=12,O24,0))) -> 0 | I24: =G24+H24 -> 0 | J24: =IF(AND($B$16=4,$B$17=1),B24+D24,0) -> 0 | K24: =IF(AND($B$16=4,$B$17=1),C24,0) -> 0 | L24: =IF(AND($B$17=1,$B$16=2),B24+D24,0) -> 0 | M24: =IF(AND($B$17=1,$B$16=2),C24,0) -> 0 | N24: =IF(AND($B$16=12,$B$17=1),B24+D24,0) -> 0 | O24: =IF(AND($B$16=12,$B$17=1),C24,0) -> 0
A25: =IF(F24<=0," ",A24+1) -> 2018 | B25: =F24*$F$10/100 -> 212452.5474 | C25: =IF(AND(F24>0,$B$11="A"),$F$11-B25,IF(AND(F24>0,$B$11="S"),$F$11,0)) -> 514445.5571 | D25: =IF(F24<=0,0,$B$12*($B$14/$B$16)/100) -> 0 | E25: =IF(AND(F24>0,$B$11="A"),E24,IF(AND(F24>0,$B$11="S"),B25+C25+D25," ")) -> 726898.1045 | F25: =IF(F24-C25<=1,0,F24-C25) -> 7983656.338 | G25: 0 | H25: 0 | I25: 0 | J25: =IF(AND($B$16=4,$B$17=2),B24+B25+D24+D25,0) -> 0 | K25: =IF(AND($B$16=4,$B$17=2),C24+C25,0) -> 0 | L25: =IF(AND($B$16=2,$B$17=2),B24+B25+D24+D25,0) -> 0 | M25: =IF(AND($B$16=2,$B$17=2),C24+C25,0) -> 0 | N25: =IF(AND($B$16=12,$B$17=2),B25+B24+D24+D25,0) -> 0 | O25: =IF(AND($B$16=12,$B$17=2),C25+C24,0) -> 0
A26: =IF(F25<=0,"",A25+1) -> 2019 | B26: 199591.4085 | C26: 527306.696 | D26: 0 | E26: 726898.1045 | F26: 7456349.642 | G26: 0 | H26: 0 | I26: 0 | J26: =IF(AND($B$16=4,$B$17=3),B24+B25+B26+D24+D25+D26,0) -> 0 | K26: =IF(AND($B$16=4,$B$17=3),C24+C25+C26,0) -> 0 | L26: =IF(AND($B$16=2,$B$17=1),B25+B26+D25+D26,0) -> 0 | M26: =IF(AND($B$16=2,$B$17=1),C25+C26,0) -> 0 | N26: =IF(AND($B$16=12,$B$17=3),B26+B25+B24+D24+D25+D26,0) -> 0 | O26: =IF(AND($B$16=12,$B$17=3),C26+C25+C24,0) -> 0
A27: 2020 | B27: 186408.7411 | C27: 540489.3634 | D27: 0 | E27: 726898.1045 | F27: 6915860.279 | G27: 0 | H27: 0 | I27: 0 | J27: =IF(AND($B$16=4,$B$17=4),B24+B25+B26+B27+D24+D25+D26+D27,0) -> 0 | K27: =IF(AND($B$16=4,$B$17=4),C24+C25+C26+C27,0) -> 0 | L27: =IF(AND($B$16=2,$B$17=2),B26+B27+D26+D27,0) -> 0 | M27: =IF(AND($B$16=2,$B$17=2),C26+C27,0) -> 0 | N27: =IF(AND($B$16=12,$B$17=4),B27+B26+B25+B24+D24+D25+D26+D27,0) -> 0 | O27: =IF(AND($B$16=12,$B$17=4),C27+C26+C25+C24,0) -> 0
A28: 2021 | B28: 172896.507 | C28: 554001.5975 | D28: 0 | E28: 726898.1045 | F28: 6361858.682 | G28: 0 | H28: 0 | I28: 0 | J28: =IF(AND($B$16=4,$B$17=1),B25+B26+B27+B28+D25+D26+D27+D28,0) -> 0 | K28: =IF(AND($B$16=4,$B$17=1),C25+C26+C27+C28,0) -> 0 | L28: =IF(AND($B$16=2,$B$17=1),B27+B28+D27+D28,0) -> 0 | M28: =IF(AND($B$16=2,$B$17=1),C27+C28,0) -> 0 | N28: =IF(AND($B$16=12,$B$17=5),B28+B27+B26+B25+B24+D24+D25+D26+D27+D28,0) -> 0 | O28: =IF(AND($B$16=12,$B$17=5),C28+C27+C26+C25+C24,0) -> 0
A29: 2022 | B29: 159046.467 | C29: 567851.6374 | D29: 0 | E29: 726898.1045 | F29: 5794007.044 | G29: 0 | H29: 0 | I29: 0 | J29: =IF(AND($B$16=4,$B$17=2),B26+B27+B28+B29+D29+D28+D27+D26,0) -> 0 | K29: =IF(AND($B$16=4,$B$17=2),C26+C27+C28+C29,0) -> 0 | L29: =IF(AND($B$16=2,$B$17=2),B28+B29+D28+D29,0) -> 0 | M29: =IF(AND($B$16=2,$B$17=2),C28+C29,0) -> 0 | N29: =IF(AND($B$16=12,$B$17=6),B29+B28+B27+B26+B25+B24+D24+D25+D26+D27+D28+D29,0) -> 0 | O29: =IF(AND($B$16=12,$B$17=6),C29+C28+C27+C26+C25+C24,0) -> 0
A30: 2023 | B30: 144850.1761 | C30: 582047.9284 | D30: 0 | E30: 726898.1045 | F30: 5211959.116 | G30: 0 | H30: 0 | I30: 0 | J30: =IF(AND($B$16=4,$B$17=3),B30+B29+B28+B27+D27+D28+D29+D30,0) -> 0 | K30: =IF(AND($B$16=4,$B$17=3),C30+C29+C28+C27,0) -> 0 | L30: =IF(AND($B$16=2,$B$17=1),B29+B30+D29+D30,0) -> 0 | M30: =IF(AND($B$16=2,$B$17=1),C29+C30,0) -> 0 | N30: =IF(AND($B$16=12,$B$17=7),B30+B29+B28+B27+B26+B25+B24+D24+D25+D26+D27+D28+D29+D30,0) -> 0 | O30: =IF(AND($B$16=12,$B$17=7),C30+C29+C28+C27+C26+C25+C24,0) -> 0
A31: 2024 | B31: 130298.9779 | C31: 596599.1266 | D31: 0 | E31: 726898.1045 | F31: 4615359.989 | G31: 0 | H31: 0 | I31: 0 | J31: =IF(AND($B$16=4,$B$17=4),B31+B30+B29+B28+D28+D29+D30+D31,0) -> 0 | K31: =IF(AND($B$16=4,$B$17=4),C31+C30+C29+C28,0) -> 0 | L31: =IF(AND($B$16=2,$B$17=2),B30+B31+D30+D31,0) -> 0 | M31: =IF(AND($B$16=2,$B$17=2),C30+C31,0) -> 0 | N31: =IF(AND($B$16=12,$B$17=8),B31+B30+B29+B28+B27+B26+B25+B24+D24+D25+D26+D27+D28+D29+D30+D31,0) -> 0 | O31: =IF(AND($B$16=12,$B$17=8),C31+C30+C29+C28+C27+C26+C25+C24,0) -> 0
A32: 2025 | B32: 115383.9997 | C32: 611514.1047 | D32: 0 | E32: 726898.1045 | F32: 4003845.884 | G32: 0 | H32: 0 | I32: 0 | J32: =IF(AND($B$16=4,$B$17=1),B32+B31+B30+B29+D29+D30+D31+D32,0) -> 0 | K32: =IF(AND($B$16=4,$B$17=1),C32+C31+C30+C29,0) -> 0 | L32: =IF(AND($B$16=2,$B$17=1),B31+B32+D31+D32,0) -> 0 | M32: =IF(AND($B$16=2,$B$17=1),C31+C32,0) -> 0 | N32: =IF(AND($B$16=12,$B$17=9),B32+B31+B30+B29+B28+B27+B26+B25+B24+D24+D25+D26+D27+D28+D29+D30+D31+D32,0) -> 0 | O32: =IF(AND($B$16=12,$B$17=9),C32+C31+C30+C29+C28+C27+C26+C25+C24,0) -> 0
A33: 2026 | B33: 100096.1471 | C33: 626801.9574 | D33: 0 | E33: 726898.1045 | F33: 3377043.927 | G33: 0 | H33: 0 | I33: 0 | J33: =IF(AND($B$16=4,$B$17=2),B33+B32+B31+B30+D30+D31+D32+D33,0) -> 0 | K33: =IF(AND($B$16=4,$B$17=2),C33+C32+C31+C30,0) -> 0 | L33: =IF(AND($B$16=2,$B$17=2),B32+B33+D32+D33,0) -> 0 | M33: =IF(AND($B$16=2,$B$17=2),C32+C33,0) -> 0 | N33: =IF(AND($B$16=12,$B$17=10),B33+B32+B31+B30+B29+B28+B27+B26+B25+B24+D24+D25+D26+D27+D28+D29+D30+D31+D32+D33,0) -> 0 | O33: =IF(AND($B$16=12,$B$17=10),C33+C32+C31+C30+C29+C28+C27+C26+C25+C24,0) -> 0
A34: 2027 | B34: 84426.09818 | C34: 642472.0063 | D34: 0 | E34: 726898.1045 | F34: 2734571.921 | G34: 0 | H34: 0 | I34: 0 | J34: =IF(AND($B$16=4,$B$17=3),B34+B33+B32+B31+D31+D32+D33+D34,0) -> 0 | K34: =IF(AND($B$16=4,$B$17=3),C34+C33+C32+C31,0) -> 0 | L34: =IF(AND($B$16=2,$B$17=1),B33+B34+D33+D34,0) -> 0 | M34: =IF(AND($B$16=2,$B$17=1),C33+C34,0) -> 0 | N34: =IF(AND($B$16=12,$B$17=11),B34+B33+B32+B31+B30+B29+B28+B27+B26+B25+B24+D24+D25+D26+D27+D28+D29+D30+D31+D32+D33+D34,0) -> 0 | O34: =IF(AND($B$16=12,$B$17=11),C34+C33+C32+C31+C30+C29+C28+C27+C26+C25+C24,0) -> 0
A35: 2028 | B35: 68364.29802 | C35: 658533.8064 | D35: 0 | E35: 726898.1045 | F35: =IF(ROUND((F34-C35),)<=0,0,F34-C35) -> 2076038.114 | G35: 0 | H35: 0 | I35: 0 | J35: =IF(AND($B$16=4,$B$17=4),B35+B34+B33+B32+D32+D33+D34+D35,0) -> 0 | K35: =IF(AND($B$16=4,$B$17=4),C35+C34+C33+C32,0) -> 0 | L35: =IF(AND($B$16=2,$B$17=2),B34+B35+D34+D35,0) -> 0 | M35: =IF(AND($B$16=2,$B$17=2),C34+C35,0) -> 0 | N35: =IF(AND($B$16=12,$B$17=12),B35+B34+B33+B32+B31+B30+B29+B28+B27+B26+B25+B24+D24+D25+D26+D27+D28+D29++D31+D32+D33+D34+D35,0) -> 0 | O35: =IF(AND($B$16=12,$B$17=12),C35+C34+C33+C32+C31+C30+C29+C28+C27+C26+C25+C24,0) -> 0
A36: 2029 | B36: 51900.95286 | C36: 674997.1516 | D36: 0 | E36: 726898.1045 | F36: 1401040.963 | G36: 0 | H36: 0 | I36: 0 | J36: =IF(AND($B$16=4,$B$17=1),B36+D36+B33+B34+B35+D33+D34+D35,0) -> 0 | K36: =IF(AND($B$16=4,$B$17=1),C36+C33+C34+C35,0) -> 0 | L36: =IF(AND($B$17=1,$B$16=2),B36+D36,0) -> 0 | M36: =IF(AND($B$17=1,$B$16=2),C36,0) -> 0 | N36: =IF(AND($B$16=12,$B$17=1),B36+B35+B34+B33+B32+B31+B30+B29+B28+B27+B26+B25+SUM(D25:D36),0) -> 0 | O36: =IF(AND($B$16=12,$B$17=1),C36+C35+C34+C33+C32+C31+C30+C29+C28+C27+C26+C25,0) -> 0
A37: 2030 | B37: 35026.02407 | C37: 691872.0804 | D37: 0 | E37: 726898.1045 | F37: 709168.8824 | G37: 0 | H37: 0 | I37: 0 | J37: =IF(AND($B$16=4,$B$17=2),B36+B37+B35+B34+D34+D35+D36+D37,0) -> 0 | K37: =IF(AND($B$16=4,$B$17=2),C34+C35+C36+C37,0) -> 0 | L37: =IF(AND($B$16=2,$B$17=2),B36+B37+D36+D37,0) -> 0 | M37: =IF(AND($B$16=2,$B$17=2),C36+C37,0) -> 0 | N37: =IF(AND($B$16=12,$B$17=2),B37+B36+B35+B34+B33+B32+B31+B30+B29+B28+B27+B26+SUM(D26:D37),0) -> 0 | O37: =IF(AND($B$16=12,$B$17=2),C37+C36+C35+C34+C33+C32+C31+C30+C29+C28+C27+C26,0) -> 0
A38: 2031 | B38: 17729.22206 | C38: 709168.8824 | D38: 0 | E38: 726898.1045 | F38: 0 | G38: 0 | H38: 0 | I38: 0 | J38: =IF(AND($B$16=4,$B$17=3),B35+B36+B37+B38+D35+D36+D37+D38,0) -> 0 | K38: =IF(AND($B$16=4,$B$17=3),C35+C36+C37+C38,0) -> 0 | L38: =IF(AND($B$16=2,$B$17=1),B37+B38+D37+D38,0) -> 0 | M38: =IF(AND($B$16=2,$B$17=1),C37+C38,0) -> 0 | N38: =IF(AND($B$16=12,$B$17=3),B38+B37+B36+B35+B34+B33+B32+B31+B30+B29+B28+B27+SUM(D27:D38),0) -> 0 | O38: =IF(AND($B$16=12,$B$17=3),C38+C37+C36+C35+C34+C33+C32+C31+C30+C29+C28+C27,0) -> 0
B39: 0 | C39: 0 | D39: 0 | F39: 0 | G39: 0 | H39: 0 | I39: 0 | J39: =IF(AND($B$16=4,$B$17=4),B36+B37+B38+B39+D36+D37+D38+D39,0) -> 0 | K39: =IF(AND($B$16=4,$B$17=4),C36+C37+C38+C39,0) -> 0 | L39: =IF(AND($B$16=2,$B$17=2),B38+B39+D38+D39,0) -> 0 | M39: =IF(AND($B$16=2,$B$17=2),C38+C39,0) -> 0 | N39: =IF(AND($B$16=12,$B$17=4),B39+B38+B37+B36+B35+B34+B33+B32+B31+B30+B29+B28+SUM(D28:D39),0) -> 0 | O39: =IF(AND($B$16=12,$B$17=4),C39+C38+C37+C36+C35+C34+C33+C32+C31+C30+C29+C28,0) -> 0
B40: 0 | C40: 0 | D40: 0 | F40: 0 | G40: 0 | H40: 0 | I40: 0 | J40: =IF(AND($B$16=4,$B$17=1),B37+B38+B39+B40+D37+D38+D39+D40,0) -> 0 | K40: =IF(AND($B$16=4,$B$17=1),C37+C38+C39+C40,0) -> 0 | L40: =IF(AND($B$16=2,$B$17=1),B39+B40+D39+D40,0) -> 0 | M40: =IF(AND($B$16=2,$B$17=1),C39+C40,0) -> 0 | N40: =IF(AND($B$16=12,$B$17=5),B40+B39+B38+B37+B36+B35+B34+B33+B32+B31+B30+B29+SUM(D29:D40),0) -> 0 | O40: =IF(AND($B$16=12,$B$17=5),C40+C39+C38+C37+C36+C35+C34+C33+C32+C31+C30+C29,0) -> 0
B41: 0 | C41: 0 | D41: 0 | F41: 0 | G41: 0 | H41: 0 | I41: 0 | J41: =IF(AND($B$16=4,$B$17=2),B38+B39+B40+B41+D41+D40+D39+D38,0) -> 0 | K41: =IF(AND($B$16=4,$B$17=2),C38+C39+C40+C41,0) -> 0 | L41: =IF(AND($B$16=2,$B$17=2),B40+B41+D40+D41,0) -> 0 | M41: =IF(AND($B$16=2,$B$17=2),C40+C41,0) -> 0 | N41: =IF(AND($B$16=12,$B$17=6),B41+B40+B39+B38+B37+B36+B35+B34+B33+B32+B31+B30+SUM(D30:D41),0) -> 0 | O41: =IF(AND($B$16=12,$B$17=6),C41+C40+C39+C38+C37+C36+C35+C34+C33+C32+C31+C30,0) -> 0
B42: 0 | C42: 0 | D42: 0 | F42: 0 | G42: 0 | H42: 0 | I42: 0 | J42: =IF(AND($B$16=4,$B$17=3),B42+B41+B40+B39+D39+D40+D41+D42,0) -> 0 | K42: =IF(AND($B$16=4,$B$17=3),C42+C41+C40+C39,0) -> 0 | L42: =IF(AND($B$16=2,$B$17=1),B41+B42+D41+D42,0) -> 0 | M42: =IF(AND($B$16=2,$B$17=1),C41+C42,0) -> 0 | N42: =IF(AND($B$16=12,$B$17=7),B42+B41+B40+B39+B38+B37+B36+B35+B34+B33+B32+B31+SUM(D31:D42),0) -> 0 | O42: =IF(AND($B$16=12,$B$17=7),C42+C41+C40+C39+C38+C37+C36+C35+C34+C33+C32+C31,0) -> 0
B43: 0 | C43: 0 | D43: 0 | F43: 0 | G43: 0 | H43: 0 | I43: 0 | J43: =IF(AND($B$16=4,$B$17=4),B43+B42+B41+B40+D40+D41+D42+D43,0) -> 0 | K43: =IF(AND($B$16=4,$B$17=4),C43+C42+C41+C40,0) -> 0 | L43: =IF(AND($B$16=2,$B$17=2),B42+B43+D42+D43,0) -> 0 | M43: =IF(AND($B$16=2,$B$17=2),C42+C43,0) -> 0 | N43: =IF(AND($B$16=12,$B$17=8),B43+B42+B41+B40+B39+B38+B37+B36+B35+B34+B33+B32+SUM(D32:D43),0) -> 0 | O43: =IF(AND($B$16=12,$B$17=8),C43+C42+C41+C40+C39+C38+C37+C36+C35+C34+C33+C32,0) -> 0
B44: 0 | C44: 0 | D44: 0 | F44: 0 | G44: 0 | H44: 0 | I44: 0 | J44: =IF(AND($B$16=4,$B$17=1),B44+B43+B42+B41+D41+D42+D43+D44,0) -> 0 | K44: =IF(AND($B$16=4,$B$17=1),C44+C43+C42+C41,0) -> 0 | L44: =IF(AND($B$16=2,$B$17=1),B43+B44+D43+D44,0) -> 0 | M44: =IF(AND($B$16=2,$B$17=1),C43+C44,0) -> 0 | N44: =IF(AND($B$16=12,$B$17=9),B44+B43+B42+B41+B40+B39+B38+B37+B36+B35+B34+B33+SUM(D33:D44),0) -> 0 | O44: =IF(AND($B$16=12,$B$17=9),C44+C43+C42+C41+C40+C39+C38+C37+C36+C35+C34+C33,0) -> 0
B45: 0 | C45: 0 | D45: 0 | F45: 0 | G45: 0 | H45: 0 | I45: 0 | J45: =IF(AND($B$16=4,$B$17=2),B45+B44+B43+B42+D42+D43+D44+D45,0) -> 0 | K45: =IF(AND($B$16=4,$B$17=2),C45+C44+C43+C42,0) -> 0 | L45: =IF(AND($B$16=2,$B$17=2),B44+B45+D44+D45,0) -> 0 | M45: =IF(AND($B$16=2,$B$17=2),C44+C45,0) -> 0 | N45: =IF(AND($B$16=12,$B$17=10),B45+B44+B43+B42+B41+B40+B39+B38+B37+B36+B35+B34+SUM(D34:D45),0) -> 0 | O45: =IF(AND($B$16=12,$B$17=10),C45+C44+C43+C42+C41+C40+C39+C38+C37+C36+C35+C34,0) -> 0
B46: 0 | C46: 0 | D46: 0 | F46: 0 | G46: 0 | H46: 0 | I46: 0 | J46: =IF(AND($B$16=4,$B$17=3),B46+B45+B44+B43+D43+D44+D45+D46,0) -> 0 | K46: =IF(AND($B$16=4,$B$17=3),C46+C45+C44+C43,0) -> 0 | L46: =IF(AND($B$16=2,$B$17=1),B45+B46+D45+D46,0) -> 0 | M46: =IF(AND($B$16=2,$B$17=1),C45+C46,0) -> 0 | N46: =IF(AND($B$16=12,$B$17=11),B46+B45+B44+B43+B42+B41+B40+B39+B38+B37+B36+B35+SUM(D35:D46),0) -> 0 | O46: =IF(AND($B$16=12,$B$17=11),C46+C45+C44+C43+C42+C41+C40+C39+C38+C37+C36+C35,0) -> 0
B47: 0 | C47: 0 | D47: 0 | F47: 0 | G47: 0 | H47: 0 | I47: 0 | J47: =IF(AND($B$16=4,$B$17=4),B47+B46+B45+B44+D44+D45+D46+D47,0) -> 0 | K47: =IF(AND($B$16=4,$B$17=4),C47+C46+C45+C44,0) -> 0 | L47: =IF(AND($B$16=2,$B$17=2),B46+B47+D46+D47,0) -> 0 | M47: =IF(AND($B$16=2,$B$17=2),C46+C47,0) -> 0 | N47: =IF(AND($B$16=12,$B$17=12),B47+B46+B45+B44+B43+B42+B41+B40+B39+B38+B37+B36+SUM(D36:D47),0) -> 0 | O47: =IF(AND($B$16=12,$B$17=12),C47+C46+C45+C44+C43+C42+C41+C40+C39+C38+C37+C36,0) -> 0
B48: 0 | C48: 0 | D48: 0 | F48: 0 | G48: 0 | H48: 0 | I48: 0 | J48: =IF(AND($B$16=4,$B$17=1),B48+D48+B45+B46+B47+D45+D46+D47,0) -> 0 | K48: =IF(AND($B$16=4,$B$17=1),C48+C45+C46+C47,0) -> 0 | L48: =IF(AND($B$17=1,$B$16=2),B48+D48,0) -> 0 | M48: =IF(AND($B$17=1,$B$16=2),C48,0) -> 0 | N48: =IF(AND($B$16=12,$B$17=1),B48+B47+B46+B45+B44+B43+B42+B41+B40+B39+B38+B37+SUM(D37:D48),0) -> 0 | O48: =IF(AND($B$16=12,$B$17=1),C48+C47+C46+C45+C44+C43+C42+C41+C40+C39+C38+C37,0) -> 0
B49: 0 | C49: 0 | D49: 0 | F49: 0 | G49: 0 | H49: 0 | I49: 0 | J49: =IF(AND($B$16=4,$B$17=2),B48+B49+B47+B46+D46+D47+D48+D49,0) -> 0 | K49: =IF(AND($B$16=4,$B$17=2),C46+C47+C48+C49,0) -> 0 | L49: =IF(AND($B$16=2,$B$17=2),B48+B49+D48+D49,0) -> 0 | M49: =IF(AND($B$16=2,$B$17=2),C48+C49,0) -> 0 | N49: =IF(AND($B$16=12,$B$17=2),B49+B48+B47+B46+B45+B44+B43+B42+B41+B40+B39+B38+SUM(D38:D49),0) -> 0 | O49: =IF(AND($B$16=12,$B$17=2),C49+C48+C47+C46+C45+C44+C43+C42+C41+C40+C39+C38,0) -> 0
B50: 0 | C50: 0 | D50: 0 | F50: 0 | G50: 0 | H50: 0 | I50: 0 | J50: =IF(AND($B$16=4,$B$17=3),B47+B48+B49+B50+D47+D48+D49+D50,0) -> 0 | K50: =IF(AND($B$16=4,$B$17=3),C47+C48+C49+C50,0) -> 0 | L50: =IF(AND($B$16=2,$B$17=1),B49+B50+D49+D50,0) -> 0 | M50: =IF(AND($B$16=2,$B$17=1),C49+C50,0) -> 0 | N50: =IF(AND($B$16=12,$B$17=3),B50+B49+B48+B47+B46+B45+B44+B43+B42+B41+B40+B39+SUM(D39:D50),0) -> 0 | O50: =IF(AND($B$16=12,$B$17=3),C50+C49+C48+C47+C46+C45+C44+C43+C42+C41+C40+C39,0) -> 0
B51: 0 | C51: 0 | D51: 0 | F51: 0 | G51: 0 | H51: 0 | I51: 0 | J51: =IF(AND($B$16=4,$B$17=4),B48+B49+B50+B51+D48+D49+D50+D51,0) -> 0 | K51: =IF(AND($B$16=4,$B$17=4),C48+C49+C50+C51,0) -> 0 | L51: =IF(AND($B$16=2,$B$17=2),B50+B51+D50+D51,0) -> 0 | M51: =IF(AND($B$16=2,$B$17=2),C50+C51,0) -> 0 | N51: =IF(AND($B$16=12,$B$17=4),B51+B50+B49+B48+B47+B46+B45+B44+B43+B42+B41+B40+SUM(D40:D51),0) -> 0 | O51: =IF(AND($B$16=12,$B$17=4),C51+C50+C49+C48+C47+C46+C45+C44+C43+C42+C41+C40,0) -> 0
B52: 0 | C52: 0 | D52: 0 | F52: 0 | G52: 0 | H52: 0 | I52: 0 | J52: =IF(AND($B$16=4,$B$17=1),B49+B50+B51+B52+D49+D50+D51+D52,0) -> 0 | K52: =IF(AND($B$16=4,$B$17=1),C49+C50+C51+C52,0) -> 0 | L52: =IF(AND($B$16=2,$B$17=1),B51+B52+D51+D52,0) -> 0 | M52: =IF(AND($B$16=2,$B$17=1),C51+C52,0) -> 0 | N52: =IF(AND($B$16=12,$B$17=5),B52+B51+B50+B49+B48+B47+B46+B45+B44+B43+B42+B41+SUM(D41:D52),0) -> 0 | O52: =IF(AND($B$16=12,$B$17=5),C52+C51+C50+C49+C48+C47+C46+C45+C44+C43+C42+C41,0) -> 0
B53: 0 | C53: 0 | D53: 0 | F53: 0 | G53: 0 | H53: 0 | I53: 0 | J53: =IF(AND($B$16=4,$B$17=2),B50+B51+B52+B53+D53+D52+D51+D50,0) -> 0 | K53: =IF(AND($B$16=4,$B$17=2),C50+C51+C52+C53,0) -> 0 | L53: =IF(AND($B$16=2,$B$17=2),B52+B53+D52+D53,0) -> 0 | M53: =IF(AND($B$16=2,$B$17=2),C52+C53,0) -> 0 | N53: =IF(AND($B$16=12,$B$17=6),B53+B52+B51+B50+B49+B48+B47+B46+B45+B44+B43+B42+SUM(D42:D53),0) -> 0 | O53: =IF(AND($B$16=12,$B$17=6),C53+C52+C51+C50+C49+C48+C47+C46+C45+C44+C43+C42,0) -> 0
B54: 0 | C54: 0 | D54: 0 | F54: 0 | G54: 0 | H54: 0 | I54: 0 | J54: =IF(AND($B$16=4,$B$17=3),B54+B53+B52+B51+D51+D52+D53+D54,0) -> 0 | K54: =IF(AND($B$16=4,$B$17=3),C54+C53+C52+C51,0) -> 0 | L54: =IF(AND($B$16=2,$B$17=1),B53+B54+D53+D54,0) -> 0 | M54: =IF(AND($B$16=2,$B$17=1),C53+C54,0) -> 0 | N54: =IF(AND($B$16=12,$B$17=7),B54+B53+B52+B51+B50+B49+B48+B47+B46+B45+B44+B43+SUM(D43:D54),0) -> 0 | O54: =IF(AND($B$16=12,$B$17=7),C54+C53+C52+C51+C50+C49+C48+C47+C46+C45+C44+C43,0) -> 0
B55: 0 | C55: 0 | D55: 0 | F55: 0 | G55: 0 | H55: 0 | I55: 0 | J55: =IF(AND($B$16=4,$B$17=4),B55+B54+B53+B52+D52+D53+D54+D55,0) -> 0 | K55: =IF(AND($B$16=4,$B$17=4),C55+C54+C53+C52,0) -> 0 | L55: =IF(AND($B$16=2,$B$17=2),B54+B55+D54+D55,0) -> 0 | M55: =IF(AND($B$16=2,$B$17=2),C54+C55,0) -> 0 | N55: =IF(AND($B$16=12,$B$17=8),B55+B54+B53+B52+B51+B50+B49+B48+B47+B46+B45+B44+SUM(D44:D55),0) -> 0 | O55: =IF(AND($B$16=12,$B$17=8),C55+C54+C53+C52+C51+C50+C49+C48+C47+C46+C45+C44,0) -> 0
B56: 0 | C56: 0 | D56: 0 | F56: 0 | G56: =IF($B$16=4,J56,IF($B$16=2,L56,IF($B$16=12,N56,0))) -> 0 | H56: =IF($B$16=4,K56,IF($B$16=2,M56,IF($B$16=12,O56,0))) -> 0 | I56: =G56+H56 -> 0 | J56: =IF(AND($B$16=4,$B$17=1),B56+B55+B54+B53+D53+D54+D55+D56,0) -> 0 | K56: =IF(AND($B$16=4,$B$17=1),C56+C55+C54+C53,0) -> 0 | L56: =IF(AND($B$16=2,$B$17=1),B55+B56+D55+D56,0) -> 0 | M56: =IF(AND($B$16=2,$B$17=1),C55+C56,0) -> 0 | N56: =IF(AND($B$16=12,$B$17=9),B56+B55+B54+B53+B52+B51+B50+B49+B48+B47+B46+B45+SUM(D45:D56),0) -> 0 | O56: =IF(AND($B$16=12,$B$17=9),C56+C55+C54+C53+C52+C51+C50+C49+C48+C47+C46+C45,0) -> 0
B57: =F56*$F$10/100 -> 0 | C57: =IF(AND(F56>0,$B$11="A"),$F$11-B57,IF(AND(F56>0,$B$11="S"),$F$11,0)) -> 0 | D57: =IF(F56<=0,0,$B$12*($B$14/$B$16)/100) -> 0 | E57: =IF(AND(F56>0,$B$11="A"),E56,IF(AND(F56>0,$B$11="S"),B57+C57+D57," ")) ->  | F57: 0 | G57: 0 | H57: 0 | I57: 0 | J57: =IF(AND($B$16=4,$B$17=2),B57+B56+B55+B54+D54+D55+D56+D57,0) -> 0 | K57: =IF(AND($B$16=4,$B$17=2),C57+C56+C55+C54,0) -> 0 | L57: =IF(AND($B$16=2,$B$17=2),B56+B57+D56+D57,0) -> 0 | M57: =IF(AND($B$16=2,$B$17=2),C56+C57,0) -> 0 | N57: =IF(AND($B$16=12,$B$17=10),B57+B56+B55+B54+B53+B52+B51+B50+B49+B48+B47+B46+SUM(D46:D57),0) -> 0 | O57: =IF(AND($B$16=12,$B$17=10),C57+C56+C55+C54+C53+C52+C51+C50+C49+C48+C47+C46,0) -> 0
A58: =IF(F57<=0,"",A57+1) ->  | B58: 0 | C58: 0 | D58: 0 | F58: 0 | G58: 0 | H58: 0 | I58: 0 | J58: =IF(AND($B$16=4,$B$17=3),B58+B57+B56+B55+D55+D56+D57+D58,0) -> 0 | K58: =IF(AND($B$16=4,$B$17=3),C58+C57+C56+C55,0) -> 0 | L58: =IF(AND($B$16=2,$B$17=1),B57+B58+D57+D58,0) -> 0 | M58: =IF(AND($B$16=2,$B$17=1),C57+C58,0) -> 0 | N58: =IF(AND($B$16=12,$B$17=11),B58+B57+B56+B55+B54+B53+B52+B51+B50+B49+B48+B47+SUM(D47:D58),0) -> 0 | O58: =IF(AND($B$16=12,$B$17=11),C58+C57+C56+C55+C54+C53+C52+C51+C50+C49+C48+C47,0) -> 0
B59: 0 | C59: 0 | D59: 0 | F59: 0 | G59: 0 | H59: 0 | I59: 0 | J59: =IF(AND($B$16=4,$B$17=4),B59+B58+B57+B56+D56+D57+D58+D59,0) -> 0 | K59: =IF(AND($B$16=4,$B$17=4),C59+C58+C57+C56,0) -> 0 | L59: =IF(AND($B$16=2,$B$17=2),B58+B59+D58+D59,0) -> 0 | M59: =IF(AND($B$16=2,$B$17=2),C58+C59,0) -> 0 | N59: =IF(AND($B$16=12,$B$17=12),B59+B58+B57+B56+B55+B54+B53+B52+B51+B50+B49+B48+SUM(D48:D59),0) -> 0 | O59: =IF(AND($B$16=12,$B$17=12),C59+C58+C57+C56+C55+C54+C53+C52+C51+C50+C49+C48,0) -> 0
B60: 0 | C60: 0 | D60: 0 | F60: 0 | G60: 0 | H60: 0 | I60: 0 | J60: =IF(AND($B$16=4,$B$17=1),B60+D60+B57+B58+B59+D57+D58+D59,0) -> 0 | K60: =IF(AND($B$16=4,$B$17=1),C60+C57+C58+C59,0) -> 0 | L60: =IF(AND($B$17=1,$B$16=2),B60+D60,0) -> 0 | M60: =IF(AND($B$17=1,$B$16=2),C60,0) -> 0 | N60: =IF(AND($B$16=12,$B$17=1),B60+B59+B58+B57+B56+B55+B54+B53+B52+B51+B50+B49+SUM(D49:D60),0) -> 0 | O60: =IF(AND($B$16=12,$B$17=1),C60+C59+C58+C57+C56+C55+C54+C53+C52+C51+C50+C49,0) -> 0
B61: 0 | C61: 0 | D61: 0 | F61: 0 | G61: 0 | H61: 0 | I61: 0 | J61: =IF(AND($B$16=4,$B$17=2),B60+B61+B59+B58+D58+D59+D60+D61,0) -> 0 | K61: =IF(AND($B$16=4,$B$17=2),C58+C59+C60+C61,0) -> 0 | L61: =IF(AND($B$16=2,$B$17=2),B60+B61+D60+D61,0) -> 0 | M61: =IF(AND($B$16=2,$B$17=2),C60+C61,0) -> 0 | N61: =IF(AND($B$16=12,$B$17=2),B61+B60+B59+B58+B57+B56+B55+B54+B53+B52+B51+B50+SUM(D50:D61),0) -> 0 | O61: =IF(AND($B$16=12,$B$17=2),C61+C60+C59+C58+C57+C56+C55+C54+C53+C52+C51+C50,0) -> 0
B62: 0 | C62: 0 | D62: 0 | F62: 0 | G62: 0 | H62: 0 | I62: 0 | J62: =IF(AND($B$16=4,$B$17=3),B59+B60+B61+B62+D59+D60+D61+D62,0) -> 0 | K62: =IF(AND($B$16=4,$B$17=3),C59+C60+C61+C62,0) -> 0 | L62: =IF(AND($B$16=2,$B$17=1),B61+B62+D61+D62,0) -> 0 | M62: =IF(AND($B$16=2,$B$17=1),C61+C62,0) -> 0 | N62: =IF(AND($B$16=12,$B$17=3),B62+B61+B60+B59+B58+B57+B56+B55+B54+B53+B52+B51+SUM(D51:D62),0) -> 0 | O62: =IF(AND($B$16=12,$B$17=3),C62+C61+C60+C59+C58+C57+C56+C55+C54+C53+C52+C51,0) -> 0
B63: 0 | C63: 0 | D63: 0 | F63: 0 | G63: 0 | H63: 0 | I63: 0 | J63: =IF(AND($B$16=4,$B$17=4),B60+B61+B62+B63+D60+D61+D62+D63,0) -> 0 | K63: =IF(AND($B$16=4,$B$17=4),C60+C61+C62+C63,0) -> 0 | L63: =IF(AND($B$16=2,$B$17=2),B62+B63+D62+D63,0) -> 0 | M63: =IF(AND($B$16=2,$B$17=2),C62+C63,0) -> 0 | N63: =IF(AND($B$16=12,$B$17=4),B63+B62+B61+B60+B59+B58+B57+B56+B55+B54+B53+B52+SUM(D52:D63),0) -> 0 | O63: =IF(AND($B$16=12,$B$17=4),C63+C62+C61+C60+C59+C58+C57+C56+C55+C54+C53+C52,0) -> 0
B64: 0 | C64: 0 | D64: 0 | F64: 0 | G64: 0 | H64: 0 | I64: 0 | J64: =IF(AND($B$16=4,$B$17=1),B61+B62+B63+B64+D61+D62+D63+D64,0) -> 0 | K64: =IF(AND($B$16=4,$B$17=1),C61+C62+C63+C64,0) -> 0 | L64: =IF(AND($B$16=2,$B$17=1),B63+B64+D63+D64,0) -> 0 | M64: =IF(AND($B$16=2,$B$17=1),C63+C64,0) -> 0 | N64: =IF(AND($B$16=12,$B$17=5),B64+B63+B62+B61+B60+B59+B58+B57+B56+B55+B54+B53+SUM(D53:D64),0) -> 0 | O64: =IF(AND($B$16=12,$B$17=5),C64+C63+C62+C61+C60+C59+C58+C57+C56+C55+C54+C53,0) -> 0
B65: 0 | C65: 0 | D65: 0 | F65: 0 | G65: 0 | H65: 0 | I65: 0 | J65: =IF(AND($B$16=4,$B$17=2),B62+B63+B64+B65+D65+D64+D63+D62,0) -> 0 | K65: =IF(AND($B$16=4,$B$17=2),C62+C63+C64+C65,0) -> 0 | L65: =IF(AND($B$16=2,$B$17=2),B64+B65+D64+D65,0) -> 0 | M65: =IF(AND($B$16=2,$B$17=2),C64+C65,0) -> 0 | N65: =IF(AND($B$16=12,$B$17=6),B65+B64+B63+B62+B61+B60+B59+B58+B57+B56+B55+B54+SUM(D54:D65),0) -> 0 | O65: =IF(AND($B$16=12,$B$17=6),C65+C64+C63+C62+C61+C60+C59+C58+C57+C56+C55+C54,0) -> 0
B66: 0 | C66: 0 | D66: 0 | F66: 0 | G66: 0 | H66: 0 | I66: 0 | J66: =IF(AND($B$16=4,$B$17=3),B66+B65+B64+B63+D63+D64+D65+D66,0) -> 0 | K66: =IF(AND($B$16=4,$B$17=3),C66+C65+C64+C63,0) -> 0 | L66: =IF(AND($B$16=2,$B$17=1),B65+B66+D65+D66,0) -> 0 | M66: =IF(AND($B$16=2,$B$17=1),C65+C66,0) -> 0 | N66: =IF(AND($B$16=12,$B$17=7),B66+B65+B64+B63+B62+B61+B60+B59+B58+B57+B56+B55+SUM(D55:D66),0) -> 0 | O66: =IF(AND($B$16=12,$B$17=7),C66+C65+C64+C63+C62+C61+C60+C59+C58+C57+C56+C55,0) -> 0
B67: 0 | C67: 0 | D67: 0 | F67: =IF(ROUND((F66-C67),)<=0,0,F66-C67) -> 0 | G67: 0 | H67: 0 | I67: 0 | J67: =IF(AND($B$16=4,$B$17=4),B67+B66+B65+B64+D64+D65+D66+D67,0) -> 0 | K67: =IF(AND($B$16=4,$B$17=4),C67+C66+C65+C64,0) -> 0 | L67: =IF(AND($B$16=2,$B$17=2),B66+B67+D66+D67,0) -> 0 | M67: =IF(AND($B$16=2,$B$17=2),C66+C67,0) -> 0 | N67: =IF(AND($B$16=12,$B$17=8),B67+B66+B65+B64+B63+B62+B61+B60+B59+B58+B57+B56+SUM(D56:D67),0) -> 0 | O67: =IF(AND($B$16=12,$B$17=8),C67+C66+C65+C64+C63+C62+C61+C60+C59+C58+C57+C56,0) -> 0
B68: 0 | C68: 0 | D68: 0 | F68: 0 | G68: 0 | H68: 0 | I68: 0 | J68: =IF(AND($B$16=4,$B$17=1),B68+B67+B66+B65+D65+D66+D67+D68,0) -> 0 | K68: =IF(AND($B$16=4,$B$17=1),C68+C67+C66+C65,0) -> 0 | L68: =IF(AND($B$16=2,$B$17=1),B67+B68+D67+D68,0) -> 0 | M68: =IF(AND($B$16=2,$B$17=1),C67+C68,0) -> 0 | N68: =IF(AND($B$16=12,$B$17=9),B68+B67+B66+B65+B64+B63+B62+B61+B60+B59+B58+B57+SUM(D57:D68),0) -> 0 | O68: =IF(AND($B$16=12,$B$17=9),C68+C67+C66+C65+C64+C63+C62+C61+C60+C59+C58+C57,0) -> 0
B69: 0 | C69: 0 | D69: 0 | F69: 0 | G69: 0 | H69: 0 | I69: 0 | J69: =IF(AND($B$16=4,$B$17=2),B69+B68+B67+B66+D66+D67+D68+D69,0) -> 0 | K69: =IF(AND($B$16=4,$B$17=2),C69+C68+C67+C66,0) -> 0 | L69: =IF(AND($B$16=2,$B$17=2),B68+B69+D68+D69,0) -> 0 | M69: =IF(AND($B$16=2,$B$17=2),C68+C69,0) -> 0 | N69: =IF(AND($B$16=12,$B$17=10),B69+B68+B67+B66+B65+B64+B63+B62+B61+B60+B59+B58+SUM(D58:D69),0) -> 0 | O69: =IF(AND($B$16=12,$B$17=10),C69+C68+C67+C66+C65+C64+C63+C62+C61+C60+C59+C58,0) -> 0
B70: 0 | C70: 0 | D70: 0 | F70: 0 | G70: 0 | H70: 0 | I70: 0 | J70: =IF(AND($B$16=4,$B$17=3),B70+B69+B68+B67+D67+D68+D69+D70,0) -> 0 | K70: =IF(AND($B$16=4,$B$17=3),C70+C69+C68+C67,0) -> 0 | L70: =IF(AND($B$16=2,$B$17=1),B69+B70+D69+D70,0) -> 0 | M70: =IF(AND($B$16=2,$B$17=1),C69+C70,0) -> 0 | N70: =IF(AND($B$16=12,$B$17=11),B70+B69+B68+B67+B66+B65+B64+B63+B62+B61+B60+B59+SUM(D59:D70),0) -> 0 | O70: =IF(AND($B$16=12,$B$17=11),C70+C69+C68+C67+C66+C65+C64+C63+C62+C61+C60+C59,0) -> 0
B71: 0 | C71: 0 | D71: 0 | F71: 0 | G71: 0 | H71: 0 | I71: 0 | J71: =IF(AND($B$16=4,$B$17=4),B71+B70+B69+B68+D68+D69+D70+D71,0) -> 0 | K71: =IF(AND($B$16=4,$B$17=4),C71+C70+C69+C68,0) -> 0 | L71: =IF(AND($B$16=2,$B$17=2),B70+B71+D70+D71,0) -> 0 | M71: =IF(AND($B$16=2,$B$17=2),C70+C71,0) -> 0 | N71: =IF(AND($B$16=12,$B$17=12),B71+B70+B69+B68+B67+B66+B65+B64+B63+B62+B61+B60+SUM(D60:D71),0) -> 0 | O71: =IF(AND($B$16=12,$B$17=12),C71+C70+C69+C68+C67+C66+C65+C64+C63+C62+C61+C60,0) -> 0
B72: 0 | C72: 0 | D72: 0 | F72: 0 | G72: 0 | H72: 0 | I72: 0 | J72: =IF(AND($B$16=4,$B$17=1),B72+D72+B69+B70+B71+D69+D70+D71,0) -> 0 | K72: =IF(AND($B$16=4,$B$17=1),C72+C69+C70+C71,0) -> 0 | L72: =IF(AND($B$17=1,$B$16=2),B72+D72,0) -> 0 | M72: =IF(AND($B$17=1,$B$16=2),C72,0) -> 0 | N72: =IF(AND($B$16=12,$B$17=1),B72+B71+B70+B69+B68+B67+B66+B65+B64+B63+B62+B61+SUM(D61:D72),0) -> 0 | O72: =IF(AND($B$16=12,$B$17=1),C72+C71+C70+C69+C68+C67+C66+C65+C64+C63+C62+C61,0) -> 0
B73: 0 | C73: 0 | D73: 0 | F73: 0 | G73: 0 | H73: 0 | I73: 0 | J73: =IF(AND($B$16=4,$B$17=2),B72+B73+B71+B70+D70+D71+D72+D73,0) -> 0 | K73: =IF(AND($B$16=4,$B$17=2),C70+C71+C72+C73,0) -> 0 | L73: =IF(AND($B$16=2,$B$17=2),B72+B73+D72+D73,0) -> 0 | M73: =IF(AND($B$16=2,$B$17=2),C72+C73,0) -> 0 | N73: =IF(AND($B$16=12,$B$17=2),B73+B72+B71+B70+B69+B68+B67+B66+B65+B64+B63+B62+SUM(D62:D73),0) -> 0 | O73: =IF(AND($B$16=12,$B$17=2),C73+C72+C71+C70+C69+C68+C67+C66+C65+C64+C63+C62,0) -> 0
B74: 0 | C74: 0 | D74: 0 | F74: 0 | G74: 0 | H74: 0 | I74: 0 | J74: =IF(AND($B$16=4,$B$17=3),B71+B72+B73+B74+D71+D72+D73+D74,0) -> 0 | K74: =IF(AND($B$16=4,$B$17=3),C71+C72+C73+C74,0) -> 0 | L74: =IF(AND($B$16=2,$B$17=1),B73+B74+D73+D74,0) -> 0 | M74: =IF(AND($B$16=2,$B$17=1),C73+C74,0) -> 0 | N74: =IF(AND($B$16=12,$B$17=3),B74+B73+B72+B71+B70+B69+B68+B67+B66+B65+B64+B63+SUM(D63:D74),0) -> 0 | O74: =IF(AND($B$16=12,$B$17=3),C74+C73+C72+C71+C70+C69+C68+C67+C66+C65+C64+C63,0) -> 0
B75: 0 | C75: 0 | D75: 0 | F75: 0 | G75: 0 | H75: 0 | I75: 0 | J75: =IF(AND($B$16=4,$B$17=4),B72+B73+B74+B75+D72+D73+D74+D75,0) -> 0 | K75: =IF(AND($B$16=4,$B$17=4),C72+C73+C74+C75,0) -> 0 | L75: =IF(AND($B$16=2,$B$17=2),B74+B75+D74+D75,0) -> 0 | M75: =IF(AND($B$16=2,$B$17=2),C74+C75,0) -> 0 | N75: =IF(AND($B$16=12,$B$17=4),B75+B74+B73+B72+B71+B70+B69+B68+B67+B66+B65+B64+SUM(D64:D75),0) -> 0 | O75: =IF(AND($B$16=12,$B$17=4),C75+C74+C73+C72+C71+C70+C69+C68+C67+C66+C65+C64,0) -> 0
B76: 0 | C76: 0 | D76: 0 | F76: 0 | G76: 0 | H76: 0 | I76: 0 | J76: =IF(AND($B$16=4,$B$17=1),B73+B74+B75+B76+D73+D74+D75+D76,0) -> 0 | K76: =IF(AND($B$16=4,$B$17=1),C73+C74+C75+C76,0) -> 0 | L76: =IF(AND($B$16=2,$B$17=1),B75+B76+D75+D76,0) -> 0 | M76: =IF(AND($B$16=2,$B$17=1),C75+C76,0) -> 0 | N76: =IF(AND($B$16=12,$B$17=5),B76+B75+B74+B73+B72+B71+B70+B69+B68+B67+B66+B65+SUM(D65:D76),0) -> 0 | O76: =IF(AND($B$16=12,$B$17=5),C76+C75+C74+C73+C72+C71+C70+C69+C68+C67+C66+C65,0) -> 0
B77: 0 | C77: 0 | D77: 0 | F77: 0 | G77: 0 | H77: 0 | I77: 0 | J77: =IF(AND($B$16=4,$B$17=2),B74+B75+B76+B77+D77+D76+D75+D74,0) -> 0 | K77: =IF(AND($B$16=4,$B$17=2),C74+C75+C76+C77,0) -> 0 | L77: =IF(AND($B$16=2,$B$17=2),B76+B77+D76+D77,0) -> 0 | M77: =IF(AND($B$16=2,$B$17=2),C76+C77,0) -> 0 | N77: =IF(AND($B$16=12,$B$17=6),B77+B76+B75+B74+B73+B72+B71+B70+B69+B68+B67+B66+SUM(D66:D77),0) -> 0 | O77: =IF(AND($B$16=12,$B$17=6),C77+C76+C75+C74+C73+C72+C71+C70+C69+C68+C67+C66,0) -> 0
B78: 0 | C78: 0 | D78: 0 | F78: 0 | G78: 0 | H78: 0 | I78: 0 | J78: =IF(AND($B$16=4,$B$17=3),B78+B77+B76+B75+D75+D76+D77+D78,0) -> 0 | K78: =IF(AND($B$16=4,$B$17=3),C78+C77+C76+C75,0) -> 0 | L78: =IF(AND($B$16=2,$B$17=1),B77+B78+D77+D78,0) -> 0 | M78: =IF(AND($B$16=2,$B$17=1),C77+C78,0) -> 0 | N78: =IF(AND($B$16=12,$B$17=7),B78+B77+B76+B75+B74+B73+B72+B71+B70+B69+B68+B67+SUM(D67:D78),0) -> 0 | O78: =IF(AND($B$16=12,$B$17=7),C78+C77+C76+C75+C74+C73+C72+C71+C70+C69+C68+C67,0) -> 0
B79: 0 | C79: 0 | D79: 0 | F79: 0 | G79: 0 | H79: 0 | I79: 0 | J79: =IF(AND($B$16=4,$B$17=4),B79+B78+B77+B76+D76+D77+D78+D79,0) -> 0 | K79: =IF(AND($B$16=4,$B$17=4),C79+C78+C77+C76,0) -> 0 | L79: =IF(AND($B$16=2,$B$17=2),B78+B79+D78+D79,0) -> 0 | M79: =IF(AND($B$16=2,$B$17=2),C78+C79,0) -> 0 | N79: =IF(AND($B$16=12,$B$17=8),B79+B78+B77+B76+B75+B74+B73+B72+B71+B70+B69+B68+SUM(D68:D79),0) -> 0 | O79: =IF(AND($B$16=12,$B$17=8),C79+C78+C77+C76+C75+C74+C73+C72+C71+C70+C69+C68,0) -> 0
B80: 0 | C80: 0 | D80: 0 | F80: 0 | G80: 0 | H80: 0 | I80: 0 | J80: =IF(AND($B$16=4,$B$17=1),B80+B79+B78+B77+D77+D78+D79+D80,0) -> 0 | K80: =IF(AND($B$16=4,$B$17=1),C80+C79+C78+C77,0) -> 0 | L80: =IF(AND($B$16=2,$B$17=1),B79+B80+D79+D80,0) -> 0 | M80: =IF(AND($B$16=2,$B$17=1),C79+C80,0) -> 0 | N80: =IF(AND($B$16=12,$B$17=9),B80+B79+B78+B77+B76+B75+B74+B73+B72+B71+B70+B69+SUM(D69:D80),0) -> 0 | O80: =IF(AND($B$16=12,$B$17=9),C80+C79+C78+C77+C76+C75+C74+C73+C72+C71+C70+C69,0) -> 0
B81: 0 | C81: 0 | D81: 0 | F81: 0 | G81: 0 | H81: 0 | I81: 0 | J81: =IF(AND($B$16=4,$B$17=2),B81+B80+B79+B78+D78+D79+D80+D81,0) -> 0 | K81: =IF(AND($B$16=4,$B$17=2),C81+C80+C79+C78,0) -> 0 | L81: =IF(AND($B$16=2,$B$17=2),B80+B81+D80+D81,0) -> 0 | M81: =IF(AND($B$16=2,$B$17=2),C80+C81,0) -> 0 | N81: =IF(AND($B$16=12,$B$17=10),B81+B80+B79+B78+B77+B76+B75+B74+B73+B72+B71+B70+SUM(D70:D81),0) -> 0 | O81: =IF(AND($B$16=12,$B$17=10),C81+C80+C79+C78+C77+C76+C75+C74+C73+C72+C71+C70,0) -> 0
B82: 0 | C82: 0 | D82: 0 | F82: 0 | G82: 0 | H82: 0 | I82: 0 | J82: =IF(AND($B$16=4,$B$17=3),B82+B81+B80+B79+D79+D80+D81+D82,0) -> 0 | K82: =IF(AND($B$16=4,$B$17=3),C82+C81+C80+C79,0) -> 0 | L82: =IF(AND($B$16=2,$B$17=1),B81+B82+D81+D82,0) -> 0 | M82: =IF(AND($B$16=2,$B$17=1),C81+C82,0) -> 0 | N82: =IF(AND($B$16=12,$B$17=11),B82+B81+B80+B79+B78+B77+B76+B75+B74+B73+B72+B71+SUM(D71:D82),0) -> 0 | O82: =IF(AND($B$16=12,$B$17=11),C82+C81+C80+C79+C78+C77+C76+C75+C74+C73+C72+C71,0) -> 0
B83: 0 | C83: 0 | D83: 0 | F83: 0 | G83: 0 | H83: 0 | I83: 0 | J83: =IF(AND($B$16=4,$B$17=4),B83+B82+B81+B80+D80+D81+D82+D83,0) -> 0 | K83: =IF(AND($B$16=4,$B$17=4),C83+C82+C81+C80,0) -> 0 | L83: =IF(AND($B$16=2,$B$17=2),B82+B83+D82+D83,0) -> 0 | M83: =IF(AND($B$16=2,$B$17=2),C82+C83,0) -> 0 | N83: =IF(AND($B$16=12,$B$17=12),B83+B82+B81+B80+B79+B78+B77+B76+B75+B74+B73+B72+SUM(D72:D83),0) -> 0 | O83: =IF(AND($B$16=12,$B$17=12),C83+C82+C81+C80+C79+C78+C77+C76+C75+C74+C73+C72,0) -> 0
B84: 0 | C84: 0 | D84: 0 | F84: 0 | G84: 0 | H84: 0 | I84: 0 | J84: =IF(AND($B$16=4,$B$17=1),B84+D84+B81+B82+B83+D81+D82+D83,0) -> 0 | K84: =IF(AND($B$16=4,$B$17=1),C84+C81+C82+C83,0) -> 0 | L84: =IF(AND($B$17=1,$B$16=2),B84+D84,0) -> 0 | M84: =IF(AND($B$17=1,$B$16=2),C84,0) -> 0 | N84: =IF(AND($B$16=12,$B$17=1),B84+B83+B82+B81+B80+B79+B78+B77+B76+B75+B74+B73+SUM(D73:D84),0) -> 0 | O84: =IF(AND($B$16=12,$B$17=1),C84+C83+C82+C81+C80+C79+C78+C77+C76+C75+C74+C73,0) -> 0
B85: 0 | C85: 0 | D85: 0 | F85: 0 | G85: 0 | H85: 0 | I85: 0 | J85: =IF(AND($B$16=4,$B$17=2),B84+B85+B83+B82+D82+D83+D84+D85,0) -> 0 | K85: =IF(AND($B$16=4,$B$17=2),C82+C83+C84+C85,0) -> 0 | L85: =IF(AND($B$16=2,$B$17=2),B84+B85+D84+D85,0) -> 0 | M85: =IF(AND($B$16=2,$B$17=2),C84+C85,0) -> 0 | N85: =IF(AND($B$16=12,$B$17=2),B85+B84+B83+B82+B81+B80+B79+B78+B77+B76+B75+B74+SUM(D74:D85),0) -> 0 | O85: =IF(AND($B$16=12,$B$17=2),C85+C84+C83+C82+C81+C80+C79+C78+C77+C76+C75+C74,0) -> 0
B86: 0 | C86: 0 | D86: 0 | F86: 0 | G86: 0 | H86: 0 | I86: 0 | J86: =IF(AND($B$16=4,$B$17=3),B83+B84+B85+B86+D83+D84+D85+D86,0) -> 0 | K86: =IF(AND($B$16=4,$B$17=3),C83+C84+C85+C86,0) -> 0 | L86: =IF(AND($B$16=2,$B$17=1),B85+B86+D85+D86,0) -> 0 | M86: =IF(AND($B$16=2,$B$17=1),C85+C86,0) -> 0 | N86: =IF(AND($B$16=12,$B$17=3),B86+B85+B84+B83+B82+B81+B80+B79+B78+B77+B76+B75+SUM(D75:D86),0) -> 0 | O86: =IF(AND($B$16=12,$B$17=3),C86+C85+C84+C83+C82+C81+C80+C79+C78+C77+C76+C75,0) -> 0
B87: 0 | C87: 0 | D87: 0 | F87: 0 | G87: 0 | H87: 0 | I87: 0 | J87: =IF(AND($B$16=4,$B$17=4),B84+B85+B86+B87+D84+D85+D86+D87,0) -> 0 | K87: =IF(AND($B$16=4,$B$17=4),C84+C85+C86+C87,0) -> 0 | L87: =IF(AND($B$16=2,$B$17=2),B86+B87+D86+D87,0) -> 0 | M87: =IF(AND($B$16=2,$B$17=2),C86+C87,0) -> 0 | N87: =IF(AND($B$16=12,$B$17=4),B87+B86+B85+B84+B83+B82+B81+B80+B79+B78+B77+B76+SUM(D76:D87),0) -> 0 | O87: =IF(AND($B$16=12,$B$17=4),C87+C86+C85+C84+C83+C82+C81+C80+C79+C78+C77+C76,0) -> 0
B88: 0 | C88: 0 | D88: 0 | F88: 0 | G88: =IF($B$16=4,J88,IF($B$16=2,L88,IF($B$16=12,N88,0))) -> 0 | H88: =IF($B$16=4,K88,IF($B$16=2,M88,IF($B$16=12,O88,0))) -> 0 | I88: =G88+H88 -> 0 | J88: =IF(AND($B$16=4,$B$17=1),B85+B86+B87+B88+D85+D86+D87+D88,0) -> 0 | K88: =IF(AND($B$16=4,$B$17=1),C85+C86+C87+C88,0) -> 0 | L88: =IF(AND($B$16=2,$B$17=1),B87+B88+D87+D88,0) -> 0 | M88: =IF(AND($B$16=2,$B$17=1),C87+C88,0) -> 0 | N88: =IF(AND($B$16=12,$B$17=5),B88+B87+B86+B85+B84+B83+B82+B81+B80+B79+B78+B77+SUM(D77:D88),0) -> 0 | O88: =IF(AND($B$16=12,$B$17=5),C88+C87+C86+C85+C84+C83+C82+C81+C80+C79+C78+C77,0) -> 0
B89: =F88*$F$10/100 -> 0 | C89: =IF(AND(F88>0,$B$11="A"),$F$11-B89,IF(AND(F88>0,$B$11="S"),$F$11,0)) -> 0 | D89: =IF(F88<=0,0,$B$12*($B$14/$B$16)/100) -> 0 | E89: =IF(AND(F88>0,$B$11="A"),E88,IF(AND(F88>0,$B$11="S"),B89+C89+D89," ")) ->  | F89: 0 | G89: 0 | H89: 0 | I89: 0 | J89: =IF(AND($B$16=4,$B$17=2),B86+B87+B88+B89+D89+D88+D87+D86,0) -> 0 | K89: =IF(AND($B$16=4,$B$17=2),C86+C87+C88+C89,0) -> 0 | L89: =IF(AND($B$16=2,$B$17=2),B88+B89+D88+D89,0) -> 0 | M89: =IF(AND($B$16=2,$B$17=2),C88+C89,0) -> 0 | N89: =IF(AND($B$16=12,$B$17=6),B89+B88+B87+B86+B85+B84+B83+B82+B81+B80+B79+B78+SUM(D78:D89),0) -> 0 | O89: =IF(AND($B$16=12,$B$17=6),C89+C88+C87+C86+C85+C84+C83+C82+C81+C80+C79+C78,0) -> 0
A90: =IF(F89<=0,"",A89+1) ->  | B90: 0 | C90: 0 | D90: 0 | F90: 0 | G90: 0 | H90: 0 | I90: 0 | J90: =IF(AND($B$16=4,$B$17=3),B90+B89+B88+B87+D87+D88+D89+D90,0) -> 0 | K90: =IF(AND($B$16=4,$B$17=3),C90+C89+C88+C87,0) -> 0 | L90: =IF(AND($B$16=2,$B$17=1),B89+B90+D89+D90,0) -> 0 | M90: =IF(AND($B$16=2,$B$17=1),C89+C90,0) -> 0 | N90: =IF(AND($B$16=12,$B$17=7),B90+B89+B88+B87+B86+B85+B84+B83+B82+B81+B80+B79+SUM(D79:D90),0) -> 0 | O90: =IF(AND($B$16=12,$B$17=7),C90+C89+C88+C87+C86+C85+C84+C83+C82+C81+C80+C79,0) -> 0
B91: 0 | C91: 0 | D91: 0 | F91: 0 | G91: 0 | H91: 0 | I91: 0 | J91: =IF(AND($B$16=4,$B$17=4),B91+B90+B89+B88+D88+D89+D90+D91,0) -> 0 | K91: =IF(AND($B$16=4,$B$17=4),C91+C90+C89+C88,0) -> 0 | L91: =IF(AND($B$16=2,$B$17=2),B90+B91+D90+D91,0) -> 0 | M91: =IF(AND($B$16=2,$B$17=2),C90+C91,0) -> 0 | N91: =IF(AND($B$16=12,$B$17=8),B91+B90+B89+B88+B87+B86+B85+B84+B83+B82+B81+B80+SUM(D80:D91),0) -> 0 | O91: =IF(AND($B$16=12,$B$17=8),C91+C90+C89+C88+C87+C86+C85+C84+C83+C82+C81+C80,0) -> 0
B92: 0 | C92: 0 | D92: 0 | F92: 0 | G92: 0 | H92: 0 | I92: 0 | J92: =IF(AND($B$16=4,$B$17=1),B92+B91+B90+B89+D89+D90+D91+D92,0) -> 0 | K92: =IF(AND($B$16=4,$B$17=1),C92+C91+C90+C89,0) -> 0 | L92: =IF(AND($B$16=2,$B$17=1),B91+B92+D91+D92,0) -> 0 | M92: =IF(AND($B$16=2,$B$17=1),C91+C92,0) -> 0 | N92: =IF(AND($B$16=12,$B$17=9),B92+B91+B90+B89+B88+B87+B86+B85+B84+B83+B82+B81+SUM(D81:D92),0) -> 0 | O92: =IF(AND($B$16=12,$B$17=9),C92+C91+C90+C89+C88+C87+C86+C85+C84+C83+C82+C81,0) -> 0
B93: 0 | C93: 0 | D93: 0 | F93: 0 | G93: 0 | H93: 0 | I93: 0 | J93: =IF(AND($B$16=4,$B$17=2),B93+B92+B91+B90+D90+D91+D92+D93,0) -> 0 | K93: =IF(AND($B$16=4,$B$17=2),C93+C92+C91+C90,0) -> 0 | L93: =IF(AND($B$16=2,$B$17=2),B92+B93+D92+D93,0) -> 0 | M93: =IF(AND($B$16=2,$B$17=2),C92+C93,0) -> 0 | N93: =IF(AND($B$16=12,$B$17=10),B93+B92+B91+B90+B89+B88+B87+B86+B85+B84+B83+B82+SUM(D82:D93),0) -> 0 | O93: =IF(AND($B$16=12,$B$17=10),C93+C92+C91+C90+C89+C88+C87+C86+C85+C84+C83+C82,0) -> 0
B94: 0 | C94: 0 | D94: 0 | F94: 0 | G94: 0 | H94: 0 | I94: 0 | J94: =IF(AND($B$16=4,$B$17=3),B94+B93+B92+B91+D91+D92+D93+D94,0) -> 0 | K94: =IF(AND($B$16=4,$B$17=3),C94+C93+C92+C91,0) -> 0 | L94: =IF(AND($B$16=2,$B$17=1),B93+B94+D93+D94,0) -> 0 | M94: =IF(AND($B$16=2,$B$17=1),C93+C94,0) -> 0 | N94: =IF(AND($B$16=12,$B$17=11),B94+B93+B92+B91+B90+B89+B88+B87+B86+B85+B84+B83+SUM(D83:D94),0) -> 0 | O94: =IF(AND($B$16=12,$B$17=11),C94+C93+C92+C91+C90+C89+C88+C87+C86+C85+C84+C83,0) -> 0
B95: 0 | C95: 0 | D95: 0 | F95: 0 | G95: 0 | H95: 0 | I95: 0 | J95: =IF(AND($B$16=4,$B$17=4),B95+B94+B93+B92+D92+D93+D94+D95,0) -> 0 | K95: =IF(AND($B$16=4,$B$17=4),C95+C94+C93+C92,0) -> 0 | L95: =IF(AND($B$16=2,$B$17=2),B94+B95+D94+D95,0) -> 0 | M95: =IF(AND($B$16=2,$B$17=2),C94+C95,0) -> 0 | N95: =IF(AND($B$16=12,$B$17=12),B95+B94+B93+B92+B91+B90+B89+B88+B87+B86+B85+B84+SUM(D84:D95),0) -> 0 | O95: =IF(AND($B$16=12,$B$17=12),C95+C94+C93+C92+C91+C90+C89+C88+C87+C86+C85+C84,0) -> 0
B96: 0 | C96: 0 | D96: 0 | F96: 0 | G96: 0 | H96: 0 | I96: 0 | J96: =IF(AND($B$16=4,$B$17=1),B96+D96+B93+B94+B95+D93+D94+D95,0) -> 0 | K96: =IF(AND($B$16=4,$B$17=1),C96+C93+C94+C95,0) -> 0 | L96: =IF(AND($B$17=1,$B$16=2),B96+D96,0) -> 0 | M96: =IF(AND($B$17=1,$B$16=2),C96,0) -> 0 | N96: =IF(AND($B$16=12,$B$17=1),B96+B95+B94+B93+B92+B91+B90+B89+B88+B87+B86+B85+SUM(D85:D96),0) -> 0 | O96: =IF(AND($B$16=12,$B$17=1),C96+C95+C94+C93+C92+C91+C90+C89+C88+C87+C86+C85,0) -> 0
B97: 0 | C97: 0 | D97: 0 | F97: 0 | G97: 0 | H97: 0 | I97: 0 | J97: =IF(AND($B$16=4,$B$17=2),B96+B97+B95+B94+D94+D95+D96+D97,0) -> 0 | K97: =IF(AND($B$16=4,$B$17=2),C94+C95+C96+C97,0) -> 0 | L97: =IF(AND($B$16=2,$B$17=2),B96+B97+D96+D97,0) -> 0 | M97: =IF(AND($B$16=2,$B$17=2),C96+C97,0) -> 0 | N97: =IF(AND($B$16=12,$B$17=2),B97+B96+B95+B94+B93+B92+B91+B90+B89+B88+B87+B86+SUM(D86:D97),0) -> 0 | O97: =IF(AND($B$16=12,$B$17=2),C97+C96+C95+C94+C93+C92+C91+C90+C89+C88+C87+C86,0) -> 0
B98: 0 | C98: 0 | D98: 0 | F98: 0 | G98: 0 | H98: 0 | I98: 0 | J98: =IF(AND($B$16=4,$B$17=3),B95+B96+B97+B98+D95+D96+D97+D98,0) -> 0 | K98: =IF(AND($B$16=4,$B$17=3),C95+C96+C97+C98,0) -> 0 | L98: =IF(AND($B$16=2,$B$17=1),B97+B98+D97+D98,0) -> 0 | M98: =IF(AND($B$16=2,$B$17=1),C97+C98,0) -> 0 | N98: =IF(AND($B$16=12,$B$17=3),B98+B97+B96+B95+B94+B93+B92+B91+B90+B89+B88+B87+SUM(D87:D98),0) -> 0 | O98: =IF(AND($B$16=12,$B$17=3),C98+C97+C96+C95+C94+C93+C92+C91+C90+C89+C88+C87,0) -> 0
B99: 0 | C99: 0 | D99: 0 | F99: =IF(ROUND((F98-C99),)<=0,0,F98-C99) -> 0 | G99: 0 | H99: 0 | I99: 0 | J99: =IF(AND($B$16=4,$B$17=4),B96+B97+B98+B99+D96+D97+D98+D99,0) -> 0 | K99: =IF(AND($B$16=4,$B$17=4),C96+C97+C98+C99,0) -> 0 | L99: =IF(AND($B$16=2,$B$17=2),B98+B99+D98+D99,0) -> 0 | M99: =IF(AND($B$16=2,$B$17=2),C98+C99,0) -> 0 | N99: =IF(AND($B$16=12,$B$17=4),B99+B98+B97+B96+B95+B94+B93+B92+B91+B90+B89+B88+SUM(D88:D99),0) -> 0 | O99: =IF(AND($B$16=12,$B$17=4),C99+C98+C97+C96+C95+C94+C93+C92+C91+C90+C89+C88,0) -> 0
B100: 0 | C100: 0 | D100: 0 | F100: 0 | G100: 0 | H100: 0 | I100: 0 | J100: =IF(AND($B$16=4,$B$17=1),B97+B98+B99+B100+D97+D98+D99+D100,0) -> 0 | K100: =IF(AND($B$16=4,$B$17=1),C97+C98+C99+C100,0) -> 0 | L100: =IF(AND($B$16=2,$B$17=1),B99+B100+D99+D100,0) -> 0 | M100: =IF(AND($B$16=2,$B$17=1),C99+C100,0) -> 0 | N100: =IF(AND($B$16=12,$B$17=5),B100+B99+B98+B97+B96+B95+B94+B93+B92+B91+B90+B89+SUM(D89:D100),0) -> 0 | O100: =IF(AND($B$16=12,$B$17=5),C100+C99+C98+C97+C96+C95+C94+C93+C92+C91+C90+C89,0) -> 0
B101: 0 | C101: 0 | D101: 0 | F101: 0 | G101: 0 | H101: 0 | I101: 0 | J101: =IF(AND($B$16=4,$B$17=2),B98+B99+B100+B101+D101+D100+D99+D98,0) -> 0 | K101: =IF(AND($B$16=4,$B$17=2),C98+C99+C100+C101,0) -> 0 | L101: =IF(AND($B$16=2,$B$17=2),B100+B101+D100+D101,0) -> 0 | M101: =IF(AND($B$16=2,$B$17=2),C100+C101,0) -> 0 | N101: =IF(AND($B$16=12,$B$17=6),B101+B100+B99+B98+B97+B96+B95+B94+B93+B92+B91+B90+SUM(D90:D101),0) -> 0 | O101: =IF(AND($B$16=12,$B$17=6),C101+C100+C99+C98+C97+C96+C95+C94+C93+C92+C91+C90,0) -> 0
B102: 0 | C102: 0 | D102: 0 | F102: 0 | G102: 0 | H102: 0 | I102: 0 | J102: =IF(AND($B$16=4,$B$17=3),B102+B101+B100+B99+D99+D100+D101+D102,0) -> 0 | K102: =IF(AND($B$16=4,$B$17=3),C102+C101+C100+C99,0) -> 0 | L102: =IF(AND($B$16=2,$B$17=1),B101+B102+D101+D102,0) -> 0 | M102: =IF(AND($B$16=2,$B$17=1),C101+C102,0) -> 0 | N102: =IF(AND($B$16=12,$B$17=7),B102+B101+B100+B99+B98+B97+B96+B95+B94+B93+B92+B91+SUM(D91:D102),0) -> 0 | O102: =IF(AND($B$16=12,$B$17=7),C102+C101+C100+C99+C98+C97+C96+C95+C94+C93+C92+C91,0) -> 0
B103: 0 | C103: 0 | D103: 0 | F103: 0 | G103: 0 | H103: 0 | I103: 0 | J103: =IF(AND($B$16=4,$B$17=4),B103+B102+B101+B100+D100+D101+D102+D103,0) -> 0 | K103: =IF(AND($B$16=4,$B$17=4),C103+C102+C101+C100,0) -> 0 | L103: =IF(AND($B$16=2,$B$17=2),B102+B103+D102+D103,0) -> 0 | M103: =IF(AND($B$16=2,$B$17=2),C102+C103,0) -> 0 | N103: =IF(AND($B$16=12,$B$17=8),B103+B102+B101+B100+B99+B98+B97+B96+B95+B94+B93+B92+SUM(D92:D103),0) -> 0 | O103: =IF(AND($B$16=12,$B$17=8),C103+C102+C101+C100+C99+C98+C97+C96+C95+C94+C93+C92,0) -> 0
B104: 0 | C104: 0 | D104: 0 | F104: 0 | G104: 0 | H104: 0 | I104: 0 | J104: =IF(AND($B$16=4,$B$17=1),B104+B103+B102+B101+D101+D102+D103+D104,0) -> 0 | K104: =IF(AND($B$16=4,$B$17=1),C104+C103+C102+C101,0) -> 0 | L104: =IF(AND($B$16=2,$B$17=1),B103+B104+D103+D104,0) -> 0 | M104: =IF(AND($B$16=2,$B$17=1),C103+C104,0) -> 0 | N104: =IF(AND($B$16=12,$B$17=9),B104+B103+B102+B101+B100+B99+B98+B97+B96+B95+B94+B93+SUM(D93:D104),0) -> 0 | O104: =IF(AND($B$16=12,$B$17=9),C104+C103+C102+C101+C100+C99+C98+C97+C96+C95+C94+C93,0) -> 0
B105: 0 | C105: 0 | D105: 0 | F105: 0 | G105: 0 | H105: 0 | I105: 0 | J105: =IF(AND($B$16=4,$B$17=2),B105+B104+B103+B102+D102+D103+D104+D105,0) -> 0 | K105: =IF(AND($B$16=4,$B$17=2),C105+C104+C103+C102,0) -> 0 | L105: =IF(AND($B$16=2,$B$17=2),B104+B105+D104+D105,0) -> 0 | M105: =IF(AND($B$16=2,$B$17=2),C104+C105,0) -> 0 | N105: =IF(AND($B$16=12,$B$17=10),B105+B104+B103+B102+B101+B100+B99+B98+B97+B96+B95+B94+SUM(D94:D105),0) -> 0 | O105: =IF(AND($B$16=12,$B$17=10),C105+C104+C103+C102+C101+C100+C99+C98+C97+C96+C95+C94,0) -> 0
B106: 0 | C106: 0 | D106: 0 | F106: 0 | G106: 0 | H106: 0 | I106: 0 | J106: =IF(AND($B$16=4,$B$17=3),B106+B105+B104+B103+D103+D104+D105+D106,0) -> 0 | K106: =IF(AND($B$16=4,$B$17=3),C106+C105+C104+C103,0) -> 0 | L106: =IF(AND($B$16=2,$B$17=1),B105+B106+D105+D106,0) -> 0 | M106: =IF(AND($B$16=2,$B$17=1),C105+C106,0) -> 0 | N106: =IF(AND($B$16=12,$B$17=11),B106+B105+B104+B103+B102+B101+B100+B99+B98+B97+B96+B95+SUM(D95:D106),0) -> 0 | O106: =IF(AND($B$16=12,$B$17=11),C106+C105+C104+C103+C102+C101+C100+C99+C98+C97+C96+C95,0) -> 0
B107: 0 | C107: 0 | D107: 0 | F107: 0 | G107: 0 | H107: 0 | I107: 0 | J107: =IF(AND($B$16=4,$B$17=4),B107+B106+B105+B104+D104+D105+D106+D107,0) -> 0 | K107: =IF(AND($B$16=4,$B$17=4),C107+C106+C105+C104,0) -> 0 | L107: =IF(AND($B$16=2,$B$17=2),B106+B107+D106+D107,0) -> 0 | M107: =IF(AND($B$16=2,$B$17=2),C106+C107,0) -> 0 | N107: =IF(AND($B$16=12,$B$17=12),B107+B106+B105+B104+B103+B102+B101+B100+B99+B98+B97+B96+SUM(D96:D107),0) -> 0 | O107: =IF(AND($B$16=12,$B$17=12),C107+C106+C105+C104+C103+C102+C101+C100+C99+C98+C97+C96,0) -> 0
B108: 0 | C108: 0 | D108: 0 | F108: 0 | G108: 0 | H108: 0 | I108: 0 | J108: =IF(AND($B$16=4,$B$17=1),B108+D108+B105+B106+B107+D105+D106+D107,0) -> 0 | K108: =IF(AND($B$16=4,$B$17=1),C108+C105+C106+C107,0) -> 0 | L108: =IF(AND($B$17=1,$B$16=2),B108+D108,0) -> 0 | M108: =IF(AND($B$17=1,$B$16=2),C108,0) -> 0 | N108: =IF(AND($B$16=12,$B$17=1),B108+B107+B106+B105+B104+B103+B102+B101+B100+B99+B98+B97+SUM(D97:D108),0) -> 0 | O108: =IF(AND($B$16=12,$B$17=1),C108+C107+C106+C105+C104+C103+C102+C101+C100+C99+C98+C97,0) -> 0
B109: 0 | C109: 0 | D109: 0 | F109: 0 | G109: 0 | H109: 0 | I109: 0 | J109: =IF(AND($B$16=4,$B$17=2),B108+B109+B107+B106+D106+D107+D108+D109,0) -> 0 | K109: =IF(AND($B$16=4,$B$17=2),C106+C107+C108+C109,0) -> 0 | L109: =IF(AND($B$16=2,$B$17=2),B108+B109+D108+D109,0) -> 0 | M109: =IF(AND($B$16=2,$B$17=2),C108+C109,0) -> 0 | N109: =IF(AND($B$16=12,$B$17=2),B109+B108+B107+B106+B105+B104+B103+B102+B101+B100+B99+B98+SUM(D98:D109),0) -> 0 | O109: =IF(AND($B$16=12,$B$17=2),C109+C108+C107+C106+C105+C104+C103+C102+C101+C100+C99+C98,0) -> 0
B110: 0 | C110: 0 | D110: 0 | F110: 0 | G110: 0 | H110: 0 | I110: 0 | J110: =IF(AND($B$16=4,$B$17=3),B107+B108+B109+B110+D107+D108+D109+D110,0) -> 0 | K110: =IF(AND($B$16=4,$B$17=3),C107+C108+C109+C110,0) -> 0 | L110: =IF(AND($B$16=2,$B$17=1),B109+B110+D109+D110,0) -> 0 | M110: =IF(AND($B$16=2,$B$17=1),C109+C110,0) -> 0 | N110: =IF(AND($B$16=12,$B$17=3),B110+B109+B108+B107+B106+B105+B104+B103+B102+B101+B100+B99+SUM(D99:D110),0) -> 0 | O110: =IF(AND($B$16=12,$B$17=3),C110+C109+C108+C107+C106+C105+C104+C103+C102+C101+C100+C99,0) -> 0
B111: 0 | C111: 0 | D111: 0 | F111: 0 | G111: 0 | H111: 0 | I111: 0 | J111: =IF(AND($B$16=4,$B$17=4),B108+B109+B110+B111+D108+D109+D110+D111,0) -> 0 | K111: =IF(AND($B$16=4,$B$17=4),C108+C109+C110+C111,0) -> 0 | L111: =IF(AND($B$16=2,$B$17=2),B110+B111+D110+D111,0) -> 0 | M111: =IF(AND($B$16=2,$B$17=2),C110+C111,0) -> 0 | N111: =IF(AND($B$16=12,$B$17=4),B111+B110+B109+B108+B107+B106+B105+B104+B103+B102+B101+B100+SUM(D100:D111),0) -> 0 | O111: =IF(AND($B$16=12,$B$17=4),C111+C110+C109+C108+C107+C106+C105+C104+C103+C102+C101+C100,0) -> 0
B112: 0 | C112: 0 | D112: 0 | F112: 0 | G112: 0 | H112: 0 | I112: 0 | J112: =IF(AND($B$16=4,$B$17=1),B109+B110+B111+B112+D109+D110+D111+D112,0) -> 0 | K112: =IF(AND($B$16=4,$B$17=1),C109+C110+C111+C112,0) -> 0 | L112: =IF(AND($B$16=2,$B$17=1),B111+B112+D111+D112,0) -> 0 | M112: =IF(AND($B$16=2,$B$17=1),C111+C112,0) -> 0 | N112: =IF(AND($B$16=12,$B$17=5),B112+B111+B110+B109+B108+B107+B106+B105+B104+B103+B102+B101+SUM(D101:D112),0) -> 0 | O112: =IF(AND($B$16=12,$B$17=5),C112+C111+C110+C109+C108+C107+C106+C105+C104+C103+C102+C101,0) -> 0
B113: 0 | C113: 0 | D113: 0 | F113: 0 | G113: 0 | H113: 0 | I113: 0 | J113: =IF(AND($B$16=4,$B$17=2),B110+B111+B112+B113+D113+D112+D111+D110,0) -> 0 | K113: =IF(AND($B$16=4,$B$17=2),C110+C111+C112+C113,0) -> 0 | L113: =IF(AND($B$16=2,$B$17=2),B112+B113+D112+D113,0) -> 0 | M113: =IF(AND($B$16=2,$B$17=2),C112+C113,0) -> 0 | N113: =IF(AND($B$16=12,$B$17=6),B113+B112+B111+B110+B109+B108+B107+B106+B105+B104+B103+B102+SUM(D102:D113),0) -> 0 | O113: =IF(AND($B$16=12,$B$17=6),C113+C112+C111+C110+C109+C108+C107+C106+C105+C104+C103+C102,0) -> 0
B114: 0 | C114: 0 | D114: 0 | F114: 0 | G114: 0 | H114: 0 | I114: 0 | J114: =IF(AND($B$16=4,$B$17=3),B114+B113+B112+B111+D111+D112+D113+D114,0) -> 0 | K114: =IF(AND($B$16=4,$B$17=3),C114+C113+C112+C111,0) -> 0 | L114: =IF(AND($B$16=2,$B$17=1),B113+B114+D113+D114,0) -> 0 | M114: =IF(AND($B$16=2,$B$17=1),C113+C114,0) -> 0 | N114: =IF(AND($B$16=12,$B$17=7),B114+B113+B112+B111+B110+B109+B108+B107+B106+B105+B104+B103+SUM(D103:D114),0) -> 0 | O114: =IF(AND($B$16=12,$B$17=7),C114+C113+C112+C111+C110+C109+C108+C107+C106+C105+C104+C103,0) -> 0
B115: 0 | C115: 0 | D115: 0 | F115: 0 | G115: 0 | H115: 0 | I115: 0 | J115: =IF(AND($B$16=4,$B$17=4),B115+B114+B113+B112+D112+D113+D114+D115,0) -> 0 | K115: =IF(AND($B$16=4,$B$17=4),C115+C114+C113+C112,0) -> 0 | L115: =IF(AND($B$16=2,$B$17=2),B114+B115+D114+D115,0) -> 0 | M115: =IF(AND($B$16=2,$B$17=2),C114+C115,0) -> 0 | N115: =IF(AND($B$16=12,$B$17=8),B115+B114+B113+B112+B111+B110+B109+B108+B107+B106+B105+B104+SUM(D104:D115),0) -> 0 | O115: =IF(AND($B$16=12,$B$17=8),C115+C114+C113+C112+C111+C110+C109+C108+C107+C106+C105+C104,0) -> 0
B116: 0 | C116: 0 | D116: 0 | F116: 0 | G116: 0 | H116: 0 | I116: 0 | J116: =IF(AND($B$16=4,$B$17=1),B116+B115+B114+B113+D113+D114+D115+D116,0) -> 0 | K116: =IF(AND($B$16=4,$B$17=1),C116+C115+C114+C113,0) -> 0 | L116: =IF(AND($B$16=2,$B$17=1),B115+B116+D115+D116,0) -> 0 | M116: =IF(AND($B$16=2,$B$17=1),C115+C116,0) -> 0 | N116: =IF(AND($B$16=12,$B$17=9),B116+B115+B114+B113+B112+B111+B110+B109+B108+B107+B106+B105+SUM(D105:D116),0) -> 0 | O116: =IF(AND($B$16=12,$B$17=9),C116+C115+C114+C113+C112+C111+C110+C109+C108+C107+C106+C105,0) -> 0
B117: 0 | C117: 0 | D117: 0 | F117: 0 | G117: 0 | H117: 0 | I117: 0 | J117: =IF(AND($B$16=4,$B$17=2),B117+B116+B115+B114+D114+D115+D116+D117,0) -> 0 | K117: =IF(AND($B$16=4,$B$17=2),C117+C116+C115+C114,0) -> 0 | L117: =IF(AND($B$16=2,$B$17=2),B116+B117+D116+D117,0) -> 0 | M117: =IF(AND($B$16=2,$B$17=2),C116+C117,0) -> 0 | N117: =IF(AND($B$16=12,$B$17=10),B117+B116+B115+B114+B113+B112+B111+B110+B109+B108+B107+B106+SUM(D106:D117),0) -> 0 | O117: =IF(AND($B$16=12,$B$17=10),C117+C116+C115+C114+C113+C112+C111+C110+C109+C108+C107+C106,0) -> 0
B118: 0 | C118: 0 | D118: 0 | F118: 0 | G118: 0 | H118: 0 | I118: 0 | J118: =IF(AND($B$16=4,$B$17=3),B118+B117+B116+B115+D115+D116+D117+D118,0) -> 0 | K118: =IF(AND($B$16=4,$B$17=3),C118+C117+C116+C115,0) -> 0 | L118: =IF(AND($B$16=2,$B$17=1),B117+B118+D117+D118,0) -> 0 | M118: =IF(AND($B$16=2,$B$17=1),C117+C118,0) -> 0 | N118: =IF(AND($B$16=12,$B$17=11),B118+B117+B116+B115+B114+B113+B112+B111+B110+B109+B108+B107+SUM(D107:D118),0) -> 0 | O118: =IF(AND($B$16=12,$B$17=11),C118+C117+C116+C115+C114+C113+C112+C111+C110+C109+C108+C107,0) -> 0
B119: 0 | C119: 0 | D119: 0 | F119: 0 | G119: 0 | H119: 0 | I119: 0 | J119: =IF(AND($B$16=4,$B$17=4),B119+B118+B117+B116+D116+D117+D118+D119,0) -> 0 | K119: =IF(AND($B$16=4,$B$17=4),C119+C118+C117+C116,0) -> 0 | L119: =IF(AND($B$16=2,$B$17=2),B118+B119+D118+D119,0) -> 0 | M119: =IF(AND($B$16=2,$B$17=2),C118+C119,0) -> 0 | N119: =IF(AND($B$16=12,$B$17=12),B119+B118+B117+B116+B115+B114+B113+B112+B111+B110+B109+B108+SUM(D108:D119),0) -> 0 | O119: =IF(AND($B$16=12,$B$17=12),C119+C118+C117+C116+C115+C114+C113+C112+C111+C110+C109+C108,0) -> 0
B120: 0 | C120: 0 | D120: 0 | F120: 0 | G120: =IF($B$16=4,J120,IF($B$16=2,L120,IF($B$16=12,N120,0))) -> 0 | H120: =IF($B$16=4,K120,IF($B$16=2,M120,IF($B$16=12,O120,0))) -> 0 | I120: =G120+H120 -> 0 | J120: =IF(AND($B$16=4,$B$17=1),B120+D120+B117+B118+B119+D117+D118+D119,0) -> 0 | K120: =IF(AND($B$16=4,$B$17=1),C120+C117+C118+C119,0) -> 0 | L120: =IF(AND($B$17=1,$B$16=2),B120+D120,0) -> 0 | M120: =IF(AND($B$17=1,$B$16=2),C120,0) -> 0 | N120: =IF(AND($B$16=12,$B$17=1),B120+B119+B118+B117+B116+B115+B114+B113+B112+B111+B110+B109+SUM(D109:D120),0) -> 0 | O120: =IF(AND($B$16=12,$B$17=1),C120+C119+C118+C117+C116+C115+C114+C113+C112+C111+C110+C109,0) -> 0
B121: =F120*$F$10/100 -> 0 | C121: =IF(AND(F120>0,$B$11="A"),$F$11-B121,IF(AND(F120>0,$B$11="S"),$F$11,0)) -> 0 | D121: =IF(F120<=0,0,$B$12*($B$14/$B$16)/100) -> 0 | E121: =IF(AND(F120>0,$B$11="A"),E120,IF(AND(F120>0,$B$11="S"),B121+C121+D121," ")) ->  | F121: 0 | G121: 0 | H121: 0 | I121: 0 | J121: =IF(AND($B$16=4,$B$17=2),B120+B121+B119+B118+D118+D119+D120+D121,0) -> 0 | K121: =IF(AND($B$16=4,$B$17=2),C118+C119+C120+C121,0) -> 0 | L121: =IF(AND($B$16=2,$B$17=2),B120+B121+D120+D121,0) -> 0 | M121: =IF(AND($B$16=2,$B$17=2),C120+C121,0) -> 0 | N121: =IF(AND($B$16=12,$B$17=2),B121+B120+B119+B118+B117+B116+B115+B114+B113+B112+B111+B110+SUM(D110:D121),0) -> 0 | O121: =IF(AND($B$16=12,$B$17=2),C121+C120+C119+C118+C117+C116+C115+C114+C113+C112+C111+C110,0) -> 0
A122: =IF(F121<=0,"",A121+1) ->  | B122: 0 | C122: 0 | D122: 0 | F122: 0 | G122: 0 | H122: 0 | I122: 0 | J122: =IF(AND($B$16=4,$B$17=3),B119+B120+B121+B122+D119+D120+D121+D122,0) -> 0 | K122: =IF(AND($B$16=4,$B$17=3),C119+C120+C121+C122,0) -> 0 | L122: =IF(AND($B$16=2,$B$17=1),B121+B122+D121+D122,0) -> 0 | M122: =IF(AND($B$16=2,$B$17=1),C121+C122,0) -> 0 | N122: =IF(AND($B$16=12,$B$17=3),B122+B121+B120+B119+B118+B117+B116+B115+B114+B113+B112+B111+SUM(D111:D122),0) -> 0 | O122: =IF(AND($B$16=12,$B$17=3),C122+C121+C120+C119+C118+C117+C116+C115+C114+C113+C112+C111,0) -> 0
B123: 0 | C123: 0 | D123: 0 | F123: 0 | G123: 0 | H123: 0 | I123: 0 | J123: =IF(AND($B$16=4,$B$17=4),B120+B121+B122+B123+D120+D121+D122+D123,0) -> 0 | K123: =IF(AND($B$16=4,$B$17=4),C120+C121+C122+C123,0) -> 0 | L123: =IF(AND($B$16=2,$B$17=2),B122+B123+D122+D123,0) -> 0 | M123: =IF(AND($B$16=2,$B$17=2),C122+C123,0) -> 0 | N123: =IF(AND($B$16=12,$B$17=4),B123+B122+B121+B120+B119+B118+B117+B116+B115+B114+B113+B112+SUM(D112:D123),0) -> 0 | O123: =IF(AND($B$16=12,$B$17=4),C123+C122+C121+C120+C119+C118+C117+C116+C115+C114+C113+C112,0) -> 0
B124: 0 | C124: 0 | D124: 0 | F124: 0 | G124: 0 | H124: 0 | I124: 0 | J124: =IF(AND($B$16=4,$B$17=1),B121+B122+B123+B124+D121+D122+D123+D124,0) -> 0 | K124: =IF(AND($B$16=4,$B$17=1),C121+C122+C123+C124,0) -> 0 | L124: =IF(AND($B$16=2,$B$17=1),B123+B124+D123+D124,0) -> 0 | M124: =IF(AND($B$16=2,$B$17=1),C123+C124,0) -> 0 | N124: =IF(AND($B$16=12,$B$17=5),B124+B123+B122+B121+B120+B119+B118+B117+B116+B115+B114+B113+SUM(D113:D124),0) -> 0 | O124: =IF(AND($B$16=12,$B$17=5),C124+C123+C122+C121+C120+C119+C118+C117+C116+C115+C114+C113,0) -> 0
B125: 0 | C125: 0 | D125: 0 | F125: 0 | G125: 0 | H125: 0 | I125: 0 | J125: =IF(AND($B$16=4,$B$17=2),B122+B123+B124+B125+D125+D124+D123+D122,0) -> 0 | K125: =IF(AND($B$16=4,$B$17=2),C122+C123+C124+C125,0) -> 0 | L125: =IF(AND($B$16=2,$B$17=2),B124+B125+D124+D125,0) -> 0 | M125: =IF(AND($B$16=2,$B$17=2),C124+C125,0) -> 0 | N125: =IF(AND($B$16=12,$B$17=6),B125+B124+B123+B122+B121+B120+B119+B118+B117+B116+B115+B114+SUM(D114:D125),0) -> 0 | O125: =IF(AND($B$16=12,$B$17=6),C125+C124+C123+C122+C121+C120+C119+C118+C117+C116+C115+C114,0) -> 0
B126: 0 | C126: 0 | D126: 0 | F126: 0 | G126: 0 | H126: 0 | I126: 0 | J126: =IF(AND($B$16=4,$B$17=3),B126+B125+B124+B123+D123+D124+D125+D126,0) -> 0 | K126: =IF(AND($B$16=4,$B$17=3),C126+C125+C124+C123,0) -> 0 | L126: =IF(AND($B$16=2,$B$17=1),B125+B126+D125+D126,0) -> 0 | M126: =IF(AND($B$16=2,$B$17=1),C125+C126,0) -> 0 | N126: =IF(AND($B$16=12,$B$17=7),B126+B125+B124+B123+B122+B121+B120+B119+B118+B117+B116+B115+SUM(D115:D126),0) -> 0 | O126: =IF(AND($B$16=12,$B$17=7),C126+C125+C124+C123+C122+C121+C120+C119+C118+C117+C116+C115,0) -> 0
B127: 0 | C127: 0 | D127: 0 | F127: 0 | G127: 0 | H127: 0 | I127: 0 | J127: =IF(AND($B$16=4,$B$17=4),B127+B126+B125+B124+D124+D125+D126+D127,0) -> 0 | K127: =IF(AND($B$16=4,$B$17=4),C127+C126+C125+C124,0) -> 0 | L127: =IF(AND($B$16=2,$B$17=2),B126+B127+D126+D127,0) -> 0 | M127: =IF(AND($B$16=2,$B$17=2),C126+C127,0) -> 0 | N127: =IF(AND($B$16=12,$B$17=8),B127+B126+B125+B124+B123+B122+B121+B120+B119+B118+B117+B116+SUM(D116:D127),0) -> 0 | O127: =IF(AND($B$16=12,$B$17=8),C127+C126+C125+C124+C123+C122+C121+C120+C119+C118+C117+C116,0) -> 0
B128: 0 | C128: 0 | D128: 0 | F128: 0 | G128: 0 | H128: 0 | I128: 0 | J128: =IF(AND($B$16=4,$B$17=1),B128+B127+B126+B125+D125+D126+D127+D128,0) -> 0 | K128: =IF(AND($B$16=4,$B$17=1),C128+C127+C126+C125,0) -> 0 | L128: =IF(AND($B$16=2,$B$17=1),B127+B128+D127+D128,0) -> 0 | M128: =IF(AND($B$16=2,$B$17=1),C127+C128,0) -> 0 | N128: =IF(AND($B$16=12,$B$17=9),B128+B127+B126+B125+B124+B123+B122+B121+B120+B119+B118+B117+SUM(D117:D128),0) -> 0 | O128: =IF(AND($B$16=12,$B$17=9),C128+C127+C126+C125+C124+C123+C122+C121+C120+C119+C118+C117,0) -> 0
B129: 0 | C129: 0 | D129: 0 | F129: 0 | G129: 0 | H129: 0 | I129: 0 | J129: =IF(AND($B$16=4,$B$17=2),B129+B128+B127+B126+D126+D127+D128+D129,0) -> 0 | K129: =IF(AND($B$16=4,$B$17=2),C129+C128+C127+C126,0) -> 0 | L129: =IF(AND($B$16=2,$B$17=2),B128+B129+D128+D129,0) -> 0 | M129: =IF(AND($B$16=2,$B$17=2),C128+C129,0) -> 0 | N129: =IF(AND($B$16=12,$B$17=10),B129+B128+B127+B126+B125+B124+B123+B122+B121+B120+B119+B118+SUM(D118:D129),0) -> 0 | O129: =IF(AND($B$16=12,$B$17=10),C129+C128+C127+C126+C125+C124+C123+C122+C121+C120+C119+C118,0) -> 0
B130: 0 | C130: 0 | D130: 0 | F130: 0 | G130: 0 | H130: 0 | I130: 0 | J130: =IF(AND($B$16=4,$B$17=3),B130+B129+B128+B127+D127+D128+D129+D130,0) -> 0 | K130: =IF(AND($B$16=4,$B$17=3),C130+C129+C128+C127,0) -> 0 | L130: =IF(AND($B$16=2,$B$17=1),B129+B130+D129+D130,0) -> 0 | M130: =IF(AND($B$16=2,$B$17=1),C129+C130,0) -> 0 | N130: =IF(AND($B$16=12,$B$17=11),B130+B129+B128+B127+B126+B125+B124+B123+B122+B121+B120+B119+SUM(D119:D130),0) -> 0 | O130: =IF(AND($B$16=12,$B$17=11),C130+C129+C128+C127+C126+C125+C124+C123+C122+C121+C120+C119,0) -> 0
B131: 0 | C131: 0 | D131: 0 | F131: =IF(ROUND((F130-C131),)<=0,0,F130-C131) -> 0 | G131: 0 | H131: 0 | I131: 0 | J131: =IF(AND($B$16=4,$B$17=4),B131+B130+B129+B128+D128+D129+D130+D131,0) -> 0 | K131: =IF(AND($B$16=4,$B$17=4),C131+C130+C129+C128,0) -> 0 | L131: =IF(AND($B$16=2,$B$17=2),B130+B131+D130+D131,0) -> 0 | M131: =IF(AND($B$16=2,$B$17=2),C130+C131,0) -> 0 | N131: =IF(AND($B$16=12,$B$17=12),B131+B130+B129+B128+B127+B126+B125+B124+B123+B122+B121+B120+SUM(D120:D131),0) -> 0 | O131: =IF(AND($B$16=12,$B$17=12),C131+C130+C129+C128+C127+C126+C125+C124+C123+C122+C121+C120,0) -> 0
B132: 0 | C132: 0 | D132: 0 | F132: 0 | G132: 0 | H132: 0 | I132: 0 | J132: =IF(AND($B$16=4,$B$17=1),B132+D132+B129+B130+B131+D129+D130+D131,0) -> 0 | K132: =IF(AND($B$16=4,$B$17=1),C132+C129+C130+C131,0) -> 0 | L132: =IF(AND($B$17=1,$B$16=2),B132+D132,0) -> 0 | M132: =IF(AND($B$17=1,$B$16=2),C132,0) -> 0 | N132: =IF(AND($B$16=12,$B$17=1),B132+B131+B130+B129+B128+B127+B126+B125+B124+B123+B122+B121+SUM(D121:D132),0) -> 0 | O132: =IF(AND($B$16=12,$B$17=1),C132+C131+C130+C129+C128+C127+C126+C125+C124+C123+C122+C121,0) -> 0
B133: 0 | C133: 0 | D133: 0 | F133: 0 | G133: 0 | H133: 0 | I133: 0 | J133: =IF(AND($B$16=4,$B$17=2),B132+B133+B131+B130+D130+D131+D132+D133,0) -> 0 | K133: =IF(AND($B$16=4,$B$17=2),C130+C131+C132+C133,0) -> 0 | L133: =IF(AND($B$16=2,$B$17=2),B132+B133+D132+D133,0) -> 0 | M133: =IF(AND($B$16=2,$B$17=2),C132+C133,0) -> 0 | N133: =IF(AND($B$16=12,$B$17=2),B133+B132+B131+B130+B129+B128+B127+B126+B125+B124+B123+B122+SUM(D122:D133),0) -> 0 | O133: =IF(AND($B$16=12,$B$17=2),C133+C132+C131+C130+C129+C128+C127+C126+C125+C124+C123+C122,0) -> 0
B134: 0 | C134: 0 | D134: 0 | F134: 0 | G134: 0 | H134: 0 | I134: 0 | J134: =IF(AND($B$16=4,$B$17=3),B131+B132+B133+B134+D131+D132+D133+D134,0) -> 0 | K134: =IF(AND($B$16=4,$B$17=3),C131+C132+C133+C134,0) -> 0 | L134: =IF(AND($B$16=2,$B$17=1),B133+B134+D133+D134,0) -> 0 | M134: =IF(AND($B$16=2,$B$17=1),C133+C134,0) -> 0 | N134: =IF(AND($B$16=12,$B$17=3),B134+B133+B132+B131+B130+B129+B128+B127+B126+B125+B124+B123+SUM(D123:D134),0) -> 0 | O134: =IF(AND($B$16=12,$B$17=3),C134+C133+C132+C131+C130+C129+C128+C127+C126+C125+C124+C123,0) -> 0
B135: 0 | C135: 0 | D135: 0 | F135: 0 | G135: 0 | H135: 0 | I135: 0 | J135: =IF(AND($B$16=4,$B$17=4),B132+B133+B134+B135+D132+D133+D134+D135,0) -> 0 | K135: =IF(AND($B$16=4,$B$17=4),C132+C133+C134+C135,0) -> 0 | L135: =IF(AND($B$16=2,$B$17=2),B134+B135+D134+D135,0) -> 0 | M135: =IF(AND($B$16=2,$B$17=2),C134+C135,0) -> 0 | N135: =IF(AND($B$16=12,$B$17=4),B135+B134+B133+B132+B131+B130+B129+B128+B127+B126+B125+B124+SUM(D124:D135),0) -> 0 | O135: =IF(AND($B$16=12,$B$17=4),C135+C134+C133+C132+C131+C130+C129+C128+C127+C126+C125+C124,0) -> 0
B136: 0 | C136: 0 | D136: 0 | F136: 0 | G136: 0 | H136: 0 | I136: 0 | J136: =IF(AND($B$16=4,$B$17=1),B133+B134+B135+B136+D133+D134+D135+D136,0) -> 0 | K136: =IF(AND($B$16=4,$B$17=1),C133+C134+C135+C136,0) -> 0 | L136: =IF(AND($B$16=2,$B$17=1),B135+B136+D135+D136,0) -> 0 | M136: =IF(AND($B$16=2,$B$17=1),C135+C136,0) -> 0 | N136: =IF(AND($B$16=12,$B$17=5),B136+B135+B134+B133+B132+B131+B130+B129+B128+B127+B126+B125+SUM(D125:D136),0) -> 0 | O136: =IF(AND($B$16=12,$B$17=5),C136+C135+C134+C133+C132+C131+C130+C129+C128+C127+C126+C125,0) -> 0
B137: 0 | C137: 0 | D137: 0 | F137: 0 | G137: 0 | H137: 0 | I137: 0 | J137: =IF(AND($B$16=4,$B$17=2),B134+B135+B136+B137+D137+D136+D135+D134,0) -> 0 | K137: =IF(AND($B$16=4,$B$17=2),C134+C135+C136+C137,0) -> 0 | L137: =IF(AND($B$16=2,$B$17=2),B136+B137+D136+D137,0) -> 0 | M137: =IF(AND($B$16=2,$B$17=2),C136+C137,0) -> 0 | N137: =IF(AND($B$16=12,$B$17=6),B137+B136+B135+B134+B133+B132+B131+B130+B129+B128+B127+B126+SUM(D126:D137),0) -> 0 | O137: =IF(AND($B$16=12,$B$17=6),C137+C136+C135+C134+C133+C132+C131+C130+C129+C128+C127+C126,0) -> 0
B138: 0 | C138: 0 | D138: 0 | F138: 0 | G138: 0 | H138: 0 | I138: 0 | J138: =IF(AND($B$16=4,$B$17=3),B138+B137+B136+B135+D135+D136+D137+D138,0) -> 0 | K138: =IF(AND($B$16=4,$B$17=3),C138+C137+C136+C135,0) -> 0 | L138: =IF(AND($B$16=2,$B$17=1),B137+B138+D137+D138,0) -> 0 | M138: =IF(AND($B$16=2,$B$17=1),C137+C138,0) -> 0 | N138: =IF(AND($B$16=12,$B$17=7),B138+B137+B136+B135+B134+B133+B132+B131+B130+B129+B128+B127+SUM(D127:D138),0) -> 0 | O138: =IF(AND($B$16=12,$B$17=7),C138+C137+C136+C135+C134+C133+C132+C131+C130+C129+C128+C127,0) -> 0
B139: 0 | C139: 0 | D139: 0 | F139: 0 | G139: 0 | H139: 0 | I139: 0 | J139: =IF(AND($B$16=4,$B$17=4),B139+B138+B137+B136+D136+D137+D138+D139,0) -> 0 | K139: =IF(AND($B$16=4,$B$17=4),C139+C138+C137+C136,0) -> 0 | L139: =IF(AND($B$16=2,$B$17=2),B138+B139+D138+D139,0) -> 0 | M139: =IF(AND($B$16=2,$B$17=2),C138+C139,0) -> 0 | N139: =IF(AND($B$16=12,$B$17=8),B139+B138+B137+B136+B135+B134+B133+B132+B131+B130+B129+B128+SUM(D128:D139),0) -> 0 | O139: =IF(AND($B$16=12,$B$17=8),C139+C138+C137+C136+C135+C134+C133+C132+C131+C130+C129+C128,0) -> 0
B140: 0 | C140: 0 | D140: 0 | F140: 0 | G140: 0 | H140: 0 | I140: 0 | J140: =IF(AND($B$16=4,$B$17=1),B140+B139+B138+B137+D137+D138+D139+D140,0) -> 0 | K140: =IF(AND($B$16=4,$B$17=1),C140+C139+C138+C137,0) -> 0 | L140: =IF(AND($B$16=2,$B$17=1),B139+B140+D139+D140,0) -> 0 | M140: =IF(AND($B$16=2,$B$17=1),C139+C140,0) -> 0 | N140: =IF(AND($B$16=12,$B$17=9),B140+B139+B138+B137+B136+B135+B134+B133+B132+B131+B130+B129+SUM(D129:D140),0) -> 0 | O140: =IF(AND($B$16=12,$B$17=9),C140+C139+C138+C137+C136+C135+C134+C133+C132+C131+C130+C129,0) -> 0
B141: 0 | C141: 0 | D141: 0 | F141: 0 | G141: 0 | H141: 0 | I141: 0 | J141: =IF(AND($B$16=4,$B$17=2),B141+B140+B139+B138+D138+D139+D140+D141,0) -> 0 | K141: =IF(AND($B$16=4,$B$17=2),C141+C140+C139+C138,0) -> 0 | L141: =IF(AND($B$16=2,$B$17=2),B140+B141+D140+D141,0) -> 0 | M141: =IF(AND($B$16=2,$B$17=2),C140+C141,0) -> 0 | N141: =IF(AND($B$16=12,$B$17=10),B141+B140+B139+B138+B137+B136+B135+B134+B133+B132+B131+B130+SUM(D130:D141),0) -> 0 | O141: =IF(AND($B$16=12,$B$17=10),C141+C140+C139+C138+C137+C136+C135+C134+C133+C132+C131+C130,0) -> 0
B142: 0 | C142: 0 | D142: 0 | F142: 0 | G142: 0 | H142: 0 | I142: 0 | J142: =IF(AND($B$16=4,$B$17=3),B142+B141+B140+B139+D139+D140+D141+D142,0) -> 0 | K142: =IF(AND($B$16=4,$B$17=3),C142+C141+C140+C139,0) -> 0 | L142: =IF(AND($B$16=2,$B$17=1),B141+B142+D141+D142,0) -> 0 | M142: =IF(AND($B$16=2,$B$17=1),C141+C142,0) -> 0 | N142: =IF(AND($B$16=12,$B$17=11),B142+B141+B140+B139+B138+B137+B136+B135+B134+B133+B132+B131+SUM(D131:D142),0) -> 0 | O142: =IF(AND($B$16=12,$B$17=11),C142+C141+C140+C139+C138+C137+C136+C135+C134+C133+C132+C131,0) -> 0
B143: 0 | C143: 0 | D143: 0 | F143: 0 | G143: 0 | H143: 0 | I143: 0 | J143: =IF(AND($B$16=4,$B$17=4),B143+B142+B141+B140+D140+D141+D142+D143,0) -> 0 | K143: =IF(AND($B$16=4,$B$17=4),C143+C142+C141+C140,0) -> 0 | L143: =IF(AND($B$16=2,$B$17=2),B142+B143+D142+D143,0) -> 0 | M143: =IF(AND($B$16=2,$B$17=2),C142+C143,0) -> 0 | N143: =IF(AND($B$16=12,$B$17=12),B143+B142+B141+B140+B139+B138+B137+B136+B135+B134+B133+B132+SUM(D132:D143),0) -> 0 | O143: =IF(AND($B$16=12,$B$17=12),C143+C142+C141+C140+C139+C138+C137+C136+C135+C134+C133+C132,0) -> 0
G144: 0 | H144: 0 | I144: 0 | J144: =IF(AND($B$16=4,$B$17=1),B144+D144+B141+B142+B143+D141+D142+D143,0) -> 0 | K144: =IF(AND($B$16=4,$B$17=1),C144+C141+C142+C143,0) -> 0 | L144: =IF(AND($B$17=1,$B$16=2),B144+D144,0) -> 0 | M144: =IF(AND($B$17=1,$B$16=2),C144,0) -> 0 | N144: =IF(AND($B$16=12,$B$17=1),B144+B143+B142+B141+B140+B139+B138+B137+B136+B135+B134+B133+SUM(D133:D144),0) -> 0 | O144: =IF(AND($B$16=12,$B$17=1),C144+C143+C142+C141+C140+C139+C138+C137+C136+C135+C134+C133,0) -> 0
G145: 0 | H145: 0 | I145: 0 | J145: =IF(AND($B$16=4,$B$17=2),B144+B145+B143+B142+D142+D143+D144+D145,0) -> 0 | K145: =IF(AND($B$16=4,$B$17=2),C142+C143+C144+C145,0) -> 0 | L145: =IF(AND($B$16=2,$B$17=2),B144+B145+D144+D145,0) -> 0 | M145: =IF(AND($B$16=2,$B$17=2),C144+C145,0) -> 0 | N145: =IF(AND($B$16=12,$B$17=2),B145+B144+B143+B142+B141+B140+B139+B138+B137+B136+B135+B134+SUM(D134:D145),0) -> 0 | O145: =IF(AND($B$16=12,$B$17=2),C145+C144+C143+C142+C141+C140+C139+C138+C137+C136+C135+C134,0) -> 0
G146: 0 | H146: 0 | I146: 0 | J146: =IF(AND($B$16=4,$B$17=3),B143+B144+B145+B146+D143+D144+D145+D146,0) -> 0 | K146: =IF(AND($B$16=4,$B$17=3),C143+C144+C145+C146,0) -> 0 | L146: =IF(AND($B$16=2,$B$17=1),B145+B146+D145+D146,0) -> 0 | M146: =IF(AND($B$16=2,$B$17=1),C145+C146,0) -> 0 | N146: =IF(AND($B$16=12,$B$17=3),B146+B145+B144+B143+B142+B141+B140+B139+B138+B137+B136+B135+SUM(D135:D146),0) -> 0 | O146: =IF(AND($B$16=12,$B$17=3),C146+C145+C144+C143+C142+C141+C140+C139+C138+C137+C136+C135,0) -> 0
G147: 0 | H147: 0 | I147: 0 | J147: =IF(AND($B$16=4,$B$17=4),B144+B145+B146+B147+D144+D145+D146+D147,0) -> 0 | K147: =IF(AND($B$16=4,$B$17=4),C144+C145+C146+C147,0) -> 0 | L147: =IF(AND($B$16=2,$B$17=2),B146+B147+D146+D147,0) -> 0 | M147: =IF(AND($B$16=2,$B$17=2),C146+C147,0) -> 0 | N147: =IF(AND($B$16=12,$B$17=4),B147+B146+B145+B144+B143+B142+B141+B140+B139+B138+B137+B136+SUM(D136:D147),0) -> 0 | O147: =IF(AND($B$16=12,$B$17=4),C147+C146+C145+C144+C143+C142+C141+C140+C139+C138+C137+C136,0) -> 0
G148: 0 | H148: 0 | I148: 0 | J148: =IF(AND($B$16=4,$B$17=1),B145+B146+B147+B148+D145+D146+D147+D148,0) -> 0 | K148: =IF(AND($B$16=4,$B$17=1),C145+C146+C147+C148,0) -> 0 | L148: =IF(AND($B$16=2,$B$17=1),B147+B148+D147+D148,0) -> 0 | M148: =IF(AND($B$16=2,$B$17=1),C147+C148,0) -> 0 | N148: =IF(AND($B$16=12,$B$17=5),B148+B147+B146+B145+B144+B143+B142+B141+B140+B139+B138+B137+SUM(D137:D148),0) -> 0 | O148: =IF(AND($B$16=12,$B$17=5),C148+C147+C146+C145+C144+C143+C142+C141+C140+C139+C138+C137,0) -> 0
G149: 0 | H149: 0 | I149: 0 | J149: =IF(AND($B$16=4,$B$17=2),B146+B147+B148+B149+D149+D148+D147+D146,0) -> 0 | K149: =IF(AND($B$16=4,$B$17=2),C146+C147+C148+C149,0) -> 0 | L149: =IF(AND($B$16=2,$B$17=2),B148+B149+D148+D149,0) -> 0 | M149: =IF(AND($B$16=2,$B$17=2),C148+C149,0) -> 0 | N149: =IF(AND($B$16=12,$B$17=6),B149+B148+B147+B146+B145+B144+B143+B142+B141+B140+B139+B138+SUM(D138:D149),0) -> 0 | O149: =IF(AND($B$16=12,$B$17=6),C149+C148+C147+C146+C145+C144+C143+C142+C141+C140+C139+C138,0) -> 0
G150: 0 | H150: 0 | I150: 0 | J150: =IF(AND($B$16=4,$B$17=3),B150+B149+B148+B147+D147+D148+D149+D150,0) -> 0 | K150: =IF(AND($B$16=4,$B$17=3),C150+C149+C148+C147,0) -> 0 | L150: =IF(AND($B$16=2,$B$17=1),B149+B150+D149+D150,0) -> 0 | M150: =IF(AND($B$16=2,$B$17=1),C149+C150,0) -> 0 | N150: =IF(AND($B$16=12,$B$17=7),B150+B149+B148+B147+B146+B145+B144+B143+B142+B141+B140+B139+SUM(D139:D150),0) -> 0 | O150: =IF(AND($B$16=12,$B$17=7),C150+C149+C148+C147+C146+C145+C144+C143+C142+C141+C140+C139,0) -> 0
G151: 0 | H151: 0 | I151: 0 | J151: =IF(AND($B$16=4,$B$17=4),B151+B150+B149+B148+D148+D149+D150+D151,0) -> 0 | K151: =IF(AND($B$16=4,$B$17=4),C151+C150+C149+C148,0) -> 0 | L151: =IF(AND($B$16=2,$B$17=2),B150+B151+D150+D151,0) -> 0 | M151: =IF(AND($B$16=2,$B$17=2),C150+C151,0) -> 0 | N151: =IF(AND($B$16=12,$B$17=8),B151+B150+B149+B148+B147+B146+B145+B144+B143+B142+B141+B140+SUM(D140:D151),0) -> 0 | O151: =IF(AND($B$16=12,$B$17=8),C151+C150+C149+C148+C147+C146+C145+C144+C143+C142+C141+C140,0) -> 0
G152: 0 | H152: 0 | I152: =G152+H152 -> 0 | J152: =IF(AND($B$16=4,$B$17=1),B152+B151+B150+B149+D149+D150+D151+D152,0) -> 0 | K152: =IF(AND($B$16=4,$B$17=1),C152+C151+C150+C149,0) -> 0 | L152: =IF(AND($B$16=2,$B$17=1),B151+B152+D151+D152,0) -> 0 | M152: =IF(AND($B$16=2,$B$17=1),C151+C152,0) -> 0 | N152: =IF(AND($B$16=12,$B$17=9),B152+B151+B150+B149+B148+B147+B146+B145+B144+B143+B142+B141+SUM(D141:D152),0) -> 0 | O152: =IF(AND($B$16=12,$B$17=9),C152+C151+C150+C149+C148+C147+C146+C145+C144+C143+C142+C141,0) -> 0
G153: 0 | H153: 0 | I153: 0 | J153: =IF(AND($B$16=4,$B$17=2),B153+B152+B151+B150+D150+D151+D152+D153,0) -> 0 | K153: =IF(AND($B$16=4,$B$17=2),C153+C152+C151+C150,0) -> 0 | L153: =IF(AND($B$16=2,$B$17=2),B152+B153+D152+D153,0) -> 0 | M153: =IF(AND($B$16=2,$B$17=2),C152+C153,0) -> 0 | N153: =IF(AND($B$16=12,$B$17=10),B153+B152+B151+B150+B149+B148+B147+B146+B145+B144+B143+B142+SUM(D142:D153),0) -> 0 | O153: =IF(AND($B$16=12,$B$17=10),C153+C152+C151+C150+C149+C148+C147+C146+C145+C144+C143+C142,0) -> 0
G154: 0 | H154: 0 | I154: 0 | J154: =IF(AND($B$16=4,$B$17=3),B154+B153+B152+B151+D151+D152+D153+D154,0) -> 0 | K154: =IF(AND($B$16=4,$B$17=3),C154+C153+C152+C151,0) -> 0 | L154: =IF(AND($B$16=2,$B$17=1),B153+B154+D153+D154,0) -> 0 | M154: =IF(AND($B$16=2,$B$17=1),C153+C154,0) -> 0 | N154: =IF(AND($B$16=12,$B$17=11),B154+B153+B152+B151+B150+B149+B148+B147+B146+B145+B144+B143+SUM(D143:D154),0) -> 0 | O154: =IF(AND($B$16=12,$B$17=11),C154+C153+C152+C151+C150+C149+C148+C147+C146+C145+C144+C143,0) -> 0
G155: 0 | H155: 0 | I155: 0 | J155: =IF(AND($B$16=4,$B$17=4),B155+B154+B153+B152+D152+D153+D154+D155,0) -> 0 | K155: =IF(AND($B$16=4,$B$17=4),C155+C154+C153+C152,0) -> 0 | L155: =IF(AND($B$16=2,$B$17=2),B154+B155+D154+D155,0) -> 0 | M155: =IF(AND($B$16=2,$B$17=2),C154+C155,0) -> 0 | N155: =IF(AND($B$16=12,$B$17=12),B155+B154+B153+B152+B151+B150+B149+B148+B147+B146+B145+B144+SUM(D144:D155),0) -> 0 | O155: =IF(AND($B$16=12,$B$17=12),C155+C154+C153+C152+C151+C150+C149+C148+C147+C146+C145+C144,0) -> 0
A162: =IF(AND(B14>0,B16>0),ROUND(B14/B16,4),0) -> 0 | B162: =SUM(B24:B143) -> 1903471.567 | D162: =SUM(D24:D143) -> 0

Sheet Bank lån (hidden)
A1: =IF(B11="S","Bank låneberegning serielån",IF(B11="A","Bank låneberegning annuitetslån","Låneberegning")) -> Bank låneberegning annuitetslån
A2: 1 | B2: 2 | C2: 3 | D2: 4 | E2: 5 | F2: 6 | G2: 7 | H2: 8 | I2: 9 | J2: 10 | K2: 11 | L2: 12 | M2: 13 | N2: 14
A3: Ejendomsnr.: | G3: Dato: | H3: =NOW() -> 2018-03-07T07:36:15.100
A4: Navn: | G4: Udarbejdet af: | H4: Karen Jørgensen
A5: Adresse:
A6: By:
A8: Lånedata: | D8: =IF(AND(B12>0,B13>0,B15>0,B16>0),"Låneoplysninger:",0) -> Låneoplysninger:
A9: Lånetype: | B9: =IF(OR(B11="A",B11="S")," ","(skal tastes)") ->  | D9: =IF(AND(B12>0,B13>0,B15>0,B16>0),"Antal terminer"," ") -> Antal terminer | F9: =IF(AND(B12>0,B13>0,B15>0,B16>0),B15*B16,0) -> 10
A10: A=annuitetslån | D10: =IF(AND(B12>0,B15>0,B16>0,B13>0),"Rente% pr. term."," ") -> Rente% pr. term. | F10: =IF(OR(B13=0,B13=" ",B16=0,B16=" "),0,B13/B16) -> 8
A11: S=serielån | B11: a | D11: =IF(AND(B12>0,B11="S",B13>0,B15>0,B16>0),"Afdrag pr. termin",IF(AND(B12>0,B11="A",B13>E11,B15>0,B16>0),"Ydelse pr. termin"," ")) -> Ydelse pr. termin | F11: =IF(AND(B12>0,B11="A",B13>0,B15>0,B16>0),PMT(F10/100,F9,B12)*-1,IF(AND(B12>0,B11="S",B13>0,B15>0,B16>0),B12/F9," ")) -> 670632.6991
A12: Hovedstol | B12: =Drift!E66 -> 4500000 | D12: =IF(AND(B14>0,B11="A",B12>0,B13>0,B15>0,B16>0),"Incl. bidrag",IF(AND(B14>0,B11="S",B12>0,B13>0,B15>0,B16>0),"Bidrag pr. term."," ")) ->  | F12: =IF(AND(B14>0,B13>0,B15>0,B16>0,B11="A"),F11+D24,IF(AND(B14>0,B13>0,B15>0,B16>0,B11="S"),(B12*B14/100)/B16," ")) ->  | H12: 800000
A13: Rente% p.a. | B13: =Drift!D67*100 -> 8 | D13: =IF(AND(B11="a",B12>0,B13>0,B15>0,B16>0),"Årlig ydelse",IF(AND(B11="s",B12>0,B13>0,B15>0,B16>0),"Årligt afdrag"," ")) -> Årlig ydelse | F13: =IF(AND(B12>0,B13>0,B15>0,B16>0,B11="A"),F11*B16,IF(AND(B12>0,B13>0,B15>0,B16>0,B11="S"),F11*B16,0)) -> 670632.6991 | H13: 94.6
A14: Bidrag % | B14: 0 | D14: =IF(AND(B12>0,B14>0,B11="S",B13>0,B15>0,B16>0),"Årligt bidrag",IF(AND(B12>0,B14>0,B11="A",B13>0,B15>0,B16>0),"Incl. bidrag"," ")) ->  | F14: =IF(AND(B14>0,B11="A",B12>0,B13>0,B15>0,B16>0),F12*B16,IF(AND(B14>0,B11="S"),F12*B16,0)) -> 0 | H14: =H12*H13/100 -> 756800
A15: Løbetid, år | B15: =Drift!D68 -> 10 | D15: =IF(AND(B12>0,B13>0,B15>0,B16>0,B11="S"),"Rente hele perioden",IF(AND(B11="A",B12>0,B13>0,B15>0,B16>0),"Rente hele perioden"," ")) -> Rente hele perioden | F15: =IF(AND(B11="A",B12>0,B13>0,B15>0,B16>0),B162,IF(AND(B11="S",B12>0,B13>0,B15>0,B16>0),B162,0)) -> 2206326.991 | H15: 30000
A16: Terminer p.a. | B16: 1 | D16: =IF(AND(B11="S",B12>0,B14>0,B13>0,B15>0,B16>0),"Bidrag hele perioden",IF(AND(B11="a",B12>0,B14>0,B13>0,B15>0,B16>0),"Bigrag hele perioden"," ")) ->  | F16: =IF(AND(B11="A",B12>0,B14>0),D162,IF(AND(B11="S",B12>0,B14>0),D162,0)) -> 0 | H16: =H14-H15 -> 726800
A17: Antal term. i år 1 | B17: 1 | D17: =IF(F15+F16>0,"Fradr. hele perioden"," ") -> Fradr. hele perioden | F17: =IF(SUM(F15:F16)=0,0,SUM(F15:F16)) -> 2206326.991 | H17: 529000
A18: =IF(OR(B11="a",B11="S")," ","Lånetype skal være ''A'' eller ''S''.") ->  | H18: =H16-H17 -> 197800
A19: =IF(OR(B16=1,B16=2,B16=4,B16=12)," ","Terminer p.a. skal være 1, 2, 4 eller 12.") ->  | H19: =H12*0.015 -> 12000
A20: =IF(B17>B16,"For mange terminer i år 1 i forhold til antal terminer pr. år"," ") ->  | D20: =B24+D24 -> 360000
A21: =IF(AND(B12>0,B13>0,B15>0,B16>0),"Ydelsesoversigt"," ") -> Ydelsesoversigt
B22: =IF(B16=1,"Årlig",IF(B16=2,"Halvårlig",IF(B16=4,"Kvartårlig",IF(B16=12,"Månedlig"," ")))) -> Årlig | G22: =IF(OR(B16=1,B17=0)," ","Opsummeret årlig") -> 
A23: =IF(AND(B12>0,B13>0,B15>0,B16>0),"Terminsnr."," ") -> Terminsnr. | B23: =IF(AND(B12>0,B13>0,B15>0,B16>0),"rente","") -> rente | C23: =IF(AND(B13>0,B15>0,B16>0,B12>0),"afdrag"," ") -> afdrag | D23: =IF(AND(B14>0,B12>0,B13>0,B15>0,B16>0),"bidrag"," ") ->  | E23: =IF(AND(B12>0,B13>0,B15>0,B16>0),"ydelse"," ") -> ydelse | F23: =IF(AND(B12>0,B13>0,B15>0,B16>0),"Restgæld"," ") -> Restgæld | G23: =IF(OR($B$16=1,B17=0)," ","rt.+bidr.") ->  | H23: =IF(OR($B$16<1,B17=0)," ","afdrag") -> afdrag | I23: =IF(OR($B$16=1,B17=0)," ","ydelse") -> 
A24: =IF(AND(B12>0,B13>0,B15>0,B16>0),Økonomi!D6,0) -> 2017 | B24: =B12*$F$10/100 -> 360000 | C24: =IF(AND($B$12>0,$B$11="A",$B$13>0,$B$15>0,$B$16>0),$F$11-B24,IF(AND($B$12>0,$B$11="S",$B$13>0,$B$15>0,$B$16>0),$B$12/$F$9,0)) -> 310632.6991 | D24: =B12*A162/100 -> 0 | E24: =IF(AND(B12>0,B11="A",$B$13>0,$B$15>0,$B$16>0),F11+D24,IF(AND(B12>0,B11="S",$B$13>0,$B$15>0,$B$16>0),B24+C24+D24," ")) -> 670632.6991 | F24: =IF(AND(B12>0,B13>0,B15>0,B16>0),B12-C24,IF((B12-C24)<=0,0,0)) -> 4189367.301 | G24: =IF($B$16=4,J24,IF($B$16=2,L24,IF($B$16=12,N24,0))) -> 0 | H24: =IF($B$16=4,K24,IF($B$16=2,M24,IF($B$16=12,O24,0))) -> 0 | I24: =G24+H24 -> 0 | J24: =IF(AND($B$16=4,$B$17=1),B24+D24,0) -> 0 | K24: =IF(AND($B$16=4,$B$17=1),C24,0) -> 0 | L24: =IF(AND($B$17=1,$B$16=2),B24+D24,0) -> 0 | M24: =IF(AND($B$17=1,$B$16=2),C24,0) -> 0 | N24: =IF(AND($B$16=12,$B$17=1),B24+D24,0) -> 0
A25: =IF(F24<=0," ",A24+1) -> 2018 | B25: =F24*$F$10/100 -> 335149.3841 | C25: =IF(AND(F24>0,$B$11="A"),$F$11-B25,IF(AND(F24>0,$B$11="S"),$F$11,0)) -> 335483.3151 | D25: =IF(F24<=0,0,$B$12*($B$14/$B$16)/100) -> 0 | E25: =IF(AND(F24>0,$B$11="A"),E24,IF(AND(F24>0,$B$11="S"),B25+C25+D25," ")) -> 670632.6991 | F25: =IF(F24-C25<=1,0,F24-C25) -> 3853883.986 | G25: 0 | H25: 0 | I25: 0 | J25: =IF(AND($B$16=4,$B$17=2),B24+B25+D24+D25,0) -> 0 | K25: =IF(AND($B$16=4,$B$17=2),C24+C25,0) -> 0 | L25: =IF(AND($B$16=2,$B$17=2),B24+B25+D24+D25,0) -> 0 | M25: =IF(AND($B$16=2,$B$17=2),C24+C25,0) -> 0 | N25: =IF(AND($B$16=12,$B$17=2),B25+B24+D24+D25,0) -> 0
A26: =IF(F25<=0,"",A25+1) -> 2019 | B26: 308310.7189 | C26: 362321.9803 | D26: 0 | E26: 670632.6991 | F26: 3491562.006 | G26: 0 | H26: 0 | I26: 0 | J26: =IF(AND($B$16=4,$B$17=3),B24+B25+B26+D24+D25+D26,0) -> 0 | K26: =IF(AND($B$16=4,$B$17=3),C24+C25+C26,0) -> 0 | L26: =IF(AND($B$16=2,$B$17=1),B25+B26+D25+D26,0) -> 0 | M26: =IF(AND($B$16=2,$B$17=1),C25+C26,0) -> 0 | N26: =IF(AND($B$16=12,$B$17=3),B26+B25+B24+D24+D25+D26,0) -> 0
A27: 2020 | B27: 279324.9604 | C27: 391307.7387 | D27: 0 | E27: 670632.6991 | F27: 3100254.267 | G27: 0 | H27: 0 | I27: 0 | J27: =IF(AND($B$16=4,$B$17=4),B24+B25+B26+B27+D24+D25+D26+D27,0) -> 0 | K27: =IF(AND($B$16=4,$B$17=4),C24+C25+C26+C27,0) -> 0 | L27: =IF(AND($B$16=2,$B$17=2),B26+B27+D26+D27,0) -> 0 | M27: =IF(AND($B$16=2,$B$17=2),C26+C27,0) -> 0 | N27: =IF(AND($B$16=12,$B$17=4),B27+B26+B25+B24+D24+D25+D26+D27,0) -> 0
A28: 2021 | B28: 248020.3413 | C28: 422612.3578 | D28: 0 | E28: 670632.6991 | F28: 2677641.909 | G28: 0 | H28: 0 | I28: 0 | J28: =IF(AND($B$16=4,$B$17=1),B25+B26+B27+B28+D25+D26+D27+D28,0) -> 0 | K28: =IF(AND($B$16=4,$B$17=1),C25+C26+C27+C28,0) -> 0 | L28: =IF(AND($B$16=2,$B$17=1),B27+B28+D27+D28,0) -> 0 | M28: =IF(AND($B$16=2,$B$17=1),C27+C28,0) -> 0 | N28: =IF(AND($B$16=12,$B$17=5),B28+B27+B26+B25+B24+D24+D25+D26+D27+D28,0) -> 0
A29: 2022 | B29: 214211.3527 | C29: 456421.3464 | D29: 0 | E29: 670632.6991 | F29: 2221220.563 | G29: 0 | H29: 0 | I29: 0 | J29: =IF(AND($B$16=4,$B$17=2),B26+B27+B28+B29+D29+D28+D27+D26,0) -> 0 | K29: =IF(AND($B$16=4,$B$17=2),C26+C27+C28+C29,0) -> 0 | L29: =IF(AND($B$16=2,$B$17=2),B28+B29+D28+D29,0) -> 0 | M29: =IF(AND($B$16=2,$B$17=2),C28+C29,0) -> 0 | N29: =IF(AND($B$16=12,$B$17=6),B29+B28+B27+B26+B25+B24+D24+D25+D26+D27+D28+D29,0) -> 0
A30: 2023 | B30: 177697.645 | C30: 492935.0541 | D30: 0 | E30: 670632.6991 | F30: 1728285.508 | G30: 0 | H30: 0 | I30: 0 | J30: =IF(AND($B$16=4,$B$17=3),B30+B29+B28+B27+D27+D28+D29+D30,0) -> 0 | K30: =IF(AND($B$16=4,$B$17=3),C30+C29+C28+C27,0) -> 0 | L30: =IF(AND($B$16=2,$B$17=1),B29+B30+D29+D30,0) -> 0 | M30: =IF(AND($B$16=2,$B$17=1),C29+C30,0) -> 0 | N30: =IF(AND($B$16=12,$B$17=7),B30+B29+B28+B27+B26+B25+B24+D24+D25+D26+D27+D28+D29+D30,0) -> 0
A31: 2024 | B31: 138262.8407 | C31: 532369.8585 | D31: 0 | E31: 670632.6991 | F31: 1195915.65 | G31: 0 | H31: 0 | I31: 0 | J31: =IF(AND($B$16=4,$B$17=4),B31+B30+B29+B28+D28+D29+D30+D31,0) -> 0 | K31: =IF(AND($B$16=4,$B$17=4),C31+C30+C29+C28,0) -> 0 | L31: =IF(AND($B$16=2,$B$17=2),B30+B31+D30+D31,0) -> 0 | M31: =IF(AND($B$16=2,$B$17=2),C30+C31,0) -> 0 | N31: =IF(AND($B$16=12,$B$17=8),B31+B30+B29+B28+B27+B26+B25+B24+D24+D25+D26+D27+D28+D29+D30+D31,0) -> 0
A32: 2025 | B32: 95673.252 | C32: 574959.4471 | D32: 0 | E32: 670632.6991 | F32: 620956.2029 | G32: 0 | H32: 0 | I32: 0 | J32: =IF(AND($B$16=4,$B$17=1),B32+B31+B30+B29+D29+D30+D31+D32,0) -> 0 | K32: =IF(AND($B$16=4,$B$17=1),C32+C31+C30+C29,0) -> 0 | L32: =IF(AND($B$16=2,$B$17=1),B31+B32+D31+D32,0) -> 0 | M32: =IF(AND($B$16=2,$B$17=1),C31+C32,0) -> 0 | N32: =IF(AND($B$16=12,$B$17=9),B32+B31+B30+B29+B28+B27+B26+B25+B24+D24+D25+D26+D27+D28+D29+D30+D31+D32,0) -> 0
A33: 2026 | B33: 49676.49623 | C33: 620956.2029 | D33: 0 | E33: 670632.6991 | F33: 0 | G33: 0 | H33: 0 | I33: 0 | J33: =IF(AND($B$16=4,$B$17=2),B33+B32+B31+B30+D30+D31+D32+D33,0) -> 0 | K33: =IF(AND($B$16=4,$B$17=2),C33+C32+C31+C30,0) -> 0 | L33: =IF(AND($B$16=2,$B$17=2),B32+B33+D32+D33,0) -> 0 | M33: =IF(AND($B$16=2,$B$17=2),C32+C33,0) -> 0 | N33: =IF(AND($B$16=12,$B$17=10),B33+B32+B31+B30+B29+B28+B27+B26+B25+B24+D24+D25+D26+D27+D28+D29+D30+D31+D32+D33,0) -> 0
B34: 0 | C34: 0 | D34: 0 | F34: 0 | G34: 0 | H34: 0 | I34: 0 | J34: =IF(AND($B$16=4,$B$17=3),B34+B33+B32+B31+D31+D32+D33+D34,0) -> 0 | K34: =IF(AND($B$16=4,$B$17=3),C34+C33+C32+C31,0) -> 0 | L34: =IF(AND($B$16=2,$B$17=1),B33+B34+D33+D34,0) -> 0 | M34: =IF(AND($B$16=2,$B$17=1),C33+C34,0) -> 0 | N34: =IF(AND($B$16=12,$B$17=11),B34+B33+B32+B31+B30+B29+B28+B27+B26+B25+B24+D24+D25+D26+D27+D28+D29+D30+D31+D32+D33+D34,0) -> 0
B35: 0 | C35: 0 | D35: 0 | F35: =IF(ROUND((F34-C35),)<=0,0,F34-C35) -> 0 | G35: 0 | H35: 0 | I35: 0 | J35: =IF(AND($B$16=4,$B$17=4),B35+B34+B33+B32+D32+D33+D34+D35,0) -> 0 | K35: =IF(AND($B$16=4,$B$17=4),C35+C34+C33+C32,0) -> 0 | L35: =IF(AND($B$16=2,$B$17=2),B34+B35+D34+D35,0) -> 0 | M35: =IF(AND($B$16=2,$B$17=2),C34+C35,0) -> 0 | N35: =IF(AND($B$16=12,$B$17=12),B35+B34+B33+B32+B31+B30+B29+B28+B27+B26+B25+B24+D24+D25+D26+D27+D28+D29++D31+D32+D33+D34+D35,0) -> 0
B36: 0 | C36: 0 | D36: 0 | F36: 0 | G36: 0 | H36: 0 | I36: 0 | J36: =IF(AND($B$16=4,$B$17=1),B36+D36+B33+B34+B35+D33+D34+D35,0) -> 0 | K36: =IF(AND($B$16=4,$B$17=1),C36+C33+C34+C35,0) -> 0 | L36: =IF(AND($B$17=1,$B$16=2),B36+D36,0) -> 0 | M36: =IF(AND($B$17=1,$B$16=2),C36,0) -> 0 | N36: =IF(AND($B$16=12,$B$17=1),B36+B35+B34+B33+B32+B31+B30+B29+B28+B27+B26+B25+SUM(D25:D36),0) -> 0
B37: 0 | C37: 0 | D37: 0 | F37: 0 | G37: 0 | H37: 0 | I37: 0 | J37: =IF(AND($B$16=4,$B$17=2),B36+B37+B35+B34+D34+D35+D36+D37,0) -> 0 | K37: =IF(AND($B$16=4,$B$17=2),C34+C35+C36+C37,0) -> 0 | L37: =IF(AND($B$16=2,$B$17=2),B36+B37+D36+D37,0) -> 0 | M37: =IF(AND($B$16=2,$B$17=2),C36+C37,0) -> 0 | N37: =IF(AND($B$16=12,$B$17=2),B37+B36+B35+B34+B33+B32+B31+B30+B29+B28+B27+B26+SUM(D26:D37),0) -> 0
B38: 0 | C38: 0 | D38: 0 | F38: 0 | G38: 0 | H38: 0 | I38: 0 | J38: =IF(AND($B$16=4,$B$17=3),B35+B36+B37+B38+D35+D36+D37+D38,0) -> 0 | K38: =IF(AND($B$16=4,$B$17=3),C35+C36+C37+C38,0) -> 0 | L38: =IF(AND($B$16=2,$B$17=1),B37+B38+D37+D38,0) -> 0 | M38: =IF(AND($B$16=2,$B$17=1),C37+C38,0) -> 0 | N38: =IF(AND($B$16=12,$B$17=3),B38+B37+B36+B35+B34+B33+B32+B31+B30+B29+B28+B27+SUM(D27:D38),0) -> 0
B39: 0 | C39: 0 | D39: 0 | F39: 0 | G39: 0 | H39: 0 | I39: 0 | J39: =IF(AND($B$16=4,$B$17=4),B36+B37+B38+B39+D36+D37+D38+D39,0) -> 0 | K39: =IF(AND($B$16=4,$B$17=4),C36+C37+C38+C39,0) -> 0 | L39: =IF(AND($B$16=2,$B$17=2),B38+B39+D38+D39,0) -> 0 | M39: =IF(AND($B$16=2,$B$17=2),C38+C39,0) -> 0 | N39: =IF(AND($B$16=12,$B$17=4),B39+B38+B37+B36+B35+B34+B33+B32+B31+B30+B29+B28+SUM(D28:D39),0) -> 0
B40: 0 | C40: 0 | D40: 0 | F40: 0 | G40: 0 | H40: 0 | I40: 0 | J40: =IF(AND($B$16=4,$B$17=1),B37+B38+B39+B40+D37+D38+D39+D40,0) -> 0 | K40: =IF(AND($B$16=4,$B$17=1),C37+C38+C39+C40,0) -> 0 | L40: =IF(AND($B$16=2,$B$17=1),B39+B40+D39+D40,0) -> 0 | M40: =IF(AND($B$16=2,$B$17=1),C39+C40,0) -> 0 | N40: =IF(AND($B$16=12,$B$17=5),B40+B39+B38+B37+B36+B35+B34+B33+B32+B31+B30+B29+SUM(D29:D40),0) -> 0
B41: 0 | C41: 0 | D41: 0 | F41: 0 | G41: 0 | H41: 0 | I41: 0 | J41: =IF(AND($B$16=4,$B$17=2),B38+B39+B40+B41+D41+D40+D39+D38,0) -> 0 | K41: =IF(AND($B$16=4,$B$17=2),C38+C39+C40+C41,0) -> 0 | L41: =IF(AND($B$16=2,$B$17=2),B40+B41+D40+D41,0) -> 0 | M41: =IF(AND($B$16=2,$B$17=2),C40+C41,0) -> 0 | N41: =IF(AND($B$16=12,$B$17=6),B41+B40+B39+B38+B37+B36+B35+B34+B33+B32+B31+B30+SUM(D30:D41),0) -> 0
B42: 0 | C42: 0 | D42: 0 | F42: 0 | G42: 0 | H42: 0 | I42: 0 | J42: =IF(AND($B$16=4,$B$17=3),B42+B41+B40+B39+D39+D40+D41+D42,0) -> 0 | K42: =IF(AND($B$16=4,$B$17=3),C42+C41+C40+C39,0) -> 0 | L42: =IF(AND($B$16=2,$B$17=1),B41+B42+D41+D42,0) -> 0 | M42: =IF(AND($B$16=2,$B$17=1),C41+C42,0) -> 0 | N42: =IF(AND($B$16=12,$B$17=7),B42+B41+B40+B39+B38+B37+B36+B35+B34+B33+B32+B31+SUM(D31:D42),0) -> 0
B43: 0 | C43: 0 | D43: 0 | F43: 0 | G43: 0 | H43: 0 | I43: 0 | J43: =IF(AND($B$16=4,$B$17=4),B43+B42+B41+B40+D40+D41+D42+D43,0) -> 0 | K43: =IF(AND($B$16=4,$B$17=4),C43+C42+C41+C40,0) -> 0 | L43: =IF(AND($B$16=2,$B$17=2),B42+B43+D42+D43,0) -> 0 | M43: =IF(AND($B$16=2,$B$17=2),C42+C43,0) -> 0 | N43: =IF(AND($B$16=12,$B$17=8),B43+B42+B41+B40+B39+B38+B37+B36+B35+B34+B33+B32+SUM(D32:D43),0) -> 0
B44: 0 | C44: 0 | D44: 0 | F44: 0 | G44: 0 | H44: 0 | I44: 0 | J44: =IF(AND($B$16=4,$B$17=1),B44+B43+B42+B41+D41+D42+D43+D44,0) -> 0 | K44: =IF(AND($B$16=4,$B$17=1),C44+C43+C42+C41,0) -> 0 | L44: =IF(AND($B$16=2,$B$17=1),B43+B44+D43+D44,0) -> 0 | M44: =IF(AND($B$16=2,$B$17=1),C43+C44,0) -> 0 | N44: =IF(AND($B$16=12,$B$17=9),B44+B43+B42+B41+B40+B39+B38+B37+B36+B35+B34+B33+SUM(D33:D44),0) -> 0
B45: 0 | C45: 0 | D45: 0 | F45: 0 | G45: 0 | H45: 0 | I45: 0 | J45: =IF(AND($B$16=4,$B$17=2),B45+B44+B43+B42+D42+D43+D44+D45,0) -> 0 | K45: =IF(AND($B$16=4,$B$17=2),C45+C44+C43+C42,0) -> 0 | L45: =IF(AND($B$16=2,$B$17=2),B44+B45+D44+D45,0) -> 0 | M45: =IF(AND($B$16=2,$B$17=2),C44+C45,0) -> 0 | N45: =IF(AND($B$16=12,$B$17=10),B45+B44+B43+B42+B41+B40+B39+B38+B37+B36+B35+B34+SUM(D34:D45),0) -> 0
B46: 0 | C46: 0 | D46: 0 | F46: 0 | G46: 0 | H46: 0 | I46: 0 | J46: =IF(AND($B$16=4,$B$17=3),B46+B45+B44+B43+D43+D44+D45+D46,0) -> 0 | K46: =IF(AND($B$16=4,$B$17=3),C46+C45+C44+C43,0) -> 0 | L46: =IF(AND($B$16=2,$B$17=1),B45+B46+D45+D46,0) -> 0 | M46: =IF(AND($B$16=2,$B$17=1),C45+C46,0) -> 0 | N46: =IF(AND($B$16=12,$B$17=11),B46+B45+B44+B43+B42+B41+B40+B39+B38+B37+B36+B35+SUM(D35:D46),0) -> 0
B47: 0 | C47: 0 | D47: 0 | F47: 0 | G47: 0 | H47: 0 | I47: 0 | J47: =IF(AND($B$16=4,$B$17=4),B47+B46+B45+B44+D44+D45+D46+D47,0) -> 0 | K47: =IF(AND($B$16=4,$B$17=4),C47+C46+C45+C44,0) -> 0 | L47: =IF(AND($B$16=2,$B$17=2),B46+B47+D46+D47,0) -> 0 | M47: =IF(AND($B$16=2,$B$17=2),C46+C47,0) -> 0 | N47: =IF(AND($B$16=12,$B$17=12),B47+B46+B45+B44+B43+B42+B41+B40+B39+B38+B37+B36+SUM(D36:D47),0) -> 0
B48: 0 | C48: 0 | D48: 0 | F48: 0 | G48: 0 | H48: 0 | I48: 0 | J48: =IF(AND($B$16=4,$B$17=1),B48+D48+B45+B46+B47+D45+D46+D47,0) -> 0 | K48: =IF(AND($B$16=4,$B$17=1),C48+C45+C46+C47,0) -> 0 | L48: =IF(AND($B$17=1,$B$16=2),B48+D48,0) -> 0 | M48: =IF(AND($B$17=1,$B$16=2),C48,0) -> 0 | N48: =IF(AND($B$16=12,$B$17=1),B48+B47+B46+B45+B44+B43+B42+B41+B40+B39+B38+B37+SUM(D37:D48),0) -> 0
B49: 0 | C49: 0 | D49: 0 | F49: 0 | G49: 0 | H49: 0 | I49: 0 | J49: =IF(AND($B$16=4,$B$17=2),B48+B49+B47+B46+D46+D47+D48+D49,0) -> 0 | K49: =IF(AND($B$16=4,$B$17=2),C46+C47+C48+C49,0) -> 0 | L49: =IF(AND($B$16=2,$B$17=2),B48+B49+D48+D49,0) -> 0 | M49: =IF(AND($B$16=2,$B$17=2),C48+C49,0) -> 0 | N49: =IF(AND($B$16=12,$B$17=2),B49+B48+B47+B46+B45+B44+B43+B42+B41+B40+B39+B38+SUM(D38:D49),0) -> 0
B50: 0 | C50: 0 | D50: 0 | F50: 0 | G50: 0 | H50: 0 | I50: 0 | J50: =IF(AND($B$16=4,$B$17=3),B47+B48+B49+B50+D47+D48+D49+D50,0) -> 0 | K50: =IF(AND($B$16=4,$B$17=3),C47+C48+C49+C50,0) -> 0 | L50: =IF(AND($B$16=2,$B$17=1),B49+B50+D49+D50,0) -> 0 | M50: =IF(AND($B$16=2,$B$17=1),C49+C50,0) -> 0 | N50: =IF(AND($B$16=12,$B$17=3),B50+B49+B48+B47+B46+B45+B44+B43+B42+B41+B40+B39+SUM(D39:D50),0) -> 0
B51: 0 | C51: 0 | D51: 0 | F51: 0 | G51: 0 | H51: 0 | I51: 0 | J51: =IF(AND($B$16=4,$B$17=4),B48+B49+B50+B51+D48+D49+D50+D51,0) -> 0 | K51: =IF(AND($B$16=4,$B$17=4),C48+C49+C50+C51,0) -> 0 | L51: =IF(AND($B$16=2,$B$17=2),B50+B51+D50+D51,0) -> 0 | M51: =IF(AND($B$16=2,$B$17=2),C50+C51,0) -> 0 | N51: =IF(AND($B$16=12,$B$17=4),B51+B50+B49+B48+B47+B46+B45+B44+B43+B42+B41+B40+SUM(D40:D51),0) -> 0
B52: 0 | C52: 0 | D52: 0 | F52: 0 | G52: 0 | H52: 0 | I52: 0 | J52: =IF(AND($B$16=4,$B$17=1),B49+B50+B51+B52+D49+D50+D51+D52,0) -> 0 | K52: =IF(AND($B$16=4,$B$17=1),C49+C50+C51+C52,0) -> 0 | L52: =IF(AND($B$16=2,$B$17=1),B51+B52+D51+D52,0) -> 0 | M52: =IF(AND($B$16=2,$B$17=1),C51+C52,0) -> 0 | N52: =IF(AND($B$16=12,$B$17=5),B52+B51+B50+B49+B48+B47+B46+B45+B44+B43+B42+B41+SUM(D41:D52),0) -> 0
B53: 0 | C53: 0 | D53: 0 | F53: 0 | G53: 0 | H53: 0 | I53: 0 | J53: =IF(AND($B$16=4,$B$17=2),B50+B51+B52+B53+D53+D52+D51+D50,0) -> 0 | K53: =IF(AND($B$16=4,$B$17=2),C50+C51+C52+C53,0) -> 0 | L53: =IF(AND($B$16=2,$B$17=2),B52+B53+D52+D53,0) -> 0 | M53: =IF(AND($B$16=2,$B$17=2),C52+C53,0) -> 0 | N53: =IF(AND($B$16=12,$B$17=6),B53+B52+B51+B50+B49+B48+B47+B46+B45+B44+B43+B42+SUM(D42:D53),0) -> 0
B54: 0 | C54: 0 | D54: 0 | F54: 0 | G54: 0 | H54: 0 | I54: 0 | J54: =IF(AND($B$16=4,$B$17=3),B54+B53+B52+B51+D51+D52+D53+D54,0) -> 0 | K54: =IF(AND($B$16=4,$B$17=3),C54+C53+C52+C51,0) -> 0 | L54: =IF(AND($B$16=2,$B$17=1),B53+B54+D53+D54,0) -> 0 | M54: =IF(AND($B$16=2,$B$17=1),C53+C54,0) -> 0 | N54: =IF(AND($B$16=12,$B$17=7),B54+B53+B52+B51+B50+B49+B48+B47+B46+B45+B44+B43+SUM(D43:D54),0) -> 0
B55: 0 | C55: 0 | D55: 0 | F55: 0 | G55: 0 | H55: 0 | I55: 0 | J55: =IF(AND($B$16=4,$B$17=4),B55+B54+B53+B52+D52+D53+D54+D55,0) -> 0 | K55: =IF(AND($B$16=4,$B$17=4),C55+C54+C53+C52,0) -> 0 | L55: =IF(AND($B$16=2,$B$17=2),B54+B55+D54+D55,0) -> 0 | M55: =IF(AND($B$16=2,$B$17=2),C54+C55,0) -> 0 | N55: =IF(AND($B$16=12,$B$17=8),B55+B54+B53+B52+B51+B50+B49+B48+B47+B46+B45+B44+SUM(D44:D55),0) -> 0
B56: 0 | C56: 0 | D56: 0 | F56: 0 | G56: =IF($B$16=4,J56,IF($B$16=2,L56,IF($B$16=12,N56,0))) -> 0 | H56: =IF($B$16=4,K56,IF($B$16=2,M56,IF($B$16=12,O56,0))) -> 0 | I56: =G56+H56 -> 0 | J56: =IF(AND($B$16=4,$B$17=1),B56+B55+B54+B53+D53+D54+D55+D56,0) -> 0 | K56: =IF(AND($B$16=4,$B$17=1),C56+C55+C54+C53,0) -> 0 | L56: =IF(AND($B$16=2,$B$17=1),B55+B56+D55+D56,0) -> 0 | M56: =IF(AND($B$16=2,$B$17=1),C55+C56,0) -> 0 | N56: =IF(AND($B$16=12,$B$17=9),B56+B55+B54+B53+B52+B51+B50+B49+B48+B47+B46+B45+SUM(D45:D56),0) -> 0
B57: =F56*$F$10/100 -> 0 | C57: =IF(AND(F56>0,$B$11="A"),$F$11-B57,IF(AND(F56>0,$B$11="S"),$F$11,0)) -> 0 | D57: =IF(F56<=0,0,$B$12*($B$14/$B$16)/100) -> 0 | E57: =IF(AND(F56>0,$B$11="A"),E56,IF(AND(F56>0,$B$11="S"),B57+C57+D57," ")) ->  | F57: 0 | G57: 0 | H57: 0 | I57: 0 | J57: =IF(AND($B$16=4,$B$17=2),B57+B56+B55+B54+D54+D55+D56+D57,0) -> 0 | K57: =IF(AND($B$16=4,$B$17=2),C57+C56+C55+C54,0) -> 0 | L57: =IF(AND($B$16=2,$B$17=2),B56+B57+D56+D57,0) -> 0 | M57: =IF(AND($B$16=2,$B$17=2),C56+C57,0) -> 0 | N57: =IF(AND($B$16=12,$B$17=10),B57+B56+B55+B54+B53+B52+B51+B50+B49+B48+B47+B46+SUM(D46:D57),0) -> 0
A58: =IF(F57<=0,"",A57+1) ->  | B58: 0 | C58: 0 | D58: 0 | F58: 0 | G58: 0 | H58: 0 | I58: 0 | J58: =IF(AND($B$16=4,$B$17=3),B58+B57+B56+B55+D55+D56+D57+D58,0) -> 0 | K58: =IF(AND($B$16=4,$B$17=3),C58+C57+C56+C55,0) -> 0 | L58: =IF(AND($B$16=2,$B$17=1),B57+B58+D57+D58,0) -> 0 | M58: =IF(AND($B$16=2,$B$17=1),C57+C58,0) -> 0 | N58: =IF(AND($B$16=12,$B$17=11),B58+B57+B56+B55+B54+B53+B52+B51+B50+B49+B48+B47+SUM(D47:D58),0) -> 0
B59: 0 | C59: 0 | D59: 0 | F59: 0 | G59: 0 | H59: 0 | I59: 0 | J59: =IF(AND($B$16=4,$B$17=4),B59+B58+B57+B56+D56+D57+D58+D59,0) -> 0 | K59: =IF(AND($B$16=4,$B$17=4),C59+C58+C57+C56,0) -> 0 | L59: =IF(AND($B$16=2,$B$17=2),B58+B59+D58+D59,0) -> 0 | M59: =IF(AND($B$16=2,$B$17=2),C58+C59,0) -> 0 | N59: =IF(AND($B$16=12,$B$17=12),B59+B58+B57+B56+B55+B54+B53+B52+B51+B50+B49+B48+SUM(D48:D59),0) -> 0
B60: 0 | C60: 0 | D60: 0 | F60: 0 | G60: 0 | H60: 0 | I60: 0 | J60: =IF(AND($B$16=4,$B$17=1),B60+D60+B57+B58+B59+D57+D58+D59,0) -> 0 | K60: =IF(AND($B$16=4,$B$17=1),C60+C57+C58+C59,0) -> 0 | L60: =IF(AND($B$17=1,$B$16=2),B60+D60,0) -> 0 | M60: =IF(AND($B$17=1,$B$16=2),C60,0) -> 0 | N60: =IF(AND($B$16=12,$B$17=1),B60+B59+B58+B57+B56+B55+B54+B53+B52+B51+B50+B49+SUM(D49:D60),0) -> 0
B61: 0 | C61: 0 | D61: 0 | F61: 0 | G61: 0 | H61: 0 | I61: 0 | J61: =IF(AND($B$16=4,$B$17=2),B60+B61+B59+B58+D58+D59+D60+D61,0) -> 0 | K61: =IF(AND($B$16=4,$B$17=2),C58+C59+C60+C61,0) -> 0 | L61: =IF(AND($B$16=2,$B$17=2),B60+B61+D60+D61,0) -> 0 | M61: =IF(AND($B$16=2,$B$17=2),C60+C61,0) -> 0 | N61: =IF(AND($B$16=12,$B$17=2),B61+B60+B59+B58+B57+B56+B55+B54+B53+B52+B51+B50+SUM(D50:D61),0) -> 0
B62: 0 | C62: 0 | D62: 0 | F62: 0 | G62: 0 | H62: 0 | I62: 0 | J62: =IF(AND($B$16=4,$B$17=3),B59+B60+B61+B62+D59+D60+D61+D62,0) -> 0 | K62: =IF(AND($B$16=4,$B$17=3),C59+C60+C61+C62,0) -> 0 | L62: =IF(AND($B$16=2,$B$17=1),B61+B62+D61+D62,0) -> 0 | M62: =IF(AND($B$16=2,$B$17=1),C61+C62,0) -> 0 | N62: =IF(AND($B$16=12,$B$17=3),B62+B61+B60+B59+B58+B57+B56+B55+B54+B53+B52+B51+SUM(D51:D62),0) -> 0
B63: 0 | C63: 0 | D63: 0 | F63: 0 | G63: 0 | H63: 0 | I63: 0 | J63: =IF(AND($B$16=4,$B$17=4),B60+B61+B62+B63+D60+D61+D62+D63,0) -> 0 | K63: =IF(AND($B$16=4,$B$17=4),C60+C61+C62+C63,0) -> 0 | L63: =IF(AND($B$16=2,$B$17=2),B62+B63+D62+D63,0) -> 0 | M63: =IF(AND($B$16=2,$B$17=2),C62+C63,0) -> 0 | N63: =IF(AND($B$16=12,$B$17=4),B63+B62+B61+B60+B59+B58+B57+B56+B55+B54+B53+B52+SUM(D52:D63),0) -> 0
B64: 0 | C64: 0 | D64: 0 | F64: 0 | G64: 0 | H64: 0 | I64: 0 | J64: =IF(AND($B$16=4,$B$17=1),B61+B62+B63+B64+D61+D62+D63+D64,0) -> 0 | K64: =IF(AND($B$16=4,$B$17=1),C61+C62+C63+C64,0) -> 0 | L64: =IF(AND($B$16=2,$B$17=1),B63+B64+D63+D64,0) -> 0 | M64: =IF(AND($B$16=2,$B$17=1),C63+C64,0) -> 0 | N64: =IF(AND($B$16=12,$B$17=5),B64+B63+B62+B61+B60+B59+B58+B57+B56+B55+B54+B53+SUM(D53:D64),0) -> 0
B65: 0 | C65: 0 | D65: 0 | F65: 0 | G65: 0 | H65: 0 | I65: 0 | J65: =IF(AND($B$16=4,$B$17=2),B62+B63+B64+B65+D65+D64+D63+D62,0) -> 0 | K65: =IF(AND($B$16=4,$B$17=2),C62+C63+C64+C65,0) -> 0 | L65: =IF(AND($B$16=2,$B$17=2),B64+B65+D64+D65,0) -> 0 | M65: =IF(AND($B$16=2,$B$17=2),C64+C65,0) -> 0 | N65: =IF(AND($B$16=12,$B$17=6),B65+B64+B63+B62+B61+B60+B59+B58+B57+B56+B55+B54+SUM(D54:D65),0) -> 0
B66: 0 | C66: 0 | D66: 0 | F66: 0 | G66: 0 | H66: 0 | I66: 0 | J66: =IF(AND($B$16=4,$B$17=3),B66+B65+B64+B63+D63+D64+D65+D66,0) -> 0 | K66: =IF(AND($B$16=4,$B$17=3),C66+C65+C64+C63,0) -> 0 | L66: =IF(AND($B$16=2,$B$17=1),B65+B66+D65+D66,0) -> 0 | M66: =IF(AND($B$16=2,$B$17=1),C65+C66,0) -> 0 | N66: =IF(AND($B$16=12,$B$17=7),B66+B65+B64+B63+B62+B61+B60+B59+B58+B57+B56+B55+SUM(D55:D66),0) -> 0
B67: 0 | C67: 0 | D67: 0 | F67: =IF(ROUND((F66-C67),)<=0,0,F66-C67) -> 0 | G67: 0 | H67: 0 | I67: 0 | J67: =IF(AND($B$16=4,$B$17=4),B67+B66+B65+B64+D64+D65+D66+D67,0) -> 0 | K67: =IF(AND($B$16=4,$B$17=4),C67+C66+C65+C64,0) -> 0 | L67: =IF(AND($B$16=2,$B$17=2),B66+B67+D66+D67,0) -> 0 | M67: =IF(AND($B$16=2,$B$17=2),C66+C67,0) -> 0 | N67: =IF(AND($B$16=12,$B$17=8),B67+B66+B65+B64+B63+B62+B61+B60+B59+B58+B57+B56+SUM(D56:D67),0) -> 0
B68: 0 | C68: 0 | D68: 0 | F68: 0 | G68: 0 | H68: 0 | I68: 0 | J68: =IF(AND($B$16=4,$B$17=1),B68+B67+B66+B65+D65+D66+D67+D68,0) -> 0 | K68: =IF(AND($B$16=4,$B$17=1),C68+C67+C66+C65,0) -> 0 | L68: =IF(AND($B$16=2,$B$17=1),B67+B68+D67+D68,0) -> 0 | M68: =IF(AND($B$16=2,$B$17=1),C67+C68,0) -> 0 | N68: =IF(AND($B$16=12,$B$17=9),B68+B67+B66+B65+B64+B63+B62+B61+B60+B59+B58+B57+SUM(D57:D68),0) -> 0
B69: 0 | C69: 0 | D69: 0 | F69: 0 | G69: 0 | H69: 0 | I69: 0 | J69: =IF(AND($B$16=4,$B$17=2),B69+B68+B67+B66+D66+D67+D68+D69,0) -> 0 | K69: =IF(AND($B$16=4,$B$17=2),C69+C68+C67+C66,0) -> 0 | L69: =IF(AND($B$16=2,$B$17=2),B68+B69+D68+D69,0) -> 0 | M69: =IF(AND($B$16=2,$B$17=2),C68+C69,0) -> 0 | N69: =IF(AND($B$16=12,$B$17=10),B69+B68+B67+B66+B65+B64+B63+B62+B61+B60+B59+B58+SUM(D58:D69),0) -> 0
B70: 0 | C70: 0 | D70: 0 | F70: 0 | G70: 0 | H70: 0 | I70: 0 | J70: =IF(AND($B$16=4,$B$17=3),B70+B69+B68+B67+D67+D68+D69+D70,0) -> 0 | K70: =IF(AND($B$16=4,$B$17=3),C70+C69+C68+C67,0) -> 0 | L70: =IF(AND($B$16=2,$B$17=1),B69+B70+D69+D70,0) -> 0 | M70: =IF(AND($B$16=2,$B$17=1),C69+C70,0) -> 0 | N70: =IF(AND($B$16=12,$B$17=11),B70+B69+B68+B67+B66+B65+B64+B63+B62+B61+B60+B59+SUM(D59:D70),0) -> 0
B71: 0 | C71: 0 | D71: 0 | F71: 0 | G71: 0 | H71: 0 | I71: 0 | J71: =IF(AND($B$16=4,$B$17=4),B71+B70+B69+B68+D68+D69+D70+D71,0) -> 0 | K71: =IF(AND($B$16=4,$B$17=4),C71+C70+C69+C68,0) -> 0 | L71: =IF(AND($B$16=2,$B$17=2),B70+B71+D70+D71,0) -> 0 | M71: =IF(AND($B$16=2,$B$17=2),C70+C71,0) -> 0 | N71: =IF(AND($B$16=12,$B$17=12),B71+B70+B69+B68+B67+B66+B65+B64+B63+B62+B61+B60+SUM(D60:D71),0) -> 0
B72: 0 | C72: 0 | D72: 0 | F72: 0 | G72: 0 | H72: 0 | I72: 0 | J72: =IF(AND($B$16=4,$B$17=1),B72+D72+B69+B70+B71+D69+D70+D71,0) -> 0 | K72: =IF(AND($B$16=4,$B$17=1),C72+C69+C70+C71,0) -> 0 | L72: =IF(AND($B$17=1,$B$16=2),B72+D72,0) -> 0 | M72: =IF(AND($B$17=1,$B$16=2),C72,0) -> 0 | N72: =IF(AND($B$16=12,$B$17=1),B72+B71+B70+B69+B68+B67+B66+B65+B64+B63+B62+B61+SUM(D61:D72),0) -> 0
B73: 0 | C73: 0 | D73: 0 | F73: 0 | G73: 0 | H73: 0 | I73: 0 | J73: =IF(AND($B$16=4,$B$17=2),B72+B73+B71+B70+D70+D71+D72+D73,0) -> 0 | K73: =IF(AND($B$16=4,$B$17=2),C70+C71+C72+C73,0) -> 0 | L73: =IF(AND($B$16=2,$B$17=2),B72+B73+D72+D73,0) -> 0 | M73: =IF(AND($B$16=2,$B$17=2),C72+C73,0) -> 0 | N73: =IF(AND($B$16=12,$B$17=2),B73+B72+B71+B70+B69+B68+B67+B66+B65+B64+B63+B62+SUM(D62:D73),0) -> 0
B74: 0 | C74: 0 | D74: 0 | F74: 0 | G74: 0 | H74: 0 | I74: 0 | J74: =IF(AND($B$16=4,$B$17=3),B71+B72+B73+B74+D71+D72+D73+D74,0) -> 0 | K74: =IF(AND($B$16=4,$B$17=3),C71+C72+C73+C74,0) -> 0 | L74: =IF(AND($B$16=2,$B$17=1),B73+B74+D73+D74,0) -> 0 | M74: =IF(AND($B$16=2,$B$17=1),C73+C74,0) -> 0 | N74: =IF(AND($B$16=12,$B$17=3),B74+B73+B72+B71+B70+B69+B68+B67+B66+B65+B64+B63+SUM(D63:D74),0) -> 0
B75: 0 | C75: 0 | D75: 0 | F75: 0 | G75: 0 | H75: 0 | I75: 0 | J75: =IF(AND($B$16=4,$B$17=4),B72+B73+B74+B75+D72+D73+D74+D75,0) -> 0 | K75: =IF(AND($B$16=4,$B$17=4),C72+C73+C74+C75,0) -> 0 | L75: =IF(AND($B$16=2,$B$17=2),B74+B75+D74+D75,0) -> 0 | M75: =IF(AND($B$16=2,$B$17=2),C74+C75,0) -> 0 | N75: =IF(AND($B$16=12,$B$17=4),B75+B74+B73+B72+B71+B70+B69+B68+B67+B66+B65+B64+SUM(D64:D75),0) -> 0
B76: 0 | C76: 0 | D76: 0 | F76: 0 | G76: 0 | H76: 0 | I76: 0 | J76: =IF(AND($B$16=4,$B$17=1),B73+B74+B75+B76+D73+D74+D75+D76,0) -> 0 | K76: =IF(AND($B$16=4,$B$17=1),C73+C74+C75+C76,0) -> 0 | L76: =IF(AND($B$16=2,$B$17=1),B75+B76+D75+D76,0) -> 0 | M76: =IF(AND($B$16=2,$B$17=1),C75+C76,0) -> 0 | N76: =IF(AND($B$16=12,$B$17=5),B76+B75+B74+B73+B72+B71+B70+B69+B68+B67+B66+B65+SUM(D65:D76),0) -> 0
B77: 0 | C77: 0 | D77: 0 | F77: 0 | G77: 0 | H77: 0 | I77: 0 | J77: =IF(AND($B$16=4,$B$17=2),B74+B75+B76+B77+D77+D76+D75+D74,0) -> 0 | K77: =IF(AND($B$16=4,$B$17=2),C74+C75+C76+C77,0) -> 0 | L77: =IF(AND($B$16=2,$B$17=2),B76+B77+D76+D77,0) -> 0 | M77: =IF(AND($B$16=2,$B$17=2),C76+C77,0) -> 0 | N77: =IF(AND($B$16=12,$B$17=6),B77+B76+B75+B74+B73+B72+B71+B70+B69+B68+B67+B66+SUM(D66:D77),0) -> 0
B78: 0 | C78: 0 | D78: 0 | F78: 0 | G78: 0 | H78: 0 | I78: 0 | J78: =IF(AND($B$16=4,$B$17=3),B78+B77+B76+B75+D75+D76+D77+D78,0) -> 0 | K78: =IF(AND($B$16=4,$B$17=3),C78+C77+C76+C75,0) -> 0 | L78: =IF(AND($B$16=2,$B$17=1),B77+B78+D77+D78,0) -> 0 | M78: =IF(AND($B$16=2,$B$17=1),C77+C78,0) -> 0 | N78: =IF(AND($B$16=12,$B$17=7),B78+B77+B76+B75+B74+B73+B72+B71+B70+B69+B68+B67+SUM(D67:D78),0) -> 0
B79: 0 | C79: 0 | D79: 0 | F79: 0 | G79: 0 | H79: 0 | I79: 0 | J79: =IF(AND($B$16=4,$B$17=4),B79+B78+B77+B76+D76+D77+D78+D79,0) -> 0 | K79: =IF(AND($B$16=4,$B$17=4),C79+C78+C77+C76,0) -> 0 | L79: =IF(AND($B$16=2,$B$17=2),B78+B79+D78+D79,0) -> 0 | M79: =IF(AND($B$16=2,$B$17=2),C78+C79,0) -> 0 | N79: =IF(AND($B$16=12,$B$17=8),B79+B78+B77+B76+B75+B74+B73+B72+B71+B70+B69+B68+SUM(D68:D79),0) -> 0
B80: 0 | C80: 0 | D80: 0 | F80: 0 | G80: 0 | H80: 0 | I80: 0 | J80: =IF(AND($B$16=4,$B$17=1),B80+B79+B78+B77+D77+D78+D79+D80,0) -> 0 | K80: =IF(AND($B$16=4,$B$17=1),C80+C79+C78+C77,0) -> 0 | L80: =IF(AND($B$16=2,$B$17=1),B79+B80+D79+D80,0) -> 0 | M80: =IF(AND($B$16=2,$B$17=1),C79+C80,0) -> 0 | N80: =IF(AND($B$16=12,$B$17=9),B80+B79+B78+B77+B76+B75+B74+B73+B72+B71+B70+B69+SUM(D69:D80),0) -> 0
B81: 0 | C81: 0 | D81: 0 | F81: 0 | G81: 0 | H81: 0 | I81: 0 | J81: =IF(AND($B$16=4,$B$17=2),B81+B80+B79+B78+D78+D79+D80+D81,0) -> 0 | K81: =IF(AND($B$16=4,$B$17=2),C81+C80+C79+C78,0) -> 0 | L81: =IF(AND($B$16=2,$B$17=2),B80+B81+D80+D81,0) -> 0 | M81: =IF(AND($B$16=2,$B$17=2),C80+C81,0) -> 0 | N81: =IF(AND($B$16=12,$B$17=10),B81+B80+B79+B78+B77+B76+B75+B74+B73+B72+B71+B70+SUM(D70:D81),0) -> 0
B82: 0 | C82: 0 | D82: 0 | F82: 0 | G82: 0 | H82: 0 | I82: 0 | J82: =IF(AND($B$16=4,$B$17=3),B82+B81+B80+B79+D79+D80+D81+D82,0) -> 0 | K82: =IF(AND($B$16=4,$B$17=3),C82+C81+C80+C79,0) -> 0 | L82: =IF(AND($B$16=2,$B$17=1),B81+B82+D81+D82,0) -> 0 | M82: =IF(AND($B$16=2,$B$17=1),C81+C82,0) -> 0 | N82: =IF(AND($B$16=12,$B$17=11),B82+B81+B80+B79+B78+B77+B76+B75+B74+B73+B72+B71+SUM(D71:D82),0) -> 0
B83: 0 | C83: 0 | D83: 0 | F83: 0 | G83: 0 | H83: 0 | I83: 0 | J83: =IF(AND($B$16=4,$B$17=4),B83+B82+B81+B80+D80+D81+D82+D83,0) -> 0 | K83: =IF(AND($B$16=4,$B$17=4),C83+C82+C81+C80,0) -> 0 | L83: =IF(AND($B$16=2,$B$17=2),B82+B83+D82+D83,0) -> 0 | M83: =IF(AND($B$16=2,$B$17=2),C82+C83,0) -> 0 | N83: =IF(AND($B$16=12,$B$17=12),B83+B82+B81+B80+B79+B78+B77+B76+B75+B74+B73+B72+SUM(D72:D83),0) -> 0
B84: 0 | C84: 0 | D84: 0 | F84: 0 | G84: 0 | H84: 0 | I84: 0 | J84: =IF(AND($B$16=4,$B$17=1),B84+D84+B81+B82+B83+D81+D82+D83,0) -> 0 | K84: =IF(AND($B$16=4,$B$17=1),C84+C81+C82+C83,0) -> 0 | L84: =IF(AND($B$17=1,$B$16=2),B84+D84,0) -> 0 | M84: =IF(AND($B$17=1,$B$16=2),C84,0) -> 0 | N84: =IF(AND($B$16=12,$B$17=1),B84+B83+B82+B81+B80+B79+B78+B77+B76+B75+B74+B73+SUM(D73:D84),0) -> 0
B85: 0 | C85: 0 | D85: 0 | F85: 0 | G85: 0 | H85: 0 | I85: 0 | J85: =IF(AND($B$16=4,$B$17=2),B84+B85+B83+B82+D82+D83+D84+D85,0) -> 0 | K85: =IF(AND($B$16=4,$B$17=2),C82+C83+C84+C85,0) -> 0 | L85: =IF(AND($B$16=2,$B$17=2),B84+B85+D84+D85,0) -> 0 | M85: =IF(AND($B$16=2,$B$17=2),C84+C85,0) -> 0 | N85: =IF(AND($B$16=12,$B$17=2),B85+B84+B83+B82+B81+B80+B79+B78+B77+B76+B75+B74+SUM(D74:D85),0) -> 0
B86: 0 | C86: 0 | D86: 0 | F86: 0 | G86: 0 | H86: 0 | I86: 0 | J86: =IF(AND($B$16=4,$B$17=3),B83+B84+B85+B86+D83+D84+D85+D86,0) -> 0 | K86: =IF(AND($B$16=4,$B$17=3),C83+C84+C85+C86,0) -> 0 | L86: =IF(AND($B$16=2,$B$17=1),B85+B86+D85+D86,0) -> 0 | M86: =IF(AND($B$16=2,$B$17=1),C85+C86,0) -> 0 | N86: =IF(AND($B$16=12,$B$17=3),B86+B85+B84+B83+B82+B81+B80+B79+B78+B77+B76+B75+SUM(D75:D86),0) -> 0
B87: 0 | C87: 0 | D87: 0 | F87: 0 | G87: 0 | H87: 0 | I87: 0 | J87: =IF(AND($B$16=4,$B$17=4),B84+B85+B86+B87+D84+D85+D86+D87,0) -> 0 | K87: =IF(AND($B$16=4,$B$17=4),C84+C85+C86+C87,0) -> 0 | L87: =IF(AND($B$16=2,$B$17=2),B86+B87+D86+D87,0) -> 0 | M87: =IF(AND($B$16=2,$B$17=2),C86+C87,0) -> 0 | N87: =IF(AND($B$16=12,$B$17=4),B87+B86+B85+B84+B83+B82+B81+B80+B79+B78+B77+B76+SUM(D76:D87),0) -> 0
B88: 0 | C88: 0 | D88: 0 | F88: 0 | G88: =IF($B$16=4,J88,IF($B$16=2,L88,IF($B$16=12,N88,0))) -> 0 | H88: =IF($B$16=4,K88,IF($B$16=2,M88,IF($B$16=12,O88,0))) -> 0 | I88: =G88+H88 -> 0 | J88: =IF(AND($B$16=4,$B$17=1),B85+B86+B87+B88+D85+D86+D87+D88,0) -> 0 | K88: =IF(AND($B$16=4,$B$17=1),C85+C86+C87+C88,0) -> 0 | L88: =IF(AND($B$16=2,$B$17=1),B87+B88+D87+D88,0) -> 0 | M88: =IF(AND($B$16=2,$B$17=1),C87+C88,0) -> 0 | N88: =IF(AND($B$16=12,$B$17=5),B88+B87+B86+B85+B84+B83+B82+B81+B80+B79+B78+B77+SUM(D77:D88),0) -> 0
B89: =F88*$F$10/100 -> 0 | C89: =IF(AND(F88>0,$B$11="A"),$F$11-B89,IF(AND(F88>0,$B$11="S"),$F$11,0)) -> 0 | D89: =IF(F88<=0,0,$B$12*($B$14/$B$16)/100) -> 0 | E89: =IF(AND(F88>0,$B$11="A"),E88,IF(AND(F88>0,$B$11="S"),B89+C89+D89," ")) ->  | F89: 0 | G89: 0 | H89: 0 | I89: 0 | J89: =IF(AND($B$16=4,$B$17=2),B86+B87+B88+B89+D89+D88+D87+D86,0) -> 0 | K89: =IF(AND($B$16=4,$B$17=2),C86+C87+C88+C89,0) -> 0 | L89: =IF(AND($B$16=2,$B$17=2),B88+B89+D88+D89,0) -> 0 | M89: =IF(AND($B$16=2,$B$17=2),C88+C89,0) -> 0 | N89: =IF(AND($B$16=12,$B$17=6),B89+B88+B87+B86+B85+B84+B83+B82+B81+B80+B79+B78+SUM(D78:D89),0) -> 0
A90: =IF(F89<=0,"",A89+1) ->  | B90: 0 | C90: 0 | D90: 0 | F90: 0 | G90: 0 | H90: 0 | I90: 0 | J90: =IF(AND($B$16=4,$B$17=3),B90+B89+B88+B87+D87+D88+D89+D90,0) -> 0 | K90: =IF(AND($B$16=4,$B$17=3),C90+C89+C88+C87,0) -> 0 | L90: =IF(AND($B$16=2,$B$17=1),B89+B90+D89+D90,0) -> 0 | M90: =IF(AND($B$16=2,$B$17=1),C89+C90,0) -> 0 | N90: =IF(AND($B$16=12,$B$17=7),B90+B89+B88+B87+B86+B85+B84+B83+B82+B81+B80+B79+SUM(D79:D90),0) -> 0
B91: 0 | C91: 0 | D91: 0 | F91: 0 | G91: 0 | H91: 0 | I91: 0 | J91: =IF(AND($B$16=4,$B$17=4),B91+B90+B89+B88+D88+D89+D90+D91,0) -> 0 | K91: =IF(AND($B$16=4,$B$17=4),C91+C90+C89+C88,0) -> 0 | L91: =IF(AND($B$16=2,$B$17=2),B90+B91+D90+D91,0) -> 0 | M91: =IF(AND($B$16=2,$B$17=2),C90+C91,0) -> 0 | N91: =IF(AND($B$16=12,$B$17=8),B91+B90+B89+B88+B87+B86+B85+B84+B83+B82+B81+B80+SUM(D80:D91),0) -> 0
B92: 0 | C92: 0 | D92: 0 | F92: 0 | G92: 0 | H92: 0 | I92: 0 | J92: =IF(AND($B$16=4,$B$17=1),B92+B91+B90+B89+D89+D90+D91+D92,0) -> 0 | K92: =IF(AND($B$16=4,$B$17=1),C92+C91+C90+C89,0) -> 0 | L92: =IF(AND($B$16=2,$B$17=1),B91+B92+D91+D92,0) -> 0 | M92: =IF(AND($B$16=2,$B$17=1),C91+C92,0) -> 0 | N92: =IF(AND($B$16=12,$B$17=9),B92+B91+B90+B89+B88+B87+B86+B85+B84+B83+B82+B81+SUM(D81:D92),0) -> 0
B93: 0 | C93: 0 | D93: 0 | F93: 0 | G93: 0 | H93: 0 | I93: 0 | J93: =IF(AND($B$16=4,$B$17=2),B93+B92+B91+B90+D90+D91+D92+D93,0) -> 0 | K93: =IF(AND($B$16=4,$B$17=2),C93+C92+C91+C90,0) -> 0 | L93: =IF(AND($B$16=2,$B$17=2),B92+B93+D92+D93,0) -> 0 | M93: =IF(AND($B$16=2,$B$17=2),C92+C93,0) -> 0 | N93: =IF(AND($B$16=12,$B$17=10),B93+B92+B91+B90+B89+B88+B87+B86+B85+B84+B83+B82+SUM(D82:D93),0) -> 0
B94: 0 | C94: 0 | D94: 0 | F94: 0 | G94: 0 | H94: 0 | I94: 0 | J94: =IF(AND($B$16=4,$B$17=3),B94+B93+B92+B91+D91+D92+D93+D94,0) -> 0 | K94: =IF(AND($B$16=4,$B$17=3),C94+C93+C92+C91,0) -> 0 | L94: =IF(AND($B$16=2,$B$17=1),B93+B94+D93+D94,0) -> 0 | M94: =IF(AND($B$16=2,$B$17=1),C93+C94,0) -> 0 | N94: =IF(AND($B$16=12,$B$17=11),B94+B93+B92+B91+B90+B89+B88+B87+B86+B85+B84+B83+SUM(D83:D94),0) -> 0
B95: 0 | C95: 0 | D95: 0 | F95: 0 | G95: 0 | H95: 0 | I95: 0 | J95: =IF(AND($B$16=4,$B$17=4),B95+B94+B93+B92+D92+D93+D94+D95,0) -> 0 | K95: =IF(AND($B$16=4,$B$17=4),C95+C94+C93+C92,0) -> 0 | L95: =IF(AND($B$16=2,$B$17=2),B94+B95+D94+D95,0) -> 0 | M95: =IF(AND($B$16=2,$B$17=2),C94+C95,0) -> 0 | N95: =IF(AND($B$16=12,$B$17=12),B95+B94+B93+B92+B91+B90+B89+B88+B87+B86+B85+B84+SUM(D84:D95),0) -> 0
B96: 0 | C96: 0 | D96: 0 | F96: 0 | G96: 0 | H96: 0 | I96: 0 | J96: =IF(AND($B$16=4,$B$17=1),B96+D96+B93+B94+B95+D93+D94+D95,0) -> 0 | K96: =IF(AND($B$16=4,$B$17=1),C96+C93+C94+C95,0) -> 0 | L96: =IF(AND($B$17=1,$B$16=2),B96+D96,0) -> 0 | M96: =IF(AND($B$17=1,$B$16=2),C96,0) -> 0 | N96: =IF(AND($B$16=12,$B$17=1),B96+B95+B94+B93+B92+B91+B90+B89+B88+B87+B86+B85+SUM(D85:D96),0) -> 0
B97: 0 | C97: 0 | D97: 0 | F97: 0 | G97: 0 | H97: 0 | I97: 0 | J97: =IF(AND($B$16=4,$B$17=2),B96+B97+B95+B94+D94+D95+D96+D97,0) -> 0 | K97: =IF(AND($B$16=4,$B$17=2),C94+C95+C96+C97,0) -> 0 | L97: =IF(AND($B$16=2,$B$17=2),B96+B97+D96+D97,0) -> 0 | M97: =IF(AND($B$16=2,$B$17=2),C96+C97,0) -> 0 | N97: =IF(AND($B$16=12,$B$17=2),B97+B96+B95+B94+B93+B92+B91+B90+B89+B88+B87+B86+SUM(D86:D97),0) -> 0
B98: 0 | C98: 0 | D98: 0 | F98: 0 | G98: 0 | H98: 0 | I98: 0 | J98: =IF(AND($B$16=4,$B$17=3),B95+B96+B97+B98+D95+D96+D97+D98,0) -> 0 | K98: =IF(AND($B$16=4,$B$17=3),C95+C96+C97+C98,0) -> 0 | L98: =IF(AND($B$16=2,$B$17=1),B97+B98+D97+D98,0) -> 0 | M98: =IF(AND($B$16=2,$B$17=1),C97+C98,0) -> 0 | N98: =IF(AND($B$16=12,$B$17=3),B98+B97+B96+B95+B94+B93+B92+B91+B90+B89+B88+B87+SUM(D87:D98),0) -> 0
B99: 0 | C99: 0 | D99: 0 | F99: =IF(ROUND((F98-C99),)<=0,0,F98-C99) -> 0 | G99: 0 | H99: 0 | I99: 0 | J99: =IF(AND($B$16=4,$B$17=4),B96+B97+B98+B99+D96+D97+D98+D99,0) -> 0 | K99: =IF(AND($B$16=4,$B$17=4),C96+C97+C98+C99,0) -> 0 | L99: =IF(AND($B$16=2,$B$17=2),B98+B99+D98+D99,0) -> 0 | M99: =IF(AND($B$16=2,$B$17=2),C98+C99,0) -> 0 | N99: =IF(AND($B$16=12,$B$17=4),B99+B98+B97+B96+B95+B94+B93+B92+B91+B90+B89+B88+SUM(D88:D99),0) -> 0
B100: 0 | C100: 0 | D100: 0 | F100: 0 | G100: 0 | H100: 0 | I100: 0 | J100: =IF(AND($B$16=4,$B$17=1),B97+B98+B99+B100+D97+D98+D99+D100,0) -> 0 | K100: =IF(AND($B$16=4,$B$17=1),C97+C98+C99+C100,0) -> 0 | L100: =IF(AND($B$16=2,$B$17=1),B99+B100+D99+D100,0) -> 0 | M100: =IF(AND($B$16=2,$B$17=1),C99+C100,0) -> 0 | N100: =IF(AND($B$16=12,$B$17=5),B100+B99+B98+B97+B96+B95+B94+B93+B92+B91+B90+B89+SUM(D89:D100),0) -> 0
B101: 0 | C101: 0 | D101: 0 | F101: 0 | G101: 0 | H101: 0 | I101: 0 | J101: =IF(AND($B$16=4,$B$17=2),B98+B99+B100+B101+D101+D100+D99+D98,0) -> 0 | K101: =IF(AND($B$16=4,$B$17=2),C98+C99+C100+C101,0) -> 0 | L101: =IF(AND($B$16=2,$B$17=2),B100+B101+D100+D101,0) -> 0 | M101: =IF(AND($B$16=2,$B$17=2),C100+C101,0) -> 0 | N101: =IF(AND($B$16=12,$B$17=6),B101+B100+B99+B98+B97+B96+B95+B94+B93+B92+B91+B90+SUM(D90:D101),0) -> 0
B102: 0 | C102: 0 | D102: 0 | F102: 0 | G102: 0 | H102: 0 | I102: 0 | J102: =IF(AND($B$16=4,$B$17=3),B102+B101+B100+B99+D99+D100+D101+D102,0) -> 0 | K102: =IF(AND($B$16=4,$B$17=3),C102+C101+C100+C99,0) -> 0 | L102: =IF(AND($B$16=2,$B$17=1),B101+B102+D101+D102,0) -> 0 | M102: =IF(AND($B$16=2,$B$17=1),C101+C102,0) -> 0 | N102: =IF(AND($B$16=12,$B$17=7),B102+B101+B100+B99+B98+B97+B96+B95+B94+B93+B92+B91+SUM(D91:D102),0) -> 0
B103: 0 | C103: 0 | D103: 0 | F103: 0 | G103: 0 | H103: 0 | I103: 0 | J103: =IF(AND($B$16=4,$B$17=4),B103+B102+B101+B100+D100+D101+D102+D103,0) -> 0 | K103: =IF(AND($B$16=4,$B$17=4),C103+C102+C101+C100,0) -> 0 | L103: =IF(AND($B$16=2,$B$17=2),B102+B103+D102+D103,0) -> 0 | M103: =IF(AND($B$16=2,$B$17=2),C102+C103,0) -> 0 | N103: =IF(AND($B$16=12,$B$17=8),B103+B102+B101+B100+B99+B98+B97+B96+B95+B94+B93+B92+SUM(D92:D103),0) -> 0
B104: 0 | C104: 0 | D104: 0 | F104: 0 | G104: 0 | H104: 0 | I104: 0 | J104: =IF(AND($B$16=4,$B$17=1),B104+B103+B102+B101+D101+D102+D103+D104,0) -> 0 | K104: =IF(AND($B$16=4,$B$17=1),C104+C103+C102+C101,0) -> 0 | L104: =IF(AND($B$16=2,$B$17=1),B103+B104+D103+D104,0) -> 0 | M104: =IF(AND($B$16=2,$B$17=1),C103+C104,0) -> 0 | N104: =IF(AND($B$16=12,$B$17=9),B104+B103+B102+B101+B100+B99+B98+B97+B96+B95+B94+B93+SUM(D93:D104),0) -> 0
B105: 0 | C105: 0 | D105: 0 | F105: 0 | G105: 0 | H105: 0 | I105: 0 | J105: =IF(AND($B$16=4,$B$17=2),B105+B104+B103+B102+D102+D103+D104+D105,0) -> 0 | K105: =IF(AND($B$16=4,$B$17=2),C105+C104+C103+C102,0) -> 0 | L105: =IF(AND($B$16=2,$B$17=2),B104+B105+D104+D105,0) -> 0 | M105: =IF(AND($B$16=2,$B$17=2),C104+C105,0) -> 0 | N105: =IF(AND($B$16=12,$B$17=10),B105+B104+B103+B102+B101+B100+B99+B98+B97+B96+B95+B94+SUM(D94:D105),0) -> 0
B106: 0 | C106: 0 | D106: 0 | F106: 0 | G106: 0 | H106: 0 | I106: 0 | J106: =IF(AND($B$16=4,$B$17=3),B106+B105+B104+B103+D103+D104+D105+D106,0) -> 0 | K106: =IF(AND($B$16=4,$B$17=3),C106+C105+C104+C103,0) -> 0 | L106: =IF(AND($B$16=2,$B$17=1),B105+B106+D105+D106,0) -> 0 | M106: =IF(AND($B$16=2,$B$17=1),C105+C106,0) -> 0 | N106: =IF(AND($B$16=12,$B$17=11),B106+B105+B104+B103+B102+B101+B100+B99+B98+B97+B96+B95+SUM(D95:D106),0) -> 0
B107: 0 | C107: 0 | D107: 0 | F107: 0 | G107: 0 | H107: 0 | I107: 0 | J107: =IF(AND($B$16=4,$B$17=4),B107+B106+B105+B104+D104+D105+D106+D107,0) -> 0 | K107: =IF(AND($B$16=4,$B$17=4),C107+C106+C105+C104,0) -> 0 | L107: =IF(AND($B$16=2,$B$17=2),B106+B107+D106+D107,0) -> 0 | M107: =IF(AND($B$16=2,$B$17=2),C106+C107,0) -> 0 | N107: =IF(AND($B$16=12,$B$17=12),B107+B106+B105+B104+B103+B102+B101+B100+B99+B98+B97+B96+SUM(D96:D107),0) -> 0
B108: 0 | C108: 0 | D108: 0 | F108: 0 | G108: 0 | H108: 0 | I108: 0 | J108: =IF(AND($B$16=4,$B$17=1),B108+D108+B105+B106+B107+D105+D106+D107,0) -> 0 | K108: =IF(AND($B$16=4,$B$17=1),C108+C105+C106+C107,0) -> 0 | L108: =IF(AND($B$17=1,$B$16=2),B108+D108,0) -> 0 | M108: =IF(AND($B$17=1,$B$16=2),C108,0) -> 0 | N108: =IF(AND($B$16=12,$B$17=1),B108+B107+B106+B105+B104+B103+B102+B101+B100+B99+B98+B97+SUM(D97:D108),0) -> 0
B109: 0 | C109: 0 | D109: 0 | F109: 0 | G109: 0 | H109: 0 | I109: 0 | J109: =IF(AND($B$16=4,$B$17=2),B108+B109+B107+B106+D106+D107+D108+D109,0) -> 0 | K109: =IF(AND($B$16=4,$B$17=2),C106+C107+C108+C109,0) -> 0 | L109: =IF(AND($B$16=2,$B$17=2),B108+B109+D108+D109,0) -> 0 | M109: =IF(AND($B$16=2,$B$17=2),C108+C109,0) -> 0 | N109: =IF(AND($B$16=12,$B$17=2),B109+B108+B107+B106+B105+B104+B103+B102+B101+B100+B99+B98+SUM(D98:D109),0) -> 0
B110: 0 | C110: 0 | D110: 0 | F110: 0 | G110: 0 | H110: 0 | I110: 0 | J110: =IF(AND($B$16=4,$B$17=3),B107+B108+B109+B110+D107+D108+D109+D110,0) -> 0 | K110: =IF(AND($B$16=4,$B$17=3),C107+C108+C109+C110,0) -> 0 | L110: =IF(AND($B$16=2,$B$17=1),B109+B110+D109+D110,0) -> 0 | M110: =IF(AND($B$16=2,$B$17=1),C109+C110,0) -> 0 | N110: =IF(AND($B$16=12,$B$17=3),B110+B109+B108+B107+B106+B105+B104+B103+B102+B101+B100+B99+SUM(D99:D110),0) -> 0
B111: 0 | C111: 0 | D111: 0 | F111: 0 | G111: 0 | H111: 0 | I111: 0 | J111: =IF(AND($B$16=4,$B$17=4),B108+B109+B110+B111+D108+D109+D110+D111,0) -> 0 | K111: =IF(AND($B$16=4,$B$17=4),C108+C109+C110+C111,0) -> 0 | L111: =IF(AND($B$16=2,$B$17=2),B110+B111+D110+D111,0) -> 0 | M111: =IF(AND($B$16=2,$B$17=2),C110+C111,0) -> 0 | N111: =IF(AND($B$16=12,$B$17=4),B111+B110+B109+B108+B107+B106+B105+B104+B103+B102+B101+B100+SUM(D100:D111),0) -> 0
B112: 0 | C112: 0 | D112: 0 | F112: 0 | G112: 0 | H112: 0 | I112: 0 | J112: =IF(AND($B$16=4,$B$17=1),B109+B110+B111+B112+D109+D110+D111+D112,0) -> 0 | K112: =IF(AND($B$16=4,$B$17=1),C109+C110+C111+C112,0) -> 0 | L112: =IF(AND($B$16=2,$B$17=1),B111+B112+D111+D112,0) -> 0 | M112: =IF(AND($B$16=2,$B$17=1),C111+C112,0) -> 0 | N112: =IF(AND($B$16=12,$B$17=5),B112+B111+B110+B109+B108+B107+B106+B105+B104+B103+B102+B101+SUM(D101:D112),0) -> 0
B113: 0 | C113: 0 | D113: 0 | F113: 0 | G113: 0 | H113: 0 | I113: 0 | J113: =IF(AND($B$16=4,$B$17=2),B110+B111+B112+B113+D113+D112+D111+D110,0) -> 0 | K113: =IF(AND($B$16=4,$B$17=2),C110+C111+C112+C113,0) -> 0 | L113: =IF(AND($B$16=2,$B$17=2),B112+B113+D112+D113,0) -> 0 | M113: =IF(AND($B$16=2,$B$17=2),C112+C113,0) -> 0 | N113: =IF(AND($B$16=12,$B$17=6),B113+B112+B111+B110+B109+B108+B107+B106+B105+B104+B103+B102+SUM(D102:D113),0) -> 0
B114: 0 | C114: 0 | D114: 0 | F114: 0 | G114: 0 | H114: 0 | I114: 0 | J114: =IF(AND($B$16=4,$B$17=3),B114+B113+B112+B111+D111+D112+D113+D114,0) -> 0 | K114: =IF(AND($B$16=4,$B$17=3),C114+C113+C112+C111,0) -> 0 | L114: =IF(AND($B$16=2,$B$17=1),B113+B114+D113+D114,0) -> 0 | M114: =IF(AND($B$16=2,$B$17=1),C113+C114,0) -> 0 | N114: =IF(AND($B$16=12,$B$17=7),B114+B113+B112+B111+B110+B109+B108+B107+B106+B105+B104+B103+SUM(D103:D114),0) -> 0
B115: 0 | C115: 0 | D115: 0 | F115: 0 | G115: 0 | H115: 0 | I115: 0 | J115: =IF(AND($B$16=4,$B$17=4),B115+B114+B113+B112+D112+D113+D114+D115,0) -> 0 | K115: =IF(AND($B$16=4,$B$17=4),C115+C114+C113+C112,0) -> 0 | L115: =IF(AND($B$16=2,$B$17=2),B114+B115+D114+D115,0) -> 0 | M115: =IF(AND($B$16=2,$B$17=2),C114+C115,0) -> 0 | N115: =IF(AND($B$16=12,$B$17=8),B115+B114+B113+B112+B111+B110+B109+B108+B107+B106+B105+B104+SUM(D104:D115),0) -> 0
B116: 0 | C116: 0 | D116: 0 | F116: 0 | G116: 0 | H116: 0 | I116: 0 | J116: =IF(AND($B$16=4,$B$17=1),B116+B115+B114+B113+D113+D114+D115+D116,0) -> 0 | K116: =IF(AND($B$16=4,$B$17=1),C116+C115+C114+C113,0) -> 0 | L116: =IF(AND($B$16=2,$B$17=1),B115+B116+D115+D116,0) -> 0 | M116: =IF(AND($B$16=2,$B$17=1),C115+C116,0) -> 0 | N116: =IF(AND($B$16=12,$B$17=9),B116+B115+B114+B113+B112+B111+B110+B109+B108+B107+B106+B105+SUM(D105:D116),0) -> 0
B117: 0 | C117: 0 | D117: 0 | F117: 0 | G117: 0 | H117: 0 | I117: 0 | J117: =IF(AND($B$16=4,$B$17=2),B117+B116+B115+B114+D114+D115+D116+D117,0) -> 0 | K117: =IF(AND($B$16=4,$B$17=2),C117+C116+C115+C114,0) -> 0 | L117: =IF(AND($B$16=2,$B$17=2),B116+B117+D116+D117,0) -> 0 | M117: =IF(AND($B$16=2,$B$17=2),C116+C117,0) -> 0 | N117: =IF(AND($B$16=12,$B$17=10),B117+B116+B115+B114+B113+B112+B111+B110+B109+B108+B107+B106+SUM(D106:D117),0) -> 0
B118: 0 | C118: 0 | D118: 0 | F118: 0 | G118: 0 | H118: 0 | I118: 0 | J118: =IF(AND($B$16=4,$B$17=3),B118+B117+B116+B115+D115+D116+D117+D118,0) -> 0 | K118: =IF(AND($B$16=4,$B$17=3),C118+C117+C116+C115,0) -> 0 | L118: =IF(AND($B$16=2,$B$17=1),B117+B118+D117+D118,0) -> 0 | M118: =IF(AND($B$16=2,$B$17=1),C117+C118,0) -> 0 | N118: =IF(AND($B$16=12,$B$17=11),B118+B117+B116+B115+B114+B113+B112+B111+B110+B109+B108+B107+SUM(D107:D118),0) -> 0
B119: 0 | C119: 0 | D119: 0 | F119: 0 | G119: 0 | H119: 0 | I119: 0 | J119: =IF(AND($B$16=4,$B$17=4),B119+B118+B117+B116+D116+D117+D118+D119,0) -> 0 | K119: =IF(AND($B$16=4,$B$17=4),C119+C118+C117+C116,0) -> 0 | L119: =IF(AND($B$16=2,$B$17=2),B118+B119+D118+D119,0) -> 0 | M119: =IF(AND($B$16=2,$B$17=2),C118+C119,0) -> 0 | N119: =IF(AND($B$16=12,$B$17=12),B119+B118+B117+B116+B115+B114+B113+B112+B111+B110+B109+B108+SUM(D108:D119),0) -> 0
B120: 0 | C120: 0 | D120: 0 | F120: 0 | G120: =IF($B$16=4,J120,IF($B$16=2,L120,IF($B$16=12,N120,0))) -> 0 | H120: =IF($B$16=4,K120,IF($B$16=2,M120,IF($B$16=12,O120,0))) -> 0 | I120: =G120+H120 -> 0 | J120: =IF(AND($B$16=4,$B$17=1),B120+D120+B117+B118+B119+D117+D118+D119,0) -> 0 | K120: =IF(AND($B$16=4,$B$17=1),C120+C117+C118+C119,0) -> 0 | L120: =IF(AND($B$17=1,$B$16=2),B120+D120,0) -> 0 | M120: =IF(AND($B$17=1,$B$16=2),C120,0) -> 0 | N120: =IF(AND($B$16=12,$B$17=1),B120+B119+B118+B117+B116+B115+B114+B113+B112+B111+B110+B109+SUM(D109:D120),0) -> 0
B121: =F120*$F$10/100 -> 0 | C121: =IF(AND(F120>0,$B$11="A"),$F$11-B121,IF(AND(F120>0,$B$11="S"),$F$11,0)) -> 0 | D121: =IF(F120<=0,0,$B$12*($B$14/$B$16)/100) -> 0 | E121: =IF(AND(F120>0,$B$11="A"),E120,IF(AND(F120>0,$B$11="S"),B121+C121+D121," ")) ->  | F121: 0 | G121: 0 | H121: 0 | I121: 0 | J121: =IF(AND($B$16=4,$B$17=2),B120+B121+B119+B118+D118+D119+D120+D121,0) -> 0 | K121: =IF(AND($B$16=4,$B$17=2),C118+C119+C120+C121,0) -> 0 | L121: =IF(AND($B$16=2,$B$17=2),B120+B121+D120+D121,0) -> 0 | M121: =IF(AND($B$16=2,$B$17=2),C120+C121,0) -> 0 | N121: =IF(AND($B$16=12,$B$17=2),B121+B120+B119+B118+B117+B116+B115+B114+B113+B112+B111+B110+SUM(D110:D121),0) -> 0
A122: =IF(F121<=0,"",A121+1) ->  | B122: 0 | C122: 0 | D122: 0 | F122: 0 | G122: 0 | H122: 0 | I122: 0 | J122: =IF(AND($B$16=4,$B$17=3),B119+B120+B121+B122+D119+D120+D121+D122,0) -> 0 | K122: =IF(AND($B$16=4,$B$17=3),C119+C120+C121+C122,0) -> 0 | L122: =IF(AND($B$16=2,$B$17=1),B121+B122+D121+D122,0) -> 0 | M122: =IF(AND($B$16=2,$B$17=1),C121+C122,0) -> 0 | N122: =IF(AND($B$16=12,$B$17=3),B122+B121+B120+B119+B118+B117+B116+B115+B114+B113+B112+B111+SUM(D111:D122),0) -> 0
B123: 0 | C123: 0 | D123: 0 | F123: 0 | G123: 0 | H123: 0 | I123: 0 | J123: =IF(AND($B$16=4,$B$17=4),B120+B121+B122+B123+D120+D121+D122+D123,0) -> 0 | K123: =IF(AND($B$16=4,$B$17=4),C120+C121+C122+C123,0) -> 0 | L123: =IF(AND($B$16=2,$B$17=2),B122+B123+D122+D123,0) -> 0 | M123: =IF(AND($B$16=2,$B$17=2),C122+C123,0) -> 0 | N123: =IF(AND($B$16=12,$B$17=4),B123+B122+B121+B120+B119+B118+B117+B116+B115+B114+B113+B112+SUM(D112:D123),0) -> 0
B124: 0 | C124: 0 | D124: 0 | F124: 0 | G124: 0 | H124: 0 | I124: 0 | J124: =IF(AND($B$16=4,$B$17=1),B121+B122+B123+B124+D121+D122+D123+D124,0) -> 0 | K124: =IF(AND($B$16=4,$B$17=1),C121+C122+C123+C124,0) -> 0 | L124: =IF(AND($B$16=2,$B$17=1),B123+B124+D123+D124,0) -> 0 | M124: =IF(AND($B$16=2,$B$17=1),C123+C124,0) -> 0 | N124: =IF(AND($B$16=12,$B$17=5),B124+B123+B122+B121+B120+B119+B118+B117+B116+B115+B114+B113+SUM(D113:D124),0) -> 0
B125: 0 | C125: 0 | D125: 0 | F125: 0 | G125: 0 | H125: 0 | I125: 0 | J125: =IF(AND($B$16=4,$B$17=2),B122+B123+B124+B125+D125+D124+D123+D122,0) -> 0 | K125: =IF(AND($B$16=4,$B$17=2),C122+C123+C124+C125,0) -> 0 | L125: =IF(AND($B$16=2,$B$17=2),B124+B125+D124+D125,0) -> 0 | M125: =IF(AND($B$16=2,$B$17=2),C124+C125,0) -> 0 | N125: =IF(AND($B$16=12,$B$17=6),B125+B124+B123+B122+B121+B120+B119+B118+B117+B116+B115+B114+SUM(D114:D125),0) -> 0
B126: 0 | C126: 0 | D126: 0 | F126: 0 | G126: 0 | H126: 0 | I126: 0 | J126: =IF(AND($B$16=4,$B$17=3),B126+B125+B124+B123+D123+D124+D125+D126,0) -> 0 | K126: =IF(AND($B$16=4,$B$17=3),C126+C125+C124+C123,0) -> 0 | L126: =IF(AND($B$16=2,$B$17=1),B125+B126+D125+D126,0) -> 0 | M126: =IF(AND($B$16=2,$B$17=1),C125+C126,0) -> 0 | N126: =IF(AND($B$16=12,$B$17=7),B126+B125+B124+B123+B122+B121+B120+B119+B118+B117+B116+B115+SUM(D115:D126),0) -> 0
B127: 0 | C127: 0 | D127: 0 | F127: 0 | G127: 0 | H127: 0 | I127: 0 | J127: =IF(AND($B$16=4,$B$17=4),B127+B126+B125+B124+D124+D125+D126+D127,0) -> 0 | K127: =IF(AND($B$16=4,$B$17=4),C127+C126+C125+C124,0) -> 0 | L127: =IF(AND($B$16=2,$B$17=2),B126+B127+D126+D127,0) -> 0 | M127: =IF(AND($B$16=2,$B$17=2),C126+C127,0) -> 0 | N127: =IF(AND($B$16=12,$B$17=8),B127+B126+B125+B124+B123+B122+B121+B120+B119+B118+B117+B116+SUM(D116:D127),0) -> 0
B128: 0 | C128: 0 | D128: 0 | F128: 0 | G128: 0 | H128: 0 | I128: 0 | J128: =IF(AND($B$16=4,$B$17=1),B128+B127+B126+B125+D125+D126+D127+D128,0) -> 0 | K128: =IF(AND($B$16=4,$B$17=1),C128+C127+C126+C125,0) -> 0 | L128: =IF(AND($B$16=2,$B$17=1),B127+B128+D127+D128,0) -> 0 | M128: =IF(AND($B$16=2,$B$17=1),C127+C128,0) -> 0 | N128: =IF(AND($B$16=12,$B$17=9),B128+B127+B126+B125+B124+B123+B122+B121+B120+B119+B118+B117+SUM(D117:D128),0) -> 0
B129: 0 | C129: 0 | D129: 0 | F129: 0 | G129: 0 | H129: 0 | I129: 0 | J129: =IF(AND($B$16=4,$B$17=2),B129+B128+B127+B126+D126+D127+D128+D129,0) -> 0 | K129: =IF(AND($B$16=4,$B$17=2),C129+C128+C127+C126,0) -> 0 | L129: =IF(AND($B$16=2,$B$17=2),B128+B129+D128+D129,0) -> 0 | M129: =IF(AND($B$16=2,$B$17=2),C128+C129,0) -> 0 | N129: =IF(AND($B$16=12,$B$17=10),B129+B128+B127+B126+B125+B124+B123+B122+B121+B120+B119+B118+SUM(D118:D129),0) -> 0
B130: 0 | C130: 0 | D130: 0 | F130: 0 | G130: 0 | H130: 0 | I130: 0 | J130: =IF(AND($B$16=4,$B$17=3),B130+B129+B128+B127+D127+D128+D129+D130,0) -> 0 | K130: =IF(AND($B$16=4,$B$17=3),C130+C129+C128+C127,0) -> 0 | L130: =IF(AND($B$16=2,$B$17=1),B129+B130+D129+D130,0) -> 0 | M130: =IF(AND($B$16=2,$B$17=1),C129+C130,0) -> 0 | N130: =IF(AND($B$16=12,$B$17=11),B130+B129+B128+B127+B126+B125+B124+B123+B122+B121+B120+B119+SUM(D119:D130),0) -> 0
B131: 0 | C131: 0 | D131: 0 | F131: =IF(ROUND((F130-C131),)<=0,0,F130-C131) -> 0 | G131: 0 | H131: 0 | I131: 0 | J131: =IF(AND($B$16=4,$B$17=4),B131+B130+B129+B128+D128+D129+D130+D131,0) -> 0 | K131: =IF(AND($B$16=4,$B$17=4),C131+C130+C129+C128,0) -> 0 | L131: =IF(AND($B$16=2,$B$17=2),B130+B131+D130+D131,0) -> 0 | M131: =IF(AND($B$16=2,$B$17=2),C130+C131,0) -> 0 | N131: =IF(AND($B$16=12,$B$17=12),B131+B130+B129+B128+B127+B126+B125+B124+B123+B122+B121+B120+SUM(D120:D131),0) -> 0
B132: 0 | C132: 0 | D132: 0 | F132: 0 | G132: 0 | H132: 0 | I132: 0 | J132: =IF(AND($B$16=4,$B$17=1),B132+D132+B129+B130+B131+D129+D130+D131,0) -> 0 | K132: =IF(AND($B$16=4,$B$17=1),C132+C129+C130+C131,0) -> 0 | L132: =IF(AND($B$17=1,$B$16=2),B132+D132,0) -> 0 | M132: =IF(AND($B$17=1,$B$16=2),C132,0) -> 0 | N132: =IF(AND($B$16=12,$B$17=1),B132+B131+B130+B129+B128+B127+B126+B125+B124+B123+B122+B121+SUM(D121:D132),0) -> 0
B133: 0 | C133: 0 | D133: 0 | F133: 0 | G133: 0 | H133: 0 | I133: 0 | J133: =IF(AND($B$16=4,$B$17=2),B132+B133+B131+B130+D130+D131+D132+D133,0) -> 0 | K133: =IF(AND($B$16=4,$B$17=2),C130+C131+C132+C133,0) -> 0 | L133: =IF(AND($B$16=2,$B$17=2),B132+B133+D132+D133,0) -> 0 | M133: =IF(AND($B$16=2,$B$17=2),C132+C133,0) -> 0 | N133: =IF(AND($B$16=12,$B$17=2),B133+B132+B131+B130+B129+B128+B127+B126+B125+B124+B123+B122+SUM(D122:D133),0) -> 0
B134: 0 | C134: 0 | D134: 0 | F134: 0 | G134: 0 | H134: 0 | I134: 0 | J134: =IF(AND($B$16=4,$B$17=3),B131+B132+B133+B134+D131+D132+D133+D134,0) -> 0 | K134: =IF(AND($B$16=4,$B$17=3),C131+C132+C133+C134,0) -> 0 | L134: =IF(AND($B$16=2,$B$17=1),B133+B134+D133+D134,0) -> 0 | M134: =IF(AND($B$16=2,$B$17=1),C133+C134,0) -> 0 | N134: =IF(AND($B$16=12,$B$17=3),B134+B133+B132+B131+B130+B129+B128+B127+B126+B125+B124+B123+SUM(D123:D134),0) -> 0
B135: 0 | C135: 0 | D135: 0 | F135: 0 | G135: 0 | H135: 0 | I135: 0 | J135: =IF(AND($B$16=4,$B$17=4),B132+B133+B134+B135+D132+D133+D134+D135,0) -> 0 | K135: =IF(AND($B$16=4,$B$17=4),C132+C133+C134+C135,0) -> 0 | L135: =IF(AND($B$16=2,$B$17=2),B134+B135+D134+D135,0) -> 0 | M135: =IF(AND($B$16=2,$B$17=2),C134+C135,0) -> 0 | N135: =IF(AND($B$16=12,$B$17=4),B135+B134+B133+B132+B131+B130+B129+B128+B127+B126+B125+B124+SUM(D124:D135),0) -> 0
B136: 0 | C136: 0 | D136: 0 | F136: 0 | G136: 0 | H136: 0 | I136: 0 | J136: =IF(AND($B$16=4,$B$17=1),B133+B134+B135+B136+D133+D134+D135+D136,0) -> 0 | K136: =IF(AND($B$16=4,$B$17=1),C133+C134+C135+C136,0) -> 0 | L136: =IF(AND($B$16=2,$B$17=1),B135+B136+D135+D136,0) -> 0 | M136: =IF(AND($B$16=2,$B$17=1),C135+C136,0) -> 0 | N136: =IF(AND($B$16=12,$B$17=5),B136+B135+B134+B133+B132+B131+B130+B129+B128+B127+B126+B125+SUM(D125:D136),0) -> 0
B137: 0 | C137: 0 | D137: 0 | F137: 0 | G137: 0 | H137: 0 | I137: 0 | J137: =IF(AND($B$16=4,$B$17=2),B134+B135+B136+B137+D137+D136+D135+D134,0) -> 0 | K137: =IF(AND($B$16=4,$B$17=2),C134+C135+C136+C137,0) -> 0 | L137: =IF(AND($B$16=2,$B$17=2),B136+B137+D136+D137,0) -> 0 | M137: =IF(AND($B$16=2,$B$17=2),C136+C137,0) -> 0 | N137: =IF(AND($B$16=12,$B$17=6),B137+B136+B135+B134+B133+B132+B131+B130+B129+B128+B127+B126+SUM(D126:D137),0) -> 0
B138: 0 | C138: 0 | D138: 0 | F138: 0 | G138: 0 | H138: 0 | I138: 0 | J138: =IF(AND($B$16=4,$B$17=3),B138+B137+B136+B135+D135+D136+D137+D138,0) -> 0 | K138: =IF(AND($B$16=4,$B$17=3),C138+C137+C136+C135,0) -> 0 | L138: =IF(AND($B$16=2,$B$17=1),B137+B138+D137+D138,0) -> 0 | M138: =IF(AND($B$16=2,$B$17=1),C137+C138,0) -> 0 | N138: =IF(AND($B$16=12,$B$17=7),B138+B137+B136+B135+B134+B133+B132+B131+B130+B129+B128+B127+SUM(D127:D138),0) -> 0
B139: 0 | C139: 0 | D139: 0 | F139: 0 | G139: 0 | H139: 0 | I139: 0 | J139: =IF(AND($B$16=4,$B$17=4),B139+B138+B137+B136+D136+D137+D138+D139,0) -> 0 | K139: =IF(AND($B$16=4,$B$17=4),C139+C138+C137+C136,0) -> 0 | L139: =IF(AND($B$16=2,$B$17=2),B138+B139+D138+D139,0) -> 0 | M139: =IF(AND($B$16=2,$B$17=2),C138+C139,0) -> 0 | N139: =IF(AND($B$16=12,$B$17=8),B139+B138+B137+B136+B135+B134+B133+B132+B131+B130+B129+B128+SUM(D128:D139),0) -> 0
B140: 0 | C140: 0 | D140: 0 | F140: 0 | G140: 0 | H140: 0 | I140: 0 | J140: =IF(AND($B$16=4,$B$17=1),B140+B139+B138+B137+D137+D138+D139+D140,0) -> 0 | K140: =IF(AND($B$16=4,$B$17=1),C140+C139+C138+C137,0) -> 0 | L140: =IF(AND($B$16=2,$B$17=1),B139+B140+D139+D140,0) -> 0 | M140: =IF(AND($B$16=2,$B$17=1),C139+C140,0) -> 0 | N140: =IF(AND($B$16=12,$B$17=9),B140+B139+B138+B137+B136+B135+B134+B133+B132+B131+B130+B129+SUM(D129:D140),0) -> 0
B141: 0 | C141: 0 | D141: 0 | F141: 0 | G141: 0 | H141: 0 | I141: 0 | J141: =IF(AND($B$16=4,$B$17=2),B141+B140+B139+B138+D138+D139+D140+D141,0) -> 0 | K141: =IF(AND($B$16=4,$B$17=2),C141+C140+C139+C138,0) -> 0 | L141: =IF(AND($B$16=2,$B$17=2),B140+B141+D140+D141,0) -> 0 | M141: =IF(AND($B$16=2,$B$17=2),C140+C141,0) -> 0 | N141: =IF(AND($B$16=12,$B$17=10),B141+B140+B139+B138+B137+B136+B135+B134+B133+B132+B131+B130+SUM(D130:D141),0) -> 0
B142: 0 | C142: 0 | D142: 0 | F142: 0 | G142: 0 | H142: 0 | I142: 0 | J142: =IF(AND($B$16=4,$B$17=3),B142+B141+B140+B139+D139+D140+D141+D142,0) -> 0 | K142: =IF(AND($B$16=4,$B$17=3),C142+C141+C140+C139,0) -> 0 | L142: =IF(AND($B$16=2,$B$17=1),B141+B142+D141+D142,0) -> 0 | M142: =IF(AND($B$16=2,$B$17=1),C141+C142,0) -> 0 | N142: =IF(AND($B$16=12,$B$17=11),B142+B141+B140+B139+B138+B137+B136+B135+B134+B133+B132+B131+SUM(D131:D142),0) -> 0
B143: 0 | C143: 0 | D143: 0 | F143: 0 | G143: 0 | H143: 0 | I143: 0 | J143: =IF(AND($B$16=4,$B$17=4),B143+B142+B141+B140+D140+D141+D142+D143,0) -> 0 | K143: =IF(AND($B$16=4,$B$17=4),C143+C142+C141+C140,0) -> 0 | L143: =IF(AND($B$16=2,$B$17=2),B142+B143+D142+D143,0) -> 0 | M143: =IF(AND($B$16=2,$B$17=2),C142+C143,0) -> 0 | N143: =IF(AND($B$16=12,$B$17=12),B143+B142+B141+B140+B139+B138+B137+B136+B135+B134+B133+B132+SUM(D132:D143),0) -> 0
G144: 0 | H144: 0 | I144: 0 | J144: =IF(AND($B$16=4,$B$17=1),B144+D144+B141+B142+B143+D141+D142+D143,0) -> 0 | K144: =IF(AND($B$16=4,$B$17=1),C144+C141+C142+C143,0) -> 0 | L144: =IF(AND($B$17=1,$B$16=2),B144+D144,0) -> 0 | M144: =IF(AND($B$17=1,$B$16=2),C144,0) -> 0 | N144: =IF(AND($B$16=12,$B$17=1),B144+B143+B142+B141+B140+B139+B138+B137+B136+B135+B134+B133+SUM(D133:D144),0) -> 0
G145: 0 | H145: 0 | I145: 0 | J145: =IF(AND($B$16=4,$B$17=2),B144+B145+B143+B142+D142+D143+D144+D145,0) -> 0 | K145: =IF(AND($B$16=4,$B$17=2),C142+C143+C144+C145,0) -> 0 | L145: =IF(AND($B$16=2,$B$17=2),B144+B145+D144+D145,0) -> 0 | M145: =IF(AND($B$16=2,$B$17=2),C144+C145,0) -> 0 | N145: =IF(AND($B$16=12,$B$17=2),B145+B144+B143+B142+B141+B140+B139+B138+B137+B136+B135+B134+SUM(D134:D145),0) -> 0
G146: 0 | H146: 0 | I146: 0 | J146: =IF(AND($B$16=4,$B$17=3),B143+B144+B145+B146+D143+D144+D145+D146,0) -> 0 | K146: =IF(AND($B$16=4,$B$17=3),C143+C144+C145+C146,0) -> 0 | L146: =IF(AND($B$16=2,$B$17=1),B145+B146+D145+D146,0) -> 0 | M146: =IF(AND($B$16=2,$B$17=1),C145+C146,0) -> 0 | N146: =IF(AND($B$16=12,$B$17=3),B146+B145+B144+B143+B142+B141+B140+B139+B138+B137+B136+B135+SUM(D135:D146),0) -> 0
G147: 0 | H147: 0 | I147: 0 | J147: =IF(AND($B$16=4,$B$17=4),B144+B145+B146+B147+D144+D145+D146+D147,0) -> 0 | K147: =IF(AND($B$16=4,$B$17=4),C144+C145+C146+C147,0) -> 0 | L147: =IF(AND($B$16=2,$B$17=2),B146+B147+D146+D147,0) -> 0 | M147: =IF(AND($B$16=2,$B$17=2),C146+C147,0) -> 0 | N147: =IF(AND($B$16=12,$B$17=4),B147+B146+B145+B144+B143+B142+B141+B140+B139+B138+B137+B136+SUM(D136:D147),0) -> 0
G148: 0 | H148: 0 | I148: 0 | J148: =IF(AND($B$16=4,$B$17=1),B145+B146+B147+B148+D145+D146+D147+D148,0) -> 0 | K148: =IF(AND($B$16=4,$B$17=1),C145+C146+C147+C148,0) -> 0 | L148: =IF(AND($B$16=2,$B$17=1),B147+B148+D147+D148,0) -> 0 | M148: =IF(AND($B$16=2,$B$17=1),C147+C148,0) -> 0 | N148: =IF(AND($B$16=12,$B$17=5),B148+B147+B146+B145+B144+B143+B142+B141+B140+B139+B138+B137+SUM(D137:D148),0) -> 0
G149: 0 | H149: 0 | I149: 0 | J149: =IF(AND($B$16=4,$B$17=2),B146+B147+B148+B149+D149+D148+D147+D146,0) -> 0 | K149: =IF(AND($B$16=4,$B$17=2),C146+C147+C148+C149,0) -> 0 | L149: =IF(AND($B$16=2,$B$17=2),B148+B149+D148+D149,0) -> 0 | M149: =IF(AND($B$16=2,$B$17=2),C148+C149,0) -> 0 | N149: =IF(AND($B$16=12,$B$17=6),B149+B148+B147+B146+B145+B144+B143+B142+B141+B140+B139+B138+SUM(D138:D149),0) -> 0
G150: 0 | H150: 0 | I150: 0 | J150: =IF(AND($B$16=4,$B$17=3),B150+B149+B148+B147+D147+D148+D149+D150,0) -> 0 | K150: =IF(AND($B$16=4,$B$17=3),C150+C149+C148+C147,0) -> 0 | L150: =IF(AND($B$16=2,$B$17=1),B149+B150+D149+D150,0) -> 0 | M150: =IF(AND($B$16=2,$B$17=1),C149+C150,0) -> 0 | N150: =IF(AND($B$16=12,$B$17=7),B150+B149+B148+B147+B146+B145+B144+B143+B142+B141+B140+B139+SUM(D139:D150),0) -> 0
G151: 0 | H151: 0 | I151: 0 | J151: =IF(AND($B$16=4,$B$17=4),B151+B150+B149+B148+D148+D149+D150+D151,0) -> 0 | K151: =IF(AND($B$16=4,$B$17=4),C151+C150+C149+C148,0) -> 0 | L151: =IF(AND($B$16=2,$B$17=2),B150+B151+D150+D151,0) -> 0 | M151: =IF(AND($B$16=2,$B$17=2),C150+C151,0) -> 0 | N151: =IF(AND($B$16=12,$B$17=8),B151+B150+B149+B148+B147+B146+B145+B144+B143+B142+B141+B140+SUM(D140:D151),0) -> 0
G152: 0 | H152: 0 | I152: =G152+H152 -> 0 | J152: =IF(AND($B$16=4,$B$17=1),B152+B151+B150+B149+D149+D150+D151+D152,0) -> 0 | K152: =IF(AND($B$16=4,$B$17=1),C152+C151+C150+C149,0) -> 0 | L152: =IF(AND($B$16=2,$B$17=1),B151+B152+D151+D152,0) -> 0 | M152: =IF(AND($B$16=2,$B$17=1),C151+C152,0) -> 0 | N152: =IF(AND($B$16=12,$B$17=9),B152+B151+B150+B149+B148+B147+B146+B145+B144+B143+B142+B141+SUM(D141:D152),0) -> 0
G153: 0 | H153: 0 | I153: 0 | J153: =IF(AND($B$16=4,$B$17=2),B153+B152+B151+B150+D150+D151+D152+D153,0) -> 0 | K153: =IF(AND($B$16=4,$B$17=2),C153+C152+C151+C150,0) -> 0 | L153: =IF(AND($B$16=2,$B$17=2),B152+B153+D152+D153,0) -> 0 | M153: =IF(AND($B$16=2,$B$17=2),C152+C153,0) -> 0 | N153: =IF(AND($B$16=12,$B$17=10),B153+B152+B151+B150+B149+B148+B147+B146+B145+B144+B143+B142+SUM(D142:D153),0) -> 0
G154: 0 | H154: 0 | I154: 0 | J154: =IF(AND($B$16=4,$B$17=3),B154+B153+B152+B151+D151+D152+D153+D154,0) -> 0 | K154: =IF(AND($B$16=4,$B$17=3),C154+C153+C152+C151,0) -> 0 | L154: =IF(AND($B$16=2,$B$17=1),B153+B154+D153+D154,0) -> 0 | M154: =IF(AND($B$16=2,$B$17=1),C153+C154,0) -> 0 | N154: =IF(AND($B$16=12,$B$17=11),B154+B153+B152+B151+B150+B149+B148+B147+B146+B145+B144+B143+SUM(D143:D154),0) -> 0
G155: 0 | H155: 0 | I155: 0 | J155: =IF(AND($B$16=4,$B$17=4),B155+B154+B153+B152+D152+D153+D154+D155,0) -> 0 | K155: =IF(AND($B$16=4,$B$17=4),C155+C154+C153+C152,0) -> 0 | L155: =IF(AND($B$16=2,$B$17=2),B154+B155+D154+D155,0) -> 0 | M155: =IF(AND($B$16=2,$B$17=2),C154+C155,0) -> 0 | N155: =IF(AND($B$16=12,$B$17=12),B155+B154+B153+B152+B151+B150+B149+B148+B147+B146+B145+B144+SUM(D144:D155),0) -> 0
A162: =IF(AND(B14>0,B16>0),ROUND(B14/B16,4),0) -> 0 | B162: =SUM(B24:B143) -> 2206326.991 | D162: =SUM(D24:D143) -> 0

Sheet Ark1
H2: forsøg fra Ålborg
B5: 18.68 | D5: model 2 | E5: m3 metan | F5: metan /kg TS
B6: kg FM | C6: kg TS | D6: kg Ts | E6: kg VS | H6: m3 CH4/t fm
B7: =C7/B5*100 -> 5353.319058 | C7: 1000 | D7: ='Model 2'!C12 -> 180 | E7: 344 | F7: =E7/C7 -> 0.344 | H7: 59 | J7: =D7*F7 -> 61.92 | K7: m3/t FM
A8: kage | B8: =B7*C8/1000 -> 2114.561028 | C8: 395 | D8: 112 | E8: 296 | F8: =E8/C8 -> 0.7493670886 | H8: 39 | J8: =D8*F8 -> 83.92911392 | K8: m3/t FM
A9: saft | B9: =B7*C9/1000 -> 3040.685225 | C9: 568 | D9: 37.36 | E9: 502 | F9: 0.8838028169 | H9: 9 | J9: 33.01887324 | K9: m3/t FM

Sheet Biogas
L1: 50-60 dages opholdstid
C2: Nuværende | F2: Vådvægt | G2: TS | H2: VS | I2: VS/TS | J2: B0 (potentialet 60 dage) | K2: Omsætningsgrad | L2: B_praktisk
B3: Før bioraffinering | C3: ha | D3: kg/ha/år | E3: Ton/ha/år | F3: Ton/år | G3: % | H3: % | I3: % | J3: Nm3/ton VS | L3: Nm3/ton VS | M3: Nm3 CH4/år | N3: Nm3 CH4/år | P3: krj model
B4: Majs til ensilering - gasværdi som frisk majs | C4: 300 | D4: =340*100 -> 34000 | E4: =D4/1000 -> 34 | F4: =E4*C4 -> 10200 | G4: 31 | H4: 29 | I4: =(H4/G4)*100 -> 93.5483871 | J4: 431 | K4: =(L4/J4)*100 -> 83.52668213 | L4: 360 | M4: =(L4*F4*(H4/100)) -> 1064880 | P4: 360
B5: Græs | C5: 235 | D5: =E5*1000 -> 83000 | E5: ='Data omkn'!C155 -> 83 | F5: =E5*C5 -> 19505 | G5: 18 | I5: =(17/20)*100 -> 85 | J5: 367 | K5: =(L5/J5)*100 -> 92.64305177 | L5: 340 | M5: =(L5*F5*(G5/100)) -> 1193706 | P5: 340
B6: Sum | C6: =SUM(C4:C5) -> 535 | F6: =SUM(F4:F5) -> 29705 | M6: =SUM(M4:M5) -> 2258586
K7: Udnyttelsegrad er ikke 100???
J8: mesofilt?
B11: forskel på græs - og kløver græs - undersøg det
B12: Efter bioraffinering | G12: TS og VS for kløvergræs, men udbyttet er for rød kløver
B13: Brunsaft | F13: ='Masse flow'!M48 -> 21180.45045 | G13: 4.38 | H13: 3.29 | L13: =429+((539-429)/2) -> 484 | M13: =(L13*F13*(H13/100)) -> 337269.0208 | N13: =M4-M13 -> 727610.9792 | O13: Forskel mellem 120 ha majs og 500 ha græs- Viser ca. 25% lavere gasudbytte.
B15: Pressekage | O15: =((M4-M13)/M4)*100 -> 68.32797867
B16: Proteinpasta
B17: Måske skrive noget om effekten ved samudrådning - udbyttet for brunsaft vil måske være højere, hvis det udrådnes sammen med halm - lige som man ser i artiklen - at det giver mere med fibre.
B18: Græs eller majs
B19: Majs til ensilering - gasværdi som frisk majs | C19: 100 | D19: =340*100 -> 34000 | E19: =D19/1000 -> 34 | F19: =E19*C19 -> 3400 | G19: 31 | H19: 29 | I19: =(H19/G19)*100 -> 93.5483871 | J19: 431 | K19: =(L19/J19)*100 -> 97.44779582 | L19: 420 | M19: =(L19*F19*(H19/100)) -> 414120
B20: Græs | C20: 100 | D20: =E20*1000 -> 83000 | E20: 83 | F20: =E20*C20 -> 8300 | G20: 18 | I20: =(17/20)*100 -> 85 | J20: 367 | K20: =(L20/J20)*100 -> 96.73024523 | L20: 355 | M20: =(L20*F20*(G20/100)) -> 530370
B25: Hvor meget ekstra græs skal der tilføres biogasanlægget, hvis man går fra majs til græs.
J26: Nawras speciale
I68: OK
B69: OK
C71: Majs | D71: Græs | F71: majs | G71: græs
C72: 100 | D72: 100 | E72: =C72+D72 -> 200 | F72: 30 | G72: 170 | H72: =F72+G72 -> 200
C73: 0 | D73: 5 | E73: =C73+D73 -> 5 | F73: 0 | G73: 30 | H73: =F73+G73 -> 30
C74: 50 | D74: 30 | E74: 80 | F74: 0 | G74: 80 | H74: 80
C75: 150 | D75: 100 | E75: 250 | F75: 30 | G75: 220 | H75: 250
C76: =SUM(C72:C75) -> 300 | D76: =SUM(D72:D75) -> 235 | F76: =SUM(F72:F75) -> 60 | G76: 500
D77: =C76+D76 -> 535 | G77: =F76+G76 -> 560

Sheet Arealudnyttelse
I2: 11100 | J2: 9300 | K2: =8000*0.85*0.97 -> 6596
C3: Før | F3: Efter | I3: Før | L3: Efter | N3: Før | O3: Efter
C4: Majs | D4: Græs | E4: Korn | F4: Majs | G4: Græs | I4: FEN/ha | L4: FEN/ha | N4: FEN/ha
C5: ha | D5: ha | F5: ha | G5: ha | I5: Majs | J5: Græs | K5: Korn | L5: Majs | M5: Græs | N5: Majs | O5: Græs | P5: Ændring
B6: Gård 1 kvæg | C6: 100 | D6: 100 | F6: 30 | G6: 170 | I6: =C6*$I$2 -> 1110000 | J6: =D6*$J$2 -> 930000 | K6: =E6*$K$2 -> 0 | L6: =F6*$I$2 -> 333000 | M6: =G6*$J$2 -> 1581000 | N6: =I6+J6+K6 -> 2040000 | O6: =L6+M6 -> 1914000 | P6: =O6-N6 -> -126000
B7: Gård 2 svin | C7: 0 | D7: 5 | E7: 25 | F7: 0 | G7: 30 | I7: =C7*$I$2 -> 0 | J7: =D7*$J$2 -> 46500 | K7: =E7*$K$2 -> 164900 | L7: =F7*$I$2 -> 0 | M7: =G7*$J$2 -> 279000 | N7: =I7+J7+K7 -> 211400 | O7: =L7+M7 -> 279000 | P7: =O7-N7 -> 67600
B8: Gård 3 svin | C8: 50 | D8: 30 | F8: 0 | G8: =SUM(C8:D8) -> 80 | I8: =C8*$I$2 -> 555000 | J8: =D8*$J$2 -> 279000 | K8: 0 | L8: =F8*$I$2 -> 0 | M8: =G8*$J$2 -> 744000 | N8: 834000 | O8: 744000 | P8: -90000
B9: Gård 4 kvæg | C9: 150 | D9: 100 | F9: 30 | G9: 220 | I9: =C9*$I$2 -> 1665000 | J9: =D9*$J$2 -> 930000 | K9: 0 | L9: =F9*$I$2 -> 333000 | M9: =G9*$J$2 -> 2046000 | N9: 2595000 | O9: 2379000 | P9: -216000
B10: Sum | C10: =SUM(C6:C9) -> 300 | D10: =SUM(D6:D9) -> 235 | E10: 25 | F10: =SUM(F6:F9) -> 60 | G10: =SUM(G6:G9) -> 500 | I10: =C10*$I$2 -> 3330000 | J10: =D10*$J$2 -> 2185500 | K10: =E10*$K$2 -> 164900 | L10: =F10*$I$2 -> 666000 | M10: =G10*$J$2 -> 4650000 | N10: =I10+J10+K10 -> 5680400 | O10: 5316000 | P10: -364400
B11: Sum | C11: =SUM(C6:E9) -> 560 | F11: =SUM(F6:G9) -> 560
B14: Gødnings kvote
A15: Linje | C15: 216 | D15: 174 | E15: 170 | F15: 10
C16: Majs | D16: KL. Græs | E16: Græs | F16: Vinterbyg
B17: N | C17: =(171+156+187+160)/4 -> 168.5 | D17: =(248+253+288+261)/4 -> 262.5 | E17: =(349+375+455+402)/4 -> 395.25 | F17: =(185+175+194+197)/4 -> 187.75
B18: P | C18: 45 | D18: 30 | E18: 41 | F18: 18
B19: K | C19: 137 | D19: 212 | E19: 241 | F19: 67
C21: Majs | D21: Græs | E21: Korn | F21: Majs | G21: Græs | J21: Sum før | K21: sum efter | L21: Forskel fra før til nu
B22: N | C22: =C10*C17 -> 50550 | D22: =$D$10*((D17+E17)/2) -> 77285.625 | E22: =F17*$E$10 -> 4693.75 | F22: =$F$10*C17 -> 10110 | G22: =$G$10*((D17+E17)/2) -> 164437.5 | J22: =SUM(C22:E22) -> 132529.375 | K22: =SUM(F22:G22) -> 174547.5 | L22: =K22-J22 -> 42018.125
B23: P | C23: =C10*C18 -> 13500 | D23: =$D$10*((D18+E18)/2) -> 8342.5 | E23: =F18*$E$10 -> 450 | F23: =$F$10*C18 -> 2700 | G23: =$G$10*((D18+E18)/2) -> 17750 | J23: =SUM(C23:E23) -> 22292.5 | K23: =SUM(F23:G23) -> 20450 | L23: =K23-J23 -> -1842.5
B24: K | C24: =C19*C10 -> 41100 | D24: =$D$10*((D19+E19)/2) -> 53227.5 | E24: 1675 | F24: =$F$10*C19 -> 8220 | G24: =$G$10*((D19+E19)/2) -> 113250 | J24: 96002.5 | K24: =SUM(F24:G24) -> 121470 | L24: =K24-J24 -> 25467.5
B28: Behandlingsindeks
C31: Se | D31: Kopi af php20170510_Pesticidafgift_Analyse af 4 sædskifter_endelig.xlsx
B33: Pesticidforbrug for græs | E33: 0.54
B34: Pesticidforbrug for majs | E34: 2.09
B35: Vinterbyg | E35: 2.47
D37: Majs | E37: Græs | F37: Korn | G37: sum
C38: Før | D38: =C10*E34 -> 627 | E38: =E33*D10 -> 126.9 | F38: =E35*E10 -> 61.75 | G38: =SUM(D38:F38) -> 815.65
C39: Efter | D39: =E34*F10 -> 125.4 | E39: =E33*G10 -> 270 | F39: 0 | G39: =SUM(D39:F39) -> 395.4
D40: =D39-D38 -> -501.6 | E40: =E39-E38 -> 143.1 | F40: -61.75 | G40: =SUM(D40:F40) -> -420.25
